Ref No,Fund Type,Dept,Cost Centre Description    ,Description    ,Creditor Name    ,GL Code Net Amount,Payment date        
2,Revenue,CAHD,Central - Commissioned Services,Permanent Residential,1 St Georges House,13333.52, 07-Feb-2023
3,Revenue,CAHD,Central - Commissioned Services,Fees & Charges Income - General,1 St Georges House,-438.80, 07-Feb-2023
4,Revenue,CAHD,CSC - LAC Housing Support Grants,Grants to Voluntary Bodies,1625 Independent People,3343.00, 14-Feb-2023
5,Revenue,CAHD,Supporting People Programme,Grants to Voluntary Bodies,1625 Independent People,15622.00, 01-Feb-2023
6,Revenue,CAHD,Supporting People Programme,Grants to Voluntary Bodies,1625 Independent People,15629.08, 01-Feb-2023
7,Revenue,CAHD,CSC - Asylum Seekers - Unaccompanied,Independent Living,16Pluscare Support Solutions,16491.34, 21-Feb-2023
8,Revenue,CAHD,CSC - Care Leavers Independent Living,Independent Living,16Pluscare Support Solutions,10327.34, 10-Feb-2023
9,Revenue,CAHD,CSC - Care Leavers Support Costs,Other Supplies & Services,16Pluscare Support Solutions,720.00, 14-Feb-2023
10,Revenue,CAHD,South - Commissioned Services,Permanent Residential,2Nd Floor Building,5630.76, 07-Feb-2023
11,Revenue,CAHD,South - Commissioned Services,Fees & Charges Income - General,2Nd Floor Building,-438.80, 07-Feb-2023
12,Revenue,CAHD,North - Community based support,Permanent Residential,2Nd Floor Building,19752.48, 07-Feb-2023
13,Revenue,CAHD,North - Community based support,Fees & Charges Income - General,2Nd Floor Building,-1755.20, 07-Feb-2023
14,Revenue,CAHD,Central - Commissioned Services,Other Small Contracts,3 Trees Community Support Limited,151.20, 07-Feb-2023
15,Revenue,CAHD,Central - Commissioned Services,Supported Living,3 Trees Community Support Limited,3024.00, 07-Feb-2023
16,Revenue,CAHD,Central - Commissioned Services,Supported Living,3 Trees Community Support Limited,3024.00, 07-Feb-2023
17,Revenue,CAHD,Central - Commissioned Services,Supported Living,3 Trees Community Support Limited,3024.00, 07-Feb-2023
18,Revenue,CAHD,South - Commissioned Services,Supported Living,3 Trees Community Support Limited,3086.72, 07-Feb-2023
19,Revenue,CAHD,Central - Commissioned Services,Other Small Contracts,3 Trees Community Support Limited,151.20, 14-Feb-2023
20,Revenue,CAHD,Central - Commissioned Services,Supported Living,3 Trees Community Support Limited,3024.00, 14-Feb-2023
21,Revenue,CAHD,Central - Commissioned Services,Supported Living,3 Trees Community Support Limited,3024.00, 14-Feb-2023
22,Revenue,CAHD,Central - Commissioned Services,Supported Living,3 Trees Community Support Limited,3024.00, 14-Feb-2023
23,Revenue,CAHD,South - Commissioned Services,Supported Living,3 Trees Community Support Limited,3086.72, 14-Feb-2023
24,Revenue,CAHD,Central - Commissioned Services,Supported Living,3 Trees Community Support Limited,3024.00, 22-Feb-2023
25,Revenue,CAHD,Central - Commissioned Services,Supported Living,3 Trees Community Support Limited,3024.00, 22-Feb-2023
26,Revenue,CAHD,Central - Commissioned Services,Supported Living,3 Trees Community Support Limited,3024.00, 22-Feb-2023
27,Revenue,CAHD,South - Commissioned Services,Supported Living,3 Trees Community Support Limited,3086.72, 22-Feb-2023
28,Revenue,CAHD,South - Commissioned Services,Permanent Residential,5Th Floor Harlech Court,17913.24, 07-Feb-2023
29,Revenue,CAHD,South - Commissioned Services,Permanent Residential,5Th Floor Harlech Court,18839.56, 07-Feb-2023
30,Revenue,CAHD,South - Commissioned Services,Permanent Residential,5Th Floor Harlech Court,99523.08, 07-Feb-2023
31,Revenue,CAHD,South - Commissioned Services,Fees & Charges Income - General,5Th Floor Harlech Court,-438.80, 07-Feb-2023
32,Revenue,CAHD,South - Commissioned Services,Fees & Charges Income - General,5Th Floor Harlech Court,-418.80, 07-Feb-2023
33,Revenue,CAHD,South - Commissioned Services,Fees & Charges Income - General,5Th Floor Harlech Court,-2111.94, 07-Feb-2023
34,Revenue,CAHD,S28A cases,Permanent Residential,5Th Floor Harlech Court,11719.96, 07-Feb-2023
35,Revenue,CAHD,S28A cases,Fees & Charges Income - General,5Th Floor Harlech Court,-399.80, 07-Feb-2023
36,Revenue,CAHD,North - Community based support,Permanent Residential,5Th Floor Harlech Court,12498.56, 07-Feb-2023
37,Revenue,CAHD,North - Community based support,Fees & Charges Income - General,5Th Floor Harlech Court,-450.80, 07-Feb-2023
38,Revenue,CAHD,Central - Commissioned Services,Permanent Residential,5Th Floor Harlech Court,15338.12, 07-Feb-2023
39,Revenue,CAHD,Central - Commissioned Services,Fees & Charges Income - General,5Th Floor Harlech Court,-438.80, 07-Feb-2023
40,Revenue,CAHD,North - Community based support,Permanent Residential,5Th Floor Harlech Court,9615.40, 07-Feb-2023
41,Revenue,CAHD,North - Community based support,Permanent Residential,5Th Floor Harlech Court,10853.36, 07-Feb-2023
42,Revenue,CAHD,North - Community based support,Fees & Charges Income - General,5Th Floor Harlech Court,-438.80, 07-Feb-2023
43,Revenue,CAHD,North - Community based support,Fees & Charges Income - General,5Th Floor Harlech Court,-438.80, 07-Feb-2023
44,Revenue,CAHD,CSC - Section 17 0-25,Preventative Assistance,A+bility Ltd,600.00, 15-Feb-2023
45,Revenue,CAHD,CSC - Section 17 0-25,Preventative Assistance,A+bility Ltd,600.00, 21-Feb-2023
46,Revenue,CAHD,Central - Commissioned Services,Non Residential Care Income,A4E Management Ltd,-112.74, 03-Feb-2023
47,Revenue,CAHD,Central - Commissioned Services,Non Residential Care Income,A4E Management Ltd,-112.74, 17-Feb-2023
48,Revenue,CAHD,Social Lettings Agency,Rent,Individual,850.00, 10-Feb-2023
49,Revenue,CAHD,Social Lettings Agency,Fees & Charges Income - General,Individual,-106.25, 10-Feb-2023
50,Revenue,CAHD,Central - Commissioned Services,Permanent Nursing,ABI Development Limited,12959.40, 07-Feb-2023
51,Revenue,CAHD,Central - Commissioned Services,Fees & Charges Income - General,ABI Development Limited,-511.80, 07-Feb-2023
52,Revenue,CAHD,CSC - Care Leavers Support Costs,Adults - Family Support,Individual,523.29, 17-Feb-2023
53,Revenue,CAHD,CSC - Asylum Seekers - Unaccompanied,Independent Living,Ability Supported Living Limited,6700.42, 13-Feb-2023
54,Revenue,CAHD,South - Commissioned Services,Permanent Nursing,Acacia House,3085.88, 07-Feb-2023
55,Revenue,CAHD,South - Commissioned Services,Fees & Charges Income - General,Acacia House,-1074.60, 07-Feb-2023
56,Revenue,CAHD,Central - Commissioned Services,Permanent Nursing,Acacia House,3777.92, 07-Feb-2023
57,Revenue,CAHD,Post 16 High Needs Placements,Other Private Contractors,Access To Music Ltd,3563.20, 28-Feb-2023
58,Revenue,CAHD,Post 16 High Needs Placements,Other Private Contractors,Access To Music Ltd,1894.24, 28-Feb-2023
59,Revenue,CAHD,Post 16 High Needs Placements,Other Private Contractors,Access To Music Ltd,688.36, 28-Feb-2023
60,Revenue,CAHD,Home Care Monitoring (CM2000),Other Supplies & Services,Access UK Limited,15018.55, 03-Feb-2023
61,Revenue,CAHD,Central - Commissioned Services,Permanent Residential,Acer House Care Home.,4028.00, 07-Feb-2023
62,Revenue,CAHD,Central - Commissioned Services,Fees & Charges Income - General,Acer House Care Home.,-1093.68, 07-Feb-2023
63,Revenue,CAHD,MH Purchasing - Younger,Permanent Residential,Acorn Care Providers,6920.56, 07-Feb-2023
64,Revenue,CAHD,MH Purchasing - Younger,Permanent Residential,Acorn Care Providers,6795.68, 07-Feb-2023
65,Revenue,CAHD,North - S117,Permanent Residential,Acorn Care Providers,4311.40, 07-Feb-2023
66,Revenue,CAHD,Section 117 Placements MH Younger,Permanent Residential,Acorn Care Providers,5941.40, 07-Feb-2023
67,Revenue,CAHD,Jointly Funded H&SC Packages,Permanent Residential,Acorn Care Providers,3515.52, 07-Feb-2023
68,Revenue,CAHD,Jointly Funded H&SC Packages,Permanent Residential,Acorn Care Providers,2366.36, 07-Feb-2023
69,Revenue,CAHD,Jointly Funded H&SC Packages,Permanent Residential,Acorn Care Providers,2193.40, 07-Feb-2023
70,Revenue,CAHD,CSC - Fostering Carer Support,Training Expenses,Acorn Health & Safety Limited,570.00, 07-Feb-2023
71,Revenue,CAHD,CSC - Fostering Carer Support,Care Mgt/Asesmnt Staff Pay,Acorn Social Work Limited,2373.50, 09-Feb-2023
72,Revenue,CAHD,Schools Specific Grant Income,Other Public Bodies,Action for Children,550.00, 17-Feb-2023
73,Revenue,CAHD,CSC - Asylum Seekers - Unaccompanied,Independent Living,Adolescent Support Home Services Ltd,6751.18, 21-Feb-2023
74,Revenue,CAHD,CSC - Asylum Seekers - Unaccompanied,Independent Living,Adolescent Support Home Services Ltd,6751.18, 21-Feb-2023
75,Revenue,CAHD,Central - Commissioned Services,Day Care / Social Activities,Age Concern,681.60, 07-Feb-2023
76,Revenue,CAHD,Central - Commissioned Services,Day Care / Social Activities,Age Concern,576.16, 07-Feb-2023
77,Revenue,CAHD,Central - Commissioned Services,Day Care / Social Activities,Age Concern,288.08, 07-Feb-2023
78,Revenue,CAHD,South - Commissioned Services,Day Care / Social Activities,Age Concern,288.08, 07-Feb-2023
79,Revenue,CAHD,North - Community based support,Day Care / Social Activities,Age Concern,348.80, 07-Feb-2023
80,Revenue,CAHD,North - Community based support,Day Care / Social Activities,Age Concern,360.10, 07-Feb-2023
81,Revenue,CAHD,North - Community based support,Day Care / Social Activities,Age Concern,288.08, 07-Feb-2023
82,Revenue,CAHD,South - Commissioned Services,Day Care / Social Activities,Age UK - Grace Court,226.48, 07-Feb-2023
83,Revenue,CAHD,South - Commissioned Services,Day Care / Social Activities,Age UK - Grace Court,288.08, 07-Feb-2023
84,Revenue,CAHD,South - Commissioned Services,Day Care / Social Activities,Age UK - Grace Court,288.08, 07-Feb-2023
85,Revenue,CAHD,South - Commissioned Services,Day Care / Social Activities,Age UK - Grace Court,288.08, 07-Feb-2023
86,Revenue,CAHD,South - Commissioned Services,Day Care / Social Activities,Age UK - Grace Court,226.48, 07-Feb-2023
87,Revenue,CAHD,South - Commissioned Services,Day Care / Social Activities,Age UK - Grace Court,341.04, 07-Feb-2023
88,Revenue,CAHD,South - Commissioned Services,Day Care / Social Activities,Age UK - Grace Court,288.08, 07-Feb-2023
89,Revenue,CAHD,North - Community based support,Day Care / Social Activities,Age UK - Grace Court,348.80, 07-Feb-2023
90,Revenue,CAHD,North - Community based support,Day Care / Social Activities,Age UK - Grace Court,340.80, 07-Feb-2023
91,Revenue,CAHD,North - Community based support,Day Care / Social Activities,Age UK - Grace Court,288.08, 07-Feb-2023
92,Revenue,CAHD,Extra Care Housing,Private & Voluntary Home Care,Agincare UK Limited,32712.59, 03-Feb-2023
93,Revenue,CAHD,Extra Care Housing,Private & Voluntary Home Care,Agincare UK Limited,26182.00, 10-Feb-2023
94,Revenue,CAHD,Extra Care Housing,Private & Voluntary Home Care,Agincare UK Limited,668.47, 03-Feb-2023
95,Revenue,CAHD,Prison Assessments & Costs,Other Supplies & Services,Agincare UK Limited,4664.00, 14-Feb-2023
96,Revenue,CAHD,ICS Assistant Heads of Service,Conference Expenses,AHM Catering Experiance,705.00, 22-Feb-2023
97,Revenue,CAHD,South - Commissioned Services,Other Small Contracts,AliMo Care Ltd,394.44, 14-Feb-2023
98,Revenue,CAHD,South - Commissioned Services,Other Small Contracts,AliMo Care Ltd,596.85, 14-Feb-2023
99,Revenue,CAHD,South - Commissioned Services,Other Small Contracts,AliMo Care Ltd,176.46, 14-Feb-2023
100,Revenue,CAHD,North - Community based support,Other Small Contracts,AliMo Care Ltd,301.02, 14-Feb-2023
101,Revenue,CAHD,South - Commissioned Services,Other Small Contracts,AliMo Care Ltd,412.50, 22-Feb-2023
102,Revenue,CAHD,South - Commissioned Services,Other Small Contracts,AliMo Care Ltd,649.00, 22-Feb-2023
103,Revenue,CAHD,South - Commissioned Services,Other Small Contracts,AliMo Care Ltd,357.50, 22-Feb-2023
104,Revenue,CAHD,North - Community based support,Other Small Contracts,AliMo Care Ltd,337.35, 22-Feb-2023
105,Revenue,CAHD,CSC - Age Related Allowances,Foster Parent Allowances,Individual,363.00, 03-Feb-2023
106,Revenue,CAHD,CSC - Professional Fees Foster Carers,Band 3 Foster Care,Individual,486.00, 03-Feb-2023
107,Revenue,CAHD,CSC - Age Related Allowances,Foster Parent Allowances,Individual,363.00, 10-Feb-2023
108,Revenue,CAHD,CSC - Professional Fees Foster Carers,Band 3 Foster Care,Individual,486.00, 10-Feb-2023
109,Revenue,CAHD,CSC - Age Related Allowances,Foster Parent Allowances,Individual,363.00, 17-Feb-2023
110,Revenue,CAHD,CSC - Professional Fees Foster Carers,Band 3 Foster Care,Individual,486.00, 17-Feb-2023
111,Revenue,CAHD,CSC - Age Related Allowances,Foster Parent Allowances,Individual,363.00, 24-Feb-2023
112,Revenue,CAHD,CSC - Professional Fees Foster Carers,Band 3 Foster Care,Individual,486.00, 24-Feb-2023
113,Revenue,CAHD,South - Commissioned Services,Permanent Nursing,Allambie Court,2734.44, 07-Feb-2023
114,Revenue,CAHD,South - Commissioned Services,Fees & Charges Income - General,Allambie Court,-823.52, 07-Feb-2023
115,Revenue,CAHD,Drugs Alcohol and Sexual Health,Other Small Contracts,Alveston Pharmacy,1125.00, 06-Feb-2023
116,Revenue,CAHD,Early Years High Needs Support,Other Private Contractors,Ambourne House Day Nursery,768.00, 24-Feb-2023
117,Revenue,CAHD,Early Years High Needs Support,Other Private Contractors,Ambourne House Day Nursery,768.00, 24-Feb-2023
118,Revenue,CAHD,Early Years High Needs Support,Other Private Contractors,Anchor Day Nursery Ltd,781.72, 24-Feb-2023
119,Revenue,CAHD,EARLY YEARS DISABILITY  ACCES FUND,Preventative Assistance,Anchor Day Nursery Ltd,800.00, 06-Feb-2023
120,Revenue,CAHD,Supporting People Programme,Grants to Voluntary Bodies,Anchor Hanover Group,1070.50, 01-Feb-2023
121,Revenue,CAHD,Supporting People Programme,Grants to Voluntary Bodies,Anchor Hanover Group,873.08, 01-Feb-2023
122,Revenue,CAHD,CSC - South LAC Placements,Client Transport,Individual,76.50, 03-Feb-2023
123,Revenue,CAHD,CSC - Age Related Allowances,Foster Parent Allowances,Individual,378.85, 03-Feb-2023
124,Revenue,CAHD,CSC - Professional Fees Foster Carers,Band 1 Foster Care,Individual,412.85, 03-Feb-2023
125,Revenue,CAHD,CSC - Age Related Allowances,Foster Parent Allowances,Individual,312.00, 10-Feb-2023
126,Revenue,CAHD,CSC - Professional Fees Foster Carers,Band 1 Foster Care,Individual,340.00, 10-Feb-2023
127,Revenue,CAHD,CSC - South LAC Placements,Client Transport,Individual,136.35, 17-Feb-2023
128,Revenue,CAHD,CSC - Age Related Allowances,Foster Parent Allowances,Individual,312.00, 17-Feb-2023
129,Revenue,CAHD,CSC - Professional Fees Foster Carers,Band 1 Foster Care,Individual,340.00, 17-Feb-2023
130,Revenue,CAHD,CSC - Age Related Allowances,Foster Parent Allowances,Individual,312.00, 24-Feb-2023
131,Revenue,CAHD,CSC - Professional Fees Foster Carers,Band 1 Foster Care,Individual,340.00, 24-Feb-2023
132,Revenue,CAHD,Community Support - South,Preventative Assistance,Angel Care Support Limited,13314.00, 03-Feb-2023
133,Revenue,CAHD,Social Lettings Agency,Rent,Individual,822.73, 20-Feb-2023
134,Revenue,CAHD,Social Lettings Agency,Fees & Charges Income - General,Individual,-65.82, 20-Feb-2023
135,Revenue,CAHD,Social Lettings Agency,Rent,Individual,822.73, 02-Feb-2023
136,Revenue,CAHD,Social Lettings Agency,Fees & Charges Income - General,Individual,-65.82, 02-Feb-2023
137,Revenue,CAHD,EARLY YEARS DISABILITY  ACCES FUND,Preventative Assistance,Apple Tree Pre-School,800.00, 06-Feb-2023
138,Revenue,CAHD,North - Community based support,Permanent Nursing,Arbour Walk,3947.24, 07-Feb-2023
139,Revenue,CAHD,North - Community based support,Fees & Charges Income - General,Arbour Walk,-1276.96, 07-Feb-2023
140,Revenue,CAHD,North - S117,Permanent Nursing,Arbour Walk,5400.00, 07-Feb-2023
141,Revenue,CAHD,CSC - Residential Placements,Permanent Residential,ARC HD Services Ltd,20473.72, 22-Feb-2023
142,Revenue,CAHD,South - S117,Supported Living,Archcare Rehab Limited,2062.52, 07-Feb-2023
143,Revenue,CAHD,Younger MH non-res purchasing,Respite Care,Archcare Rehab Limited,0.00, 07-Feb-2023
144,Revenue,CAHD,South - Commissioned Services,Permanent Residential,Ash Lea House,5885.04, 07-Feb-2023
145,Revenue,CAHD,South - Commissioned Services,Fees & Charges Income - General,Ash Lea House,-438.80, 07-Feb-2023
146,Revenue,CAHD,North - Community based support,Permanent Residential,Ash View House,7525.48, 07-Feb-2023
147,Revenue,CAHD,North - Community based support,Permanent Residential,Ash View House,7547.20, 07-Feb-2023
148,Revenue,CAHD,North - Community based support,Fees & Charges Income - General,Ash View House,-438.80, 07-Feb-2023
149,Revenue,CAHD,North - Community based support,Fees & Charges Income - General,Ash View House,-438.80, 07-Feb-2023
150,Revenue,CAHD,South - Commissioned Services,Permanent Residential,Ash View House,7317.24, 07-Feb-2023
151,Revenue,CAHD,South - Commissioned Services,Permanent Residential,Ash View House,5994.80, 07-Feb-2023
152,Revenue,CAHD,South - Commissioned Services,Fees & Charges Income - General,Ash View House,-438.80, 07-Feb-2023
153,Revenue,CAHD,South - Commissioned Services,Fees & Charges Income - General,Ash View House,-387.80, 07-Feb-2023
154,Revenue,CAHD,South - S117,Permanent Residential,Ash View House,7402.64, 07-Feb-2023
155,Revenue,CAHD,Section 117 Placements MH Younger,Permanent Residential,Ash View House,5444.12, 07-Feb-2023
156,Revenue,CAHD,Jointly Funded H&SC Packages,Permanent Residential,Ash View House,1160.84, 07-Feb-2023
157,Revenue,CAHD,Jointly Funded H&SC Packages,Permanent Residential,Ash View House,2204.28, 07-Feb-2023
158,Revenue,CAHD,S117 Placements PCT,Permanent Residential,Ash View House,8357.80, 07-Feb-2023
159,Revenue,CAHD,Drugs Alcohol and Sexual Health,Electricity,Ashville Asset Management Limited,534.25, 21-Feb-2023
160,Revenue,CAHD,Supporting People Programme,Grants to Voluntary Bodies,Aspects and Milestones Trust,3544.83, 01-Feb-2023
161,Revenue,CAHD,Supporting People Programme,Grants to Voluntary Bodies,Aspects and Milestones Trust,1777.17, 01-Feb-2023
162,Revenue,CAHD,18-25 Year Olds,Other Small Contracts,Aspirations,83.04, 07-Feb-2023
163,Revenue,CAHD,18-25 Year Olds,Other Small Contracts,Aspirations,124.56, 07-Feb-2023
164,Revenue,CAHD,18-25 Year Olds,Other Small Contracts,Aspirations,83.04, 07-Feb-2023
165,Revenue,CAHD,18-25 Year Olds,Other Small Contracts,Aspirations,124.56, 07-Feb-2023
166,Revenue,CAHD,18-25 Year Olds,Other Small Contracts,Aspirations,145.32, 07-Feb-2023
167,Revenue,CAHD,18-25 Year Olds,Supported Living,Aspirations,726.60, 07-Feb-2023
168,Revenue,CAHD,18-25 Year Olds,Supported Living,Aspirations,871.92, 07-Feb-2023
169,Revenue,CAHD,Central - Commissioned Services,Other Small Contracts,Aspirations,50.88, 07-Feb-2023
170,Revenue,CAHD,Central - Commissioned Services,Other Small Contracts,Aspirations,581.28, 07-Feb-2023
171,Revenue,CAHD,Central - Commissioned Services,Other Small Contracts,Aspirations,228.36, 07-Feb-2023
172,Revenue,CAHD,South - Commissioned Services,Other Small Contracts,Aspirations,1825.20, 07-Feb-2023
173,Revenue,CAHD,South - Commissioned Services,Other Small Contracts,Aspirations,166.08, 07-Feb-2023
174,Revenue,CAHD,South - Commissioned Services,Other Small Contracts,Aspirations,89.04, 07-Feb-2023
175,Revenue,CAHD,South - Commissioned Services,Other Small Contracts,Aspirations,228.36, 07-Feb-2023
176,Revenue,CAHD,South - Commissioned Services,Supported Living,Aspirations,373.68, 07-Feb-2023
177,Revenue,CAHD,South - Commissioned Services,Supported Living,Aspirations,584.64, 07-Feb-2023
178,Revenue,CAHD,South - Commissioned Services,Supported Living,Aspirations,332.16, 07-Feb-2023
179,Revenue,CAHD,South - Commissioned Services,Supported Living,Aspirations,1598.52, 07-Feb-2023
180,Revenue,CAHD,South - Commissioned Services,Supported Living,Aspirations,238.74, 07-Feb-2023
181,Revenue,CAHD,South - Commissioned Services,Supported Living,Aspirations,352.92, 07-Feb-2023
182,Revenue,CAHD,South - Commissioned Services,Supported Living,Aspirations,756.00, 07-Feb-2023
183,Revenue,CAHD,South - Commissioned Services,Supported Living,Aspirations,972.00, 07-Feb-2023
184,Revenue,CAHD,South - Commissioned Services,Supported Living,Aspirations,259.50, 07-Feb-2023
185,Revenue,CAHD,South - Commissioned Services,Supported Living,Aspirations,228.36, 07-Feb-2023
186,Revenue,CAHD,South - Commissioned Services,Supported Living,Aspirations,2795.58, 07-Feb-2023
187,Revenue,CAHD,South - Commissioned Services,Supported Living,Aspirations,93.42, 07-Feb-2023
188,Revenue,CAHD,South - Commissioned Services,Supported Living,Aspirations,145.32, 07-Feb-2023
189,Revenue,CAHD,South - Commissioned Services,Supported Living,Aspirations,114.18, 07-Feb-2023
190,Revenue,CAHD,South - Commissioned Services,Supported Living,Aspirations,1297.50, 07-Feb-2023
191,Revenue,CAHD,South - Commissioned Services,Supported Living,Aspirations,477.48, 07-Feb-2023
192,Revenue,CAHD,South - Commissioned Services,Supported Living,Aspirations,2909.76, 07-Feb-2023
193,Revenue,CAHD,South - Commissioned Services,Supported Living,Aspirations,3189.28, 07-Feb-2023
194,Revenue,CAHD,South - Commissioned Services,Supported Living,Aspirations,1816.50, 07-Feb-2023
195,Revenue,CAHD,South - Commissioned Services,Supported Living,Aspirations,498.24, 07-Feb-2023
196,Revenue,CAHD,South - Commissioned Services,Mentoring,Aspirations,101.76, 07-Feb-2023
197,Revenue,CAHD,South - Commissioned Services,Mentoring,Aspirations,50.88, 07-Feb-2023
198,Revenue,CAHD,North - Community based support,Other Small Contracts,Aspirations,584.64, 07-Feb-2023
199,Revenue,CAHD,North - Community based support,Other Small Contracts,Aspirations,332.16, 07-Feb-2023
200,Revenue,CAHD,North - Community based support,Supported Living,Aspirations,2407.68, 07-Feb-2023
201,Revenue,CAHD,18-25 Year Olds,Other Small Contracts,Aspirations,124.56, 14-Feb-2023
202,Revenue,CAHD,18-25 Year Olds,Other Small Contracts,Aspirations,124.56, 14-Feb-2023
203,Revenue,CAHD,18-25 Year Olds,Other Small Contracts,Aspirations,83.04, 14-Feb-2023
204,Revenue,CAHD,18-25 Year Olds,Other Small Contracts,Aspirations,124.56, 14-Feb-2023
205,Revenue,CAHD,18-25 Year Olds,Other Small Contracts,Aspirations,145.32, 14-Feb-2023
206,Revenue,CAHD,18-25 Year Olds,Supported Living,Aspirations,736.98, 14-Feb-2023
207,Revenue,CAHD,18-25 Year Olds,Supported Living,Aspirations,871.92, 14-Feb-2023
208,Revenue,CAHD,Central - Commissioned Services,Other Small Contracts,Aspirations,50.88, 14-Feb-2023
209,Revenue,CAHD,Central - Commissioned Services,Other Small Contracts,Aspirations,581.28, 14-Feb-2023
210,Revenue,CAHD,Central - Commissioned Services,Other Small Contracts,Aspirations,228.36, 14-Feb-2023
211,Revenue,CAHD,South - Commissioned Services,Other Small Contracts,Aspirations,1892.16, 14-Feb-2023
212,Revenue,CAHD,South - Commissioned Services,Other Small Contracts,Aspirations,83.04, 14-Feb-2023
213,Revenue,CAHD,South - Commissioned Services,Other Small Contracts,Aspirations,176.46, 14-Feb-2023
214,Revenue,CAHD,South - Commissioned Services,Supported Living,Aspirations,249.12, 14-Feb-2023
215,Revenue,CAHD,South - Commissioned Services,Supported Living,Aspirations,584.64, 14-Feb-2023
216,Revenue,CAHD,South - Commissioned Services,Supported Living,Aspirations,332.16, 14-Feb-2023
217,Revenue,CAHD,South - Commissioned Services,Supported Living,Aspirations,1619.28, 14-Feb-2023
218,Revenue,CAHD,South - Commissioned Services,Supported Living,Aspirations,249.12, 14-Feb-2023
219,Revenue,CAHD,South - Commissioned Services,Supported Living,Aspirations,352.92, 14-Feb-2023
220,Revenue,CAHD,South - Commissioned Services,Supported Living,Aspirations,766.80, 14-Feb-2023
221,Revenue,CAHD,South - Commissioned Services,Supported Living,Aspirations,972.00, 14-Feb-2023
222,Revenue,CAHD,South - Commissioned Services,Supported Living,Aspirations,259.50, 14-Feb-2023
223,Revenue,CAHD,South - Commissioned Services,Supported Living,Aspirations,228.36, 14-Feb-2023
224,Revenue,CAHD,South - Commissioned Services,Supported Living,Aspirations,2795.58, 14-Feb-2023
225,Revenue,CAHD,South - Commissioned Services,Supported Living,Aspirations,93.42, 14-Feb-2023
226,Revenue,CAHD,South - Commissioned Services,Supported Living,Aspirations,207.60, 14-Feb-2023
227,Revenue,CAHD,South - Commissioned Services,Supported Living,Aspirations,124.56, 14-Feb-2023
228,Revenue,CAHD,South - Commissioned Services,Supported Living,Aspirations,51.90, 14-Feb-2023
229,Revenue,CAHD,South - Commissioned Services,Supported Living,Aspirations,477.48, 14-Feb-2023
230,Revenue,CAHD,South - Commissioned Services,Supported Living,Aspirations,2909.76, 14-Feb-2023
231,Revenue,CAHD,South - Commissioned Services,Supported Living,Aspirations,3123.96, 14-Feb-2023
232,Revenue,CAHD,South - Commissioned Services,Supported Living,Aspirations,1889.16, 14-Feb-2023
233,Revenue,CAHD,South - Commissioned Services,Supported Living,Aspirations,498.24, 14-Feb-2023
234,Revenue,CAHD,South - Commissioned Services,Mentoring,Aspirations,101.76, 14-Feb-2023
235,Revenue,CAHD,South - Commissioned Services,Mentoring,Aspirations,50.88, 14-Feb-2023
236,Revenue,CAHD,North - Community based support,Other Small Contracts,Aspirations,584.64, 14-Feb-2023
237,Revenue,CAHD,North - Community based support,Other Small Contracts,Aspirations,332.16, 14-Feb-2023
238,Revenue,CAHD,North - Community based support,Supported Living,Aspirations,2325.12, 14-Feb-2023
239,Revenue,CAHD,18-25 Year Olds,Other Small Contracts,Aspirations,124.56, 22-Feb-2023
240,Revenue,CAHD,18-25 Year Olds,Other Small Contracts,Aspirations,124.56, 22-Feb-2023
241,Revenue,CAHD,18-25 Year Olds,Other Small Contracts,Aspirations,83.04, 22-Feb-2023
242,Revenue,CAHD,18-25 Year Olds,Other Small Contracts,Aspirations,124.56, 22-Feb-2023
243,Revenue,CAHD,18-25 Year Olds,Other Small Contracts,Aspirations,72.66, 22-Feb-2023
244,Revenue,CAHD,18-25 Year Olds,Supported Living,Aspirations,736.98, 22-Feb-2023
245,Revenue,CAHD,18-25 Year Olds,Supported Living,Aspirations,871.92, 22-Feb-2023
246,Revenue,CAHD,Central - Commissioned Services,Other Small Contracts,Aspirations,50.88, 22-Feb-2023
247,Revenue,CAHD,Central - Commissioned Services,Other Small Contracts,Aspirations,581.28, 22-Feb-2023
248,Revenue,CAHD,Central - Commissioned Services,Other Small Contracts,Aspirations,228.36, 22-Feb-2023
249,Revenue,CAHD,South - Commissioned Services,Other Small Contracts,Aspirations,1825.20, 22-Feb-2023
250,Revenue,CAHD,South - Commissioned Services,Other Small Contracts,Aspirations,166.08, 22-Feb-2023
251,Revenue,CAHD,South - Commissioned Services,Other Small Contracts,Aspirations,89.04, 22-Feb-2023
252,Revenue,CAHD,South - Commissioned Services,Other Small Contracts,Aspirations,228.36, 22-Feb-2023
253,Revenue,CAHD,South - Commissioned Services,Supported Living,Aspirations,373.68, 22-Feb-2023
254,Revenue,CAHD,South - Commissioned Services,Supported Living,Aspirations,584.64, 22-Feb-2023
255,Revenue,CAHD,South - Commissioned Services,Supported Living,Aspirations,332.16, 22-Feb-2023
256,Revenue,CAHD,South - Commissioned Services,Supported Living,Aspirations,1453.20, 22-Feb-2023
257,Revenue,CAHD,South - Commissioned Services,Supported Living,Aspirations,238.74, 22-Feb-2023
258,Revenue,CAHD,South - Commissioned Services,Supported Living,Aspirations,352.92, 22-Feb-2023
259,Revenue,CAHD,South - Commissioned Services,Supported Living,Aspirations,766.80, 22-Feb-2023
260,Revenue,CAHD,South - Commissioned Services,Supported Living,Aspirations,972.00, 22-Feb-2023
261,Revenue,CAHD,South - Commissioned Services,Supported Living,Aspirations,259.50, 22-Feb-2023
262,Revenue,CAHD,South - Commissioned Services,Supported Living,Aspirations,228.36, 22-Feb-2023
263,Revenue,CAHD,South - Commissioned Services,Supported Living,Aspirations,2691.78, 22-Feb-2023
264,Revenue,CAHD,South - Commissioned Services,Supported Living,Aspirations,93.42, 22-Feb-2023
265,Revenue,CAHD,South - Commissioned Services,Supported Living,Aspirations,145.32, 22-Feb-2023
266,Revenue,CAHD,South - Commissioned Services,Supported Living,Aspirations,124.56, 22-Feb-2023
267,Revenue,CAHD,South - Commissioned Services,Supported Living,Aspirations,498.24, 22-Feb-2023
268,Revenue,CAHD,South - Commissioned Services,Supported Living,Aspirations,249.12, 22-Feb-2023
269,Revenue,CAHD,South - Commissioned Services,Supported Living,Aspirations,2909.76, 22-Feb-2023
270,Revenue,CAHD,South - Commissioned Services,Supported Living,Aspirations,3275.42, 22-Feb-2023
271,Revenue,CAHD,South - Commissioned Services,Supported Living,Aspirations,1785.36, 22-Feb-2023
272,Revenue,CAHD,South - Commissioned Services,Supported Living,Aspirations,498.24, 22-Feb-2023
273,Revenue,CAHD,South - Commissioned Services,Mentoring,Aspirations,101.76, 22-Feb-2023
274,Revenue,CAHD,South - Commissioned Services,Mentoring,Aspirations,50.88, 22-Feb-2023
275,Revenue,CAHD,North - Community based support,Other Small Contracts,Aspirations,584.64, 22-Feb-2023
276,Revenue,CAHD,North - Community based support,Other Small Contracts,Aspirations,332.16, 22-Feb-2023
277,Revenue,CAHD,North - Community based support,Supported Living,Aspirations,2325.12, 22-Feb-2023
278,Revenue,CAHD,CSC - Care Leavers Independent Living,Adults - Family Support,Aspirations Support Bristol Limited,11423.76, 07-Feb-2023
279,Revenue,CAHD,CSC - Care Leavers Independent Living,Adults - Family Support,Aspirations Support Bristol Limited,5376.00, 24-Feb-2023
280,Revenue,CAHD,18-25 Year Olds,Adults - Family Support,Ategi Limited,1056.00, 07-Feb-2023
281,Revenue,CAHD,18-25 Year Olds,Adults - Family Support,Ategi Limited,2806.24, 07-Feb-2023
282,Revenue,CAHD,18-25 Year Olds,Adults - Family Support,Ategi Limited,1695.36, 07-Feb-2023
283,Revenue,CAHD,18-25 Year Olds,Respite Care,Ategi Limited,0.00, 07-Feb-2023
284,Revenue,CAHD,18-25 Year Olds,Respite Care,Ategi Limited,0.00, 07-Feb-2023
285,Revenue,CAHD,18-25 Year Olds,Respite Care,Ategi Limited,0.00, 07-Feb-2023
286,Revenue,CAHD,Central - Commissioned Services,Adults - Family Support,Ategi Limited,75.42, 07-Feb-2023
287,Revenue,CAHD,South - Commissioned Services,Adults - Family Support,Ategi Limited,1695.36, 07-Feb-2023
288,Revenue,CAHD,South - Commissioned Services,Adults - Family Support,Ategi Limited,2424.64, 07-Feb-2023
289,Revenue,CAHD,South - Commissioned Services,Adults - Family Support,Ategi Limited,2424.64, 07-Feb-2023
290,Revenue,CAHD,South - Commissioned Services,Adults - Family Support,Ategi Limited,1695.36, 07-Feb-2023
291,Revenue,CAHD,South - Commissioned Services,Adults - Family Support,Ategi Limited,2640.00, 07-Feb-2023
292,Revenue,CAHD,South - Commissioned Services,Respite Care,Ategi Limited,0.00, 07-Feb-2023
293,Revenue,CAHD,South - Commissioned Services,Respite Care,Ategi Limited,0.00, 07-Feb-2023
294,Revenue,CAHD,South - Commissioned Services,Respite Care,Ategi Limited,0.00, 07-Feb-2023
295,Revenue,CAHD,North - Community based support,Adults - Family Support,Ategi Limited,1695.36, 07-Feb-2023
296,Revenue,CAHD,North - Community based support,Adults - Family Support,Ategi Limited,1695.36, 07-Feb-2023
297,Revenue,CAHD,North - Community based support,Respite Care,Ategi Limited,0.00, 07-Feb-2023
298,Revenue,CAHD,North - Community based support,Respite Care,Ategi Limited,0.00, 07-Feb-2023
299,Revenue,CAHD,Statemented Support Academies,Other Public Bodies,Athelstan Trust,740.00, 21-Feb-2023
300,Revenue,CAHD,Statemented Support Academies,Other Public Bodies,Athelstan Trust,1012.67, 21-Feb-2023
301,Revenue,CAHD,Statemented Support Academies,Other Public Bodies,Athelstan Trust,740.00, 21-Feb-2023
302,Revenue,CAHD,Statemented Support Academies,Other Public Bodies,Athelstan Trust,740.00, 21-Feb-2023
303,Revenue,CAHD,Statemented Support Academies,Other Public Bodies,Athelstan Trust,740.00, 21-Feb-2023
304,Revenue,CAHD,Statemented Support Academies,Other Public Bodies,Athelstan Trust,740.00, 21-Feb-2023
305,Revenue,CAHD,Statemented Support Academies,Other Public Bodies,Athelstan Trust,740.00, 21-Feb-2023
306,Revenue,CAHD,Statemented Support Academies,Other Public Bodies,Athelstan Trust,740.00, 21-Feb-2023
307,Revenue,CAHD,Academy Resource Base Funding,Other Public Bodies,Athelstan Trust,1534.24, 27-Feb-2023
308,Revenue,CAHD,Academy Resource Base Funding,Other Public Bodies,Athelstan Trust,1285.84, 27-Feb-2023
309,Revenue,CAHD,Academy Resource Base Funding,Other Public Bodies,Athelstan Trust,1071.44, 27-Feb-2023
310,Revenue,CAHD,Academy Resource Base Funding,Other Public Bodies,Athelstan Trust,1071.44, 27-Feb-2023
311,Revenue,CAHD,Academy Resource Base Funding,Other Public Bodies,Athelstan Trust,1071.44, 27-Feb-2023
312,Revenue,CAHD,Academy Resource Base Funding,Other Public Bodies,Athelstan Trust,1285.84, 27-Feb-2023
313,Revenue,CAHD,Academy Resource Base Funding,Other Public Bodies,Athelstan Trust,1285.84, 27-Feb-2023
314,Revenue,CAHD,Academy Resource Base Funding,Other Public Bodies,Athelstan Trust,1285.84, 27-Feb-2023
315,Revenue,CAHD,Academy Resource Base Funding,Other Public Bodies,Athelstan Trust,1285.84, 27-Feb-2023
316,Revenue,CAHD,Academy Resource Base Funding,Other Public Bodies,Athelstan Trust,1071.44, 27-Feb-2023
317,Revenue,CAHD,Academy Resource Base Funding,Other Public Bodies,Athelstan Trust,1285.84, 27-Feb-2023
318,Revenue,CAHD,Academy Resource Base Funding,Other Public Bodies,Athelstan Trust,1285.84, 27-Feb-2023
319,Revenue,CAHD,Academy Resource Base Funding,Other Public Bodies,Athelstan Trust,1071.44, 27-Feb-2023
320,Revenue,CAHD,Statemented Support Academies,Other Public Bodies,Athelstan Trust,2541.46, 14-Feb-2023
321,Revenue,CAHD,Statemented Support Academies,Other Public Bodies,Athelstan Trust,508.29, 27-Feb-2023
322,Revenue,CAHD,Statemented Support Academies,Other Public Bodies,Athelstan Trust,7631.43, 27-Feb-2023
323,Revenue,CAHD,Statemented Support Academies,Other Public Bodies,Athelstan Trust,3471.35, 14-Feb-2023
324,Revenue,CAHD,Statemented Support Academies,Other Public Bodies,Athelstan Trust,694.27, 27-Feb-2023
325,Revenue,CAHD,Statemented Support Academies,Other Public Bodies,Athelstan Trust,4194.58, 14-Feb-2023
326,Revenue,CAHD,Statemented Support Academies,Other Public Bodies,Athelstan Trust,838.92, 27-Feb-2023
327,Revenue,CAHD,Statemented Support Academies,Other Public Bodies,Athelstan Trust,1119.38, 14-Feb-2023
328,Revenue,CAHD,Academy Resource Base Funding,Other Public Bodies,Athelstan Trust,10981.63, 27-Feb-2023
329,Revenue,CAHD,Statemented Support Academies,Other Public Bodies,Athelstan Trust,661.94, 14-Feb-2023
330,Revenue,CAHD,Statemented Support Academies,Other Public Bodies,Athelstan Trust,2769.17, 14-Feb-2023
331,Revenue,CAHD,Statemented Support Academies,Other Public Bodies,Athelstan Trust,553.83, 27-Feb-2023
332,Revenue,CAHD,Independent Special Placements - Pre 16,Other Private Contractors,Aurora Hedgeway School,15276.66, 09-Feb-2023
333,Revenue,CAHD,Independent Special Placements - Post 16,Other Private Contractors,Aurora Severnside School,13675.27, 21-Feb-2023
334,Revenue,CAHD,South - Commissioned Services,Permanent Residential,Autism Specialised Care Homes,6506.88, 07-Feb-2023
335,Revenue,CAHD,South - Commissioned Services,Fees & Charges Income - General,Autism Specialised Care Homes,-438.80, 07-Feb-2023
336,Revenue,CAHD,Younger Adult Mental Health,Health Services (Third Party Payments),Avon & Wiltshire Mental Health,5664.00, 21-Feb-2023
337,Revenue,CAHD,Younger Adult Mental Health,Agency Staff (Operational)/PCT Pay,Avon & Wiltshire Mental Health,1013.00, 06-Feb-2023
338,Revenue,CAHD,Younger Adult Mental Health,Health Services (Third Party Payments),Avon & Wiltshire Mental Health,6261.00, 16-Feb-2023
339,Revenue,CAHD,Younger Adult Mental Health,Agency Staff (Operational)/PCT Pay,Avon & Wiltshire Mental Health,4725.00, 16-Feb-2023
340,Revenue,CAHD,CSC - LAC - Counselling & Therapy,Other Supplies & Services,Avon & Wiltshire Mental Health,15000.00, 20-Feb-2023
341,Revenue,CAHD,Younger Adult Mental Health,Health Services (Third Party Payments),Avon & Wiltshire Mental Health,1700.00, 20-Feb-2023
342,Revenue,CAHD,South Glos Users in South Glos Homes,Permanent Nursing,Avon Lodge Care Centre,836.76, 07-Feb-2023
343,Revenue,CAHD,South Glos Users in South Glos Homes,Permanent Nursing,Avon Lodge Care Centre,836.76, 07-Feb-2023
344,Revenue,CAHD,South Glos Users in South Glos Homes,Permanent Nursing,Avon Lodge Care Centre,836.76, 07-Feb-2023
345,Revenue,CAHD,South Glos Users in South Glos Homes,Permanent Nursing,Avon Lodge Care Centre,836.76, 07-Feb-2023
346,Revenue,CAHD,South Glos Users in South Glos Homes,Permanent Nursing,Avon Lodge Care Centre,836.76, 07-Feb-2023
347,Revenue,CAHD,South Glos Users in South Glos Homes,Permanent Nursing,Avon Lodge Care Centre,836.76, 07-Feb-2023
348,Revenue,CAHD,South Glos Users in South Glos Homes,Permanent Nursing,Avon Lodge Care Centre,836.76, 07-Feb-2023
349,Revenue,CAHD,South Glos Users in South Glos Homes,Permanent Nursing,Avon Lodge Care Centre,836.76, 07-Feb-2023
350,Revenue,CAHD,South Glos Users in South Glos Homes,Permanent Nursing,Avon Lodge Care Centre,836.76, 07-Feb-2023
351,Revenue,CAHD,South Glos Users in South Glos Homes,Permanent Nursing,Avon Lodge Care Centre,836.76, 07-Feb-2023
352,Revenue,CAHD,South Glos Users in South Glos Homes,Permanent Nursing,Avon Lodge Care Centre,836.76, 07-Feb-2023
353,Revenue,CAHD,South Glos Users in South Glos Homes,Permanent Nursing,Avon Lodge Care Centre,836.76, 07-Feb-2023
354,Revenue,CAHD,South Glos Users in South Glos Homes,Permanent Nursing,Avon Lodge Care Centre,836.76, 07-Feb-2023
355,Revenue,CAHD,South Glos Users in South Glos Homes,Permanent Nursing,Avon Lodge Care Centre,836.76, 07-Feb-2023
356,Revenue,CAHD,South Glos Users in South Glos Homes,Permanent Nursing,Avon Lodge Care Centre,836.76, 07-Feb-2023
357,Revenue,CAHD,South Glos Users in South Glos Homes,Permanent Nursing,Avon Lodge Care Centre,836.76, 07-Feb-2023
358,Revenue,CAHD,South Glos Users in South Glos Homes,Permanent Nursing,Avon Lodge Care Centre,836.76, 07-Feb-2023
359,Revenue,CAHD,South Glos Users in South Glos Homes,Permanent Nursing,Avon Lodge Care Centre,836.76, 07-Feb-2023
360,Revenue,CAHD,South Glos Users in South Glos Homes,Permanent Nursing,Avon Lodge Care Centre,836.76, 07-Feb-2023
361,Revenue,CAHD,South Glos Users in South Glos Homes,Permanent Nursing,Avon Lodge Care Centre,836.76, 07-Feb-2023
362,Revenue,CAHD,South Glos Users in South Glos Homes,Permanent Nursing,Avon Lodge Care Centre,836.76, 07-Feb-2023
363,Revenue,CAHD,South Glos Users in South Glos Homes,Permanent Nursing,Avon Lodge Care Centre,6186.05, 07-Feb-2023
364,Revenue,CAHD,South Glos Users in South Glos Homes,Permanent Nursing,Avon Lodge Care Centre,836.76, 07-Feb-2023
365,Revenue,CAHD,South Glos Users in South Glos Homes,Permanent Nursing,Avon Lodge Care Centre,836.76, 07-Feb-2023
366,Revenue,CAHD,South Glos Users in South Glos Homes,Permanent Nursing,Avon Lodge Care Centre,836.76, 07-Feb-2023
367,Revenue,CAHD,South Glos Users in South Glos Homes,Permanent Nursing,Avon Lodge Care Centre,836.76, 07-Feb-2023
368,Revenue,CAHD,South Glos Users in South Glos Homes,Permanent Nursing,Avon Lodge Care Centre,5737.78, 07-Feb-2023
369,Revenue,CAHD,Central - Commissioned Services,Respite Care,Avon Lodge Care Centre,0.00, 07-Feb-2023
370,Revenue,CAHD,Central - Commissioned Services,Permanent Nursing,Avon Lodge Care Centre,4120.64, 07-Feb-2023
371,Revenue,CAHD,Central - Commissioned Services,Permanent Nursing,Avon Lodge Care Centre,4296.48, 07-Feb-2023
372,Revenue,CAHD,Central - Commissioned Services,Respite Emergency - Nursing,Avon Lodge Care Centre,18106.59, 07-Feb-2023
373,Revenue,CAHD,Central - Commissioned Services,Fees & Charges Income - General,Avon Lodge Care Centre,-956.96, 07-Feb-2023
374,Revenue,CAHD,Central - Commissioned Services,Fees & Charges Income - General,Avon Lodge Care Centre,896.86, 07-Feb-2023
375,Revenue,CAHD,South - Commissioned Services,Respite Care,Avon Lodge Care Centre,0.00, 07-Feb-2023
376,Revenue,CAHD,South - Commissioned Services,Respite Care,Avon Lodge Care Centre,0.00, 07-Feb-2023
377,Revenue,CAHD,South - Commissioned Services,Respite Care,Avon Lodge Care Centre,0.00, 07-Feb-2023
378,Revenue,CAHD,South - Commissioned Services,Respite Care,Avon Lodge Care Centre,0.00, 07-Feb-2023
379,Revenue,CAHD,South - Commissioned Services,Respite Care,Avon Lodge Care Centre,0.00, 07-Feb-2023
380,Revenue,CAHD,South - Commissioned Services,Permanent Residential,Avon Lodge Care Centre,4296.48, 07-Feb-2023
381,Revenue,CAHD,South - Commissioned Services,Permanent Residential,Avon Lodge Care Centre,3318.24, 07-Feb-2023
382,Revenue,CAHD,South - Commissioned Services,Permanent Residential,Avon Lodge Care Centre,3800.00, 07-Feb-2023
383,Revenue,CAHD,South - Commissioned Services,Permanent Residential,Avon Lodge Care Centre,3816.00, 07-Feb-2023
384,Revenue,CAHD,South - Commissioned Services,Permanent Residential,Avon Lodge Care Centre,4296.00, 07-Feb-2023
385,Revenue,CAHD,South - Commissioned Services,Permanent Residential,Avon Lodge Care Centre,4296.48, 07-Feb-2023
386,Revenue,CAHD,South - Commissioned Services,Permanent Residential,Avon Lodge Care Centre,3667.60, 07-Feb-2023
387,Revenue,CAHD,South - Commissioned Services,Respite Planned - Residential,Avon Lodge Care Centre,4296.48, 07-Feb-2023
388,Revenue,CAHD,South - Commissioned Services,Respite Planned - Residential,Avon Lodge Care Centre,1079.00, 07-Feb-2023
389,Revenue,CAHD,South - Commissioned Services,Permanent Nursing,Avon Lodge Care Centre,4296.48, 07-Feb-2023
390,Revenue,CAHD,South - Commissioned Services,Permanent Nursing,Avon Lodge Care Centre,4028.00, 07-Feb-2023
391,Revenue,CAHD,South - Commissioned Services,Permanent Nursing,Avon Lodge Care Centre,2455.13, 07-Feb-2023
392,Revenue,CAHD,South - Commissioned Services,Permanent Nursing,Avon Lodge Care Centre,4756.82, 07-Feb-2023
393,Revenue,CAHD,South - Commissioned Services,Permanent Nursing,Avon Lodge Care Centre,4296.48, 07-Feb-2023
394,Revenue,CAHD,South - Commissioned Services,Permanent Nursing,Avon Lodge Care Centre,5349.68, 07-Feb-2023
395,Revenue,CAHD,South - Commissioned Services,Permanent Nursing,Avon Lodge Care Centre,3539.44, 07-Feb-2023
396,Revenue,CAHD,South - Commissioned Services,Permanent Nursing,Avon Lodge Care Centre,3751.96, 07-Feb-2023
397,Revenue,CAHD,South - Commissioned Services,Permanent Nursing,Avon Lodge Care Centre,4210.12, 07-Feb-2023
398,Revenue,CAHD,South - Commissioned Services,Permanent Nursing,Avon Lodge Care Centre,4714.76, 07-Feb-2023
399,Revenue,CAHD,South - Commissioned Services,Permanent Nursing,Avon Lodge Care Centre,4775.44, 07-Feb-2023
400,Revenue,CAHD,South - Commissioned Services,Permanent Nursing,Avon Lodge Care Centre,4674.92, 07-Feb-2023
401,Revenue,CAHD,South - Commissioned Services,Permanent Nursing,Avon Lodge Care Centre,4664.00, 07-Feb-2023
402,Revenue,CAHD,South - Commissioned Services,Permanent Nursing,Avon Lodge Care Centre,4143.03, 07-Feb-2023
403,Revenue,CAHD,South - Commissioned Services,Permanent Nursing,Avon Lodge Care Centre,4554.28, 07-Feb-2023
404,Revenue,CAHD,South - Commissioned Services,Permanent Nursing,Avon Lodge Care Centre,4296.48, 07-Feb-2023
405,Revenue,CAHD,South - Commissioned Services,Permanent Nursing,Avon Lodge Care Centre,4296.48, 07-Feb-2023
406,Revenue,CAHD,South - Commissioned Services,Permanent Nursing,Avon Lodge Care Centre,3068.91, 07-Feb-2023
407,Revenue,CAHD,South - Commissioned Services,Respite Planned - Nursing,Avon Lodge Care Centre,-2455.13, 07-Feb-2023
408,Revenue,CAHD,South - Commissioned Services,Respite Planned - Nursing,Avon Lodge Care Centre,6291.27, 07-Feb-2023
409,Revenue,CAHD,South - Commissioned Services,Respite Planned - Nursing,Avon Lodge Care Centre,9820.53, 07-Feb-2023
410,Revenue,CAHD,South - Commissioned Services,Fees & Charges Income - General,Avon Lodge Care Centre,-1468.52, 07-Feb-2023
411,Revenue,CAHD,South - Commissioned Services,Fees & Charges Income - General,Avon Lodge Care Centre,-679.80, 07-Feb-2023
412,Revenue,CAHD,South - Commissioned Services,Fees & Charges Income - General,Avon Lodge Care Centre,-1332.24, 07-Feb-2023
413,Revenue,CAHD,South - Commissioned Services,Fees & Charges Income - General,Avon Lodge Care Centre,-725.24, 07-Feb-2023
414,Revenue,CAHD,South - Commissioned Services,Fees & Charges Income - General,Avon Lodge Care Centre,-344.00, 07-Feb-2023
415,Revenue,CAHD,South - Commissioned Services,Fees & Charges Income - General,Avon Lodge Care Centre,-891.61, 07-Feb-2023
416,Revenue,CAHD,South - Commissioned Services,Fees & Charges Income - General,Avon Lodge Care Centre,-1066.12, 07-Feb-2023
417,Revenue,CAHD,South - Commissioned Services,Fees & Charges Income - General,Avon Lodge Care Centre,-1393.76, 07-Feb-2023
418,Revenue,CAHD,South - Commissioned Services,Fees & Charges Income - General,Avon Lodge Care Centre,-1525.00, 07-Feb-2023
419,Revenue,CAHD,South - Commissioned Services,Fees & Charges Income - General,Avon Lodge Care Centre,-438.80, 07-Feb-2023
420,Revenue,CAHD,South - Commissioned Services,Fees & Charges Income - General,Avon Lodge Care Centre,-1280.20, 07-Feb-2023
421,Revenue,CAHD,South - Commissioned Services,Fees & Charges Income - General,Avon Lodge Care Centre,-811.68, 07-Feb-2023
422,Revenue,CAHD,South - Commissioned Services,Fees & Charges Income - General,Avon Lodge Care Centre,-1017.44, 07-Feb-2023
423,Revenue,CAHD,South - Commissioned Services,Fees & Charges Income - General,Avon Lodge Care Centre,-852.32, 07-Feb-2023
424,Revenue,CAHD,South - Commissioned Services,Fees & Charges Income - General,Avon Lodge Care Centre,-1056.84, 07-Feb-2023
425,Revenue,CAHD,South - Commissioned Services,Fees & Charges Income - General,Avon Lodge Care Centre,-1889.12, 07-Feb-2023
426,Revenue,CAHD,South - Commissioned Services,Fees & Charges Income - General,Avon Lodge Care Centre,-1224.64, 07-Feb-2023
427,Revenue,CAHD,South - Commissioned Services,Fees & Charges Income - General,Avon Lodge Care Centre,-627.80, 07-Feb-2023
428,Revenue,CAHD,South - Commissioned Services,Fees & Charges Income - General,Avon Lodge Care Centre,-627.80, 07-Feb-2023
429,Revenue,CAHD,South - Commissioned Services,Fees & Charges Income - General,Avon Lodge Care Centre,-627.80, 07-Feb-2023
430,Revenue,CAHD,South - Commissioned Services,Fees & Charges Income - General,Avon Lodge Care Centre,-448.43, 07-Feb-2023
431,Revenue,CAHD,North - Community based support,Respite Care,Avon Lodge Care Centre,0.00, 07-Feb-2023
432,Revenue,CAHD,North - Community based support,Permanent Residential,Avon Lodge Care Centre,2301.43, 07-Feb-2023
433,Revenue,CAHD,North - Community based support,Permanent Residential,Avon Lodge Care Centre,3751.96, 07-Feb-2023
434,Revenue,CAHD,North - Community based support,Permanent Nursing,Avon Lodge Care Centre,4553.76, 07-Feb-2023
435,Revenue,CAHD,North - Community based support,Permanent Nursing,Avon Lodge Care Centre,4296.48, 07-Feb-2023
436,Revenue,CAHD,North - Community based support,Permanent Nursing,Avon Lodge Care Centre,4120.64, 07-Feb-2023
437,Revenue,CAHD,North - Community based support,Fees & Charges Income - General,Avon Lodge Care Centre,-627.80, 07-Feb-2023
438,Revenue,CAHD,North - Community based support,Fees & Charges Income - General,Avon Lodge Care Centre,-601.78, 07-Feb-2023
439,Revenue,CAHD,North - Community based support,Fees & Charges Income - General,Avon Lodge Care Centre,-1493.16, 07-Feb-2023
440,Revenue,CAHD,North - Community based support,Fees & Charges Income - General,Avon Lodge Care Centre,-794.36, 07-Feb-2023
441,Revenue,CAHD,South - Commissioned Services,Permanent Residential,Avon Valley Care Home,-1616.50, 07-Feb-2023
442,Revenue,CAHD,South - Commissioned Services,Permanent Residential,Avon Valley Care Home,4294.16, 07-Feb-2023
443,Revenue,CAHD,South - Commissioned Services,Permanent Residential,Avon Valley Care Home,4483.80, 07-Feb-2023
444,Revenue,CAHD,South - Commissioned Services,Permanent Residential,Avon Valley Care Home,4294.16, 07-Feb-2023
445,Revenue,CAHD,South - Commissioned Services,Permanent Residential,Avon Valley Care Home,4526.20, 07-Feb-2023
446,Revenue,CAHD,South - Commissioned Services,Permanent Residential,Avon Valley Care Home,3214.08, 07-Feb-2023
447,Revenue,CAHD,South - Commissioned Services,Permanent Residential,Avon Valley Care Home,4483.80, 07-Feb-2023
448,Revenue,CAHD,South - Commissioned Services,Permanent Residential,Avon Valley Care Home,5190.00, 07-Feb-2023
449,Revenue,CAHD,South - Commissioned Services,Permanent Residential,Avon Valley Care Home,-6202.14, 07-Feb-2023
450,Revenue,CAHD,South - Commissioned Services,Permanent Residential,Avon Valley Care Home,4728.28, 07-Feb-2023
451,Revenue,CAHD,South - Commissioned Services,Permanent Residential,Avon Valley Care Home,3860.40, 07-Feb-2023
452,Revenue,CAHD,South - Commissioned Services,Permanent Residential,Avon Valley Care Home,3980.00, 07-Feb-2023
453,Revenue,CAHD,South - Commissioned Services,Permanent Residential,Avon Valley Care Home,4483.80, 07-Feb-2023
454,Revenue,CAHD,South - Commissioned Services,Permanent Residential,Avon Valley Care Home,3980.00, 07-Feb-2023
455,Revenue,CAHD,South - Commissioned Services,Permanent Residential,Avon Valley Care Home,4400.00, 07-Feb-2023
456,Revenue,CAHD,South - Commissioned Services,Permanent Residential,Avon Valley Care Home,4712.00, 07-Feb-2023
457,Revenue,CAHD,South - Commissioned Services,Fees & Charges Income - General,Avon Valley Care Home,-1009.24, 07-Feb-2023
458,Revenue,CAHD,South - Commissioned Services,Fees & Charges Income - General,Avon Valley Care Home,-1285.52, 07-Feb-2023
459,Revenue,CAHD,South - Commissioned Services,Fees & Charges Income - General,Avon Valley Care Home,-1040.32, 07-Feb-2023
460,Revenue,CAHD,South - Commissioned Services,Fees & Charges Income - General,Avon Valley Care Home,0.00, 07-Feb-2023
461,Revenue,CAHD,South - Commissioned Services,Fees & Charges Income - General,Avon Valley Care Home,-1666.84, 07-Feb-2023
462,Revenue,CAHD,South - Commissioned Services,Fees & Charges Income - General,Avon Valley Care Home,2677.05, 07-Feb-2023
463,Revenue,CAHD,South - Commissioned Services,Fees & Charges Income - General,Avon Valley Care Home,-663.80, 07-Feb-2023
464,Revenue,CAHD,South - Commissioned Services,Fees & Charges Income - General,Avon Valley Care Home,-1202.56, 07-Feb-2023
465,Revenue,CAHD,South - Commissioned Services,Fees & Charges Income - General,Avon Valley Care Home,-627.80, 07-Feb-2023
466,Revenue,CAHD,South - Commissioned Services,Fees & Charges Income - General,Avon Valley Care Home,-1175.92, 07-Feb-2023
467,Revenue,CAHD,South - Commissioned Services,Fees & Charges Income - General,Avon Valley Care Home,-793.84, 07-Feb-2023
468,Revenue,CAHD,South - Commissioned Services,Fees & Charges Income - General,Avon Valley Care Home,-1504.60, 07-Feb-2023
469,Revenue,CAHD,South - Commissioned Services,Fees & Charges Income - General,Avon Valley Care Home,-1557.16, 07-Feb-2023
470,Revenue,CAHD,North - Community based support,Permanent Residential,Avon Valley Care Home,4400.00, 07-Feb-2023
471,Revenue,CAHD,North - Community based support,Fees & Charges Income - General,Avon Valley Care Home,-895.20, 07-Feb-2023
472,Revenue,CAHD,South - S117,Permanent Residential,Avon Valley Care Home,4337.52, 07-Feb-2023
473,Revenue,CAHD,South - Commissioned Services,Permanent Residential,Avonmere Care Home,3980.00, 07-Feb-2023
474,Revenue,CAHD,South - Commissioned Services,Fees & Charges Income - General,Avonmere Care Home,-992.44, 07-Feb-2023
475,Revenue,CAHD,North - Community based support,Respite Care,Avonmere Care Home,0.00, 07-Feb-2023
476,Revenue,CAHD,North - Community based support,Permanent Residential,Avonmere Care Home,4140.00, 07-Feb-2023
477,Revenue,CAHD,North - Community based support,Permanent Residential,Avonmere Care Home,4140.00, 07-Feb-2023
478,Revenue,CAHD,North - Community based support,Permanent Residential,Avonmere Care Home,4960.80, 07-Feb-2023
479,Revenue,CAHD,North - Community based support,Permanent Residential,Avonmere Care Home,-5648.89, 07-Feb-2023
480,Revenue,CAHD,North - Community based support,Permanent Residential,Avonmere Care Home,4876.00, 07-Feb-2023
481,Revenue,CAHD,North - Community based support,Permanent Residential,Avonmere Care Home,5784.00, 07-Feb-2023
482,Revenue,CAHD,North - Community based support,Permanent Residential,Avonmere Care Home,4140.00, 07-Feb-2023
483,Revenue,CAHD,North - Community based support,Permanent Residential,Avonmere Care Home,4140.00, 07-Feb-2023
484,Revenue,CAHD,North - Community based support,Respite Planned - Residential,Avonmere Care Home,1200.00, 07-Feb-2023
485,Revenue,CAHD,North - Community based support,Fees & Charges Income - General,Avonmere Care Home,-1045.44, 07-Feb-2023
486,Revenue,CAHD,North - Community based support,Fees & Charges Income - General,Avonmere Care Home,-627.80, 07-Feb-2023
487,Revenue,CAHD,North - Community based support,Fees & Charges Income - General,Avonmere Care Home,-1090.32, 07-Feb-2023
488,Revenue,CAHD,North - Community based support,Fees & Charges Income - General,Avonmere Care Home,1289.52, 07-Feb-2023
489,Revenue,CAHD,North - Community based support,Fees & Charges Income - General,Avonmere Care Home,-1111.72, 07-Feb-2023
490,Revenue,CAHD,North - Community based support,Fees & Charges Income - General,Avonmere Care Home,-1258.20, 07-Feb-2023
491,Revenue,CAHD,North - Community based support,Fees & Charges Income - General,Avonmere Care Home,-1070.64, 07-Feb-2023
492,Revenue,CAHD,North - Community based support,Fees & Charges Income - General,Avonmere Care Home,-997.40, 07-Feb-2023
493,Revenue,CAHD,South Glos Users in South Glos Homes,Permanent Nursing,Badminton Place,836.76, 07-Feb-2023
494,Revenue,CAHD,South Glos Users in South Glos Homes,Permanent Nursing,Badminton Place,836.76, 07-Feb-2023
495,Revenue,CAHD,South Glos Users in South Glos Homes,Permanent Nursing,Badminton Place,836.76, 07-Feb-2023
496,Revenue,CAHD,South Glos Users in South Glos Homes,Permanent Nursing,Badminton Place,836.76, 07-Feb-2023
497,Revenue,CAHD,South Glos Users in South Glos Homes,Permanent Nursing,Badminton Place,836.76, 07-Feb-2023
498,Revenue,CAHD,South Glos Users in South Glos Homes,Permanent Nursing,Badminton Place,836.76, 07-Feb-2023
499,Revenue,CAHD,South Glos Users in South Glos Homes,Permanent Nursing,Badminton Place,836.76, 07-Feb-2023
500,Revenue,CAHD,South Glos Users in South Glos Homes,Permanent Nursing,Badminton Place,2181.55, 07-Feb-2023
501,Revenue,CAHD,Central - Commissioned Services,Permanent Residential,Badminton Place,8000.00, 07-Feb-2023
502,Revenue,CAHD,Central - Commissioned Services,Fees & Charges Income - General,Badminton Place,-438.80, 07-Feb-2023
503,Revenue,CAHD,South - Commissioned Services,Permanent Residential,Badminton Place,3136.52, 07-Feb-2023
504,Revenue,CAHD,South - Commissioned Services,Fees & Charges Income - General,Badminton Place,-1502.80, 07-Feb-2023
505,Revenue,CAHD,North - Community based support,Permanent Residential,Badminton Place,4480.00, 07-Feb-2023
506,Revenue,CAHD,North - Community based support,Respite Planned - Residential,Badminton Place,1400.00, 07-Feb-2023
507,Revenue,CAHD,North - Community based support,Permanent Nursing,Badminton Place,5156.16, 07-Feb-2023
508,Revenue,CAHD,North - Community based support,Fees & Charges Income - General,Badminton Place,2000.00, 07-Feb-2023
509,Revenue,CAHD,North - Community based support,Fees & Charges Income - General,Badminton Place,-689.68, 07-Feb-2023
510,Revenue,CAHD,North - Community based support,Fees & Charges Income - General,Badminton Place,-991.64, 07-Feb-2023
511,Revenue,CAHD,North - Community based support,Permanent Nursing,Bamfield Lodge,5200.00, 07-Feb-2023
512,Revenue,CAHD,North - Community based support,Fees & Charges Income - General,Bamfield Lodge,-1168.04, 07-Feb-2023
513,Revenue,CAHD,Pensions - Non DSG,Unfunded Annual Pension,Bath & North East Somerset Council,7196.64, 24-Feb-2023
514,Revenue,CAHD,Independent Special Placements - Post 16,Other Private Contractors,Bath Academy,1240.00, 14-Feb-2023
515,Revenue,CAHD,Inclusion Support and Virtual School,Premises Hire,Bawa Healthcare & Leisure,610.00, 10-Feb-2023
516,Revenue,CAHD,Inclusion Support and Virtual School,Premises Hire,Bawa Healthcare & Leisure,610.00, 23-Feb-2023
517,Revenue,CAHD,CSC - Adoption Support Fund,Post Adoption,Individual,525.00, 06-Feb-2023
518,Revenue,CAHD,South Glos Users in South Glos Homes,Permanent Nursing,Beaufort Grange Care Home,836.76, 07-Feb-2023
519,Revenue,CAHD,South Glos Users in South Glos Homes,Permanent Nursing,Beaufort Grange Care Home,836.76, 07-Feb-2023
520,Revenue,CAHD,South Glos Users in South Glos Homes,Permanent Nursing,Beaufort Grange Care Home,836.76, 07-Feb-2023
521,Revenue,CAHD,South Glos Users in South Glos Homes,Permanent Nursing,Beaufort Grange Care Home,836.76, 07-Feb-2023
522,Revenue,CAHD,South Glos Users in South Glos Homes,Permanent Nursing,Beaufort Grange Care Home,836.76, 07-Feb-2023
523,Revenue,CAHD,South Glos Users in South Glos Homes,Permanent Nursing,Beaufort Grange Care Home,836.76, 07-Feb-2023
524,Revenue,CAHD,South Glos Users in South Glos Homes,Permanent Nursing,Beaufort Grange Care Home,836.76, 07-Feb-2023
525,Revenue,CAHD,South Glos Users in South Glos Homes,Permanent Nursing,Beaufort Grange Care Home,836.76, 07-Feb-2023
526,Revenue,CAHD,South Glos Users in South Glos Homes,Permanent Nursing,Beaufort Grange Care Home,836.76, 07-Feb-2023
527,Revenue,CAHD,South Glos Users in South Glos Homes,Permanent Nursing,Beaufort Grange Care Home,836.76, 07-Feb-2023
528,Revenue,CAHD,South Glos Users in South Glos Homes,Permanent Nursing,Beaufort Grange Care Home,836.76, 07-Feb-2023
529,Revenue,CAHD,South Glos Users in South Glos Homes,Permanent Nursing,Beaufort Grange Care Home,836.76, 07-Feb-2023
530,Revenue,CAHD,South Glos Users in South Glos Homes,Permanent Nursing,Beaufort Grange Care Home,836.76, 07-Feb-2023
531,Revenue,CAHD,South Glos Users in South Glos Homes,Permanent Nursing,Beaufort Grange Care Home,836.76, 07-Feb-2023
532,Revenue,CAHD,South Glos Users in South Glos Homes,Permanent Nursing,Beaufort Grange Care Home,-2629.82, 07-Feb-2023
533,Revenue,CAHD,South Glos Users in South Glos Homes,Permanent Nursing,Beaufort Grange Care Home,836.76, 07-Feb-2023
534,Revenue,CAHD,South Glos Users in South Glos Homes,Permanent Nursing,Beaufort Grange Care Home,836.76, 07-Feb-2023
535,Revenue,CAHD,South Glos Users in South Glos Homes,Permanent Nursing,Beaufort Grange Care Home,836.76, 07-Feb-2023
536,Revenue,CAHD,South Glos Users in South Glos Homes,Permanent Nursing,Beaufort Grange Care Home,6425.12, 07-Feb-2023
537,Revenue,CAHD,South Glos Users in South Glos Homes,Permanent Nursing,Beaufort Grange Care Home,836.76, 07-Feb-2023
538,Revenue,CAHD,South Glos Users in South Glos Homes,Permanent Nursing,Beaufort Grange Care Home,836.76, 07-Feb-2023
539,Revenue,CAHD,South Glos Users in South Glos Homes,Permanent Nursing,Beaufort Grange Care Home,836.76, 07-Feb-2023
540,Revenue,CAHD,South Glos Users in South Glos Homes,Permanent Nursing,Beaufort Grange Care Home,836.76, 07-Feb-2023
541,Revenue,CAHD,South Glos Users in South Glos Homes,Permanent Nursing,Beaufort Grange Care Home,836.76, 07-Feb-2023
542,Revenue,CAHD,South Glos Users in South Glos Homes,Permanent Nursing,Beaufort Grange Care Home,-2151.67, 07-Feb-2023
543,Revenue,CAHD,South Glos Users in South Glos Homes,Permanent Nursing,Beaufort Grange Care Home,836.76, 07-Feb-2023
544,Revenue,CAHD,South Glos Users in South Glos Homes,Permanent Nursing,Beaufort Grange Care Home,836.76, 07-Feb-2023
545,Revenue,CAHD,South Glos Users in South Glos Homes,Permanent Nursing,Beaufort Grange Care Home,836.76, 07-Feb-2023
546,Revenue,CAHD,South Glos Users in South Glos Homes,Permanent Nursing,Beaufort Grange Care Home,836.76, 07-Feb-2023
547,Revenue,CAHD,South Glos Users in South Glos Homes,Permanent Nursing,Beaufort Grange Care Home,-2390.74, 07-Feb-2023
548,Revenue,CAHD,South Glos Users in South Glos Homes,Permanent Nursing,Beaufort Grange Care Home,836.76, 07-Feb-2023
549,Revenue,CAHD,South Glos Users in South Glos Homes,Permanent Nursing,Beaufort Grange Care Home,836.76, 07-Feb-2023
550,Revenue,CAHD,South Glos Users in South Glos Homes,Permanent Nursing,Beaufort Grange Care Home,836.76, 07-Feb-2023
551,Revenue,CAHD,South Glos Users in South Glos Homes,Permanent Nursing,Beaufort Grange Care Home,836.76, 07-Feb-2023
552,Revenue,CAHD,South Glos Users in South Glos Homes,Permanent Nursing,Beaufort Grange Care Home,836.76, 07-Feb-2023
553,Revenue,CAHD,South Glos Users in South Glos Homes,Permanent Nursing,Beaufort Grange Care Home,836.76, 07-Feb-2023
554,Revenue,CAHD,South Glos Users in South Glos Homes,Permanent Nursing,Beaufort Grange Care Home,836.76, 07-Feb-2023
555,Revenue,CAHD,South Glos Users in South Glos Homes,Permanent Nursing,Beaufort Grange Care Home,-8875.63, 07-Feb-2023
556,Revenue,CAHD,South Glos Users in South Glos Homes,Permanent Nursing,Beaufort Grange Care Home,7202.11, 07-Feb-2023
557,Revenue,CAHD,South Glos Users in South Glos Homes,Permanent Nursing,Beaufort Grange Care Home,9323.90, 07-Feb-2023
558,Revenue,CAHD,Central - Commissioned Services,Permanent Residential,Beaufort Grange Care Home,7200.00, 07-Feb-2023
559,Revenue,CAHD,Central - Commissioned Services,Permanent Nursing,Beaufort Grange Care Home,5500.00, 07-Feb-2023
560,Revenue,CAHD,Central - Commissioned Services,Permanent Nursing,Beaufort Grange Care Home,6600.00, 07-Feb-2023
561,Revenue,CAHD,Central - Commissioned Services,Permanent Nursing,Beaufort Grange Care Home,5400.00, 07-Feb-2023
562,Revenue,CAHD,Central - Commissioned Services,Permanent Nursing,Beaufort Grange Care Home,5500.00, 07-Feb-2023
563,Revenue,CAHD,Central - Commissioned Services,Permanent Nursing,Beaufort Grange Care Home,-3114.05, 07-Feb-2023
564,Revenue,CAHD,Central - Commissioned Services,Permanent Nursing,Beaufort Grange Care Home,6100.00, 07-Feb-2023
565,Revenue,CAHD,Central - Commissioned Services,Fees & Charges Income - General,Beaufort Grange Care Home,-607.80, 07-Feb-2023
566,Revenue,CAHD,Central - Commissioned Services,Fees & Charges Income - General,Beaufort Grange Care Home,607.19, 07-Feb-2023
567,Revenue,CAHD,Central - Commissioned Services,Fees & Charges Income - General,Beaufort Grange Care Home,-1002.00, 07-Feb-2023
568,Revenue,CAHD,South - Commissioned Services,Permanent Nursing,Beaufort Grange Care Home,6600.00, 07-Feb-2023
569,Revenue,CAHD,South - Commissioned Services,Permanent Nursing,Beaufort Grange Care Home,-20114.29, 07-Feb-2023
570,Revenue,CAHD,North - Community based support,Permanent Residential,Beaufort Grange Care Home,8400.00, 07-Feb-2023
571,Revenue,CAHD,North - Community based support,Permanent Nursing,Beaufort Grange Care Home,4369.60, 07-Feb-2023
572,Revenue,CAHD,North - Community based support,Permanent Nursing,Beaufort Grange Care Home,10620.00, 07-Feb-2023
573,Revenue,CAHD,North - Community based support,Fees & Charges Income - General,Beaufort Grange Care Home,-627.80, 07-Feb-2023
574,Revenue,CAHD,North - Community based support,Fees & Charges Income - General,Beaufort Grange Care Home,-438.80, 07-Feb-2023
575,Revenue,CAHD,Central Team - S117,Permanent Nursing,Beaufort Grange Care Home,5849.60, 07-Feb-2023
576,Revenue,CAHD,Central - Commissioned Services,Permanent Residential,Beaufort House,3171.36, 07-Feb-2023
577,Revenue,CAHD,Central - Commissioned Services,Permanent Residential,Beaufort House,4028.00, 07-Feb-2023
578,Revenue,CAHD,Central - Commissioned Services,Permanent Residential,Beaufort House,3582.80, 07-Feb-2023
579,Revenue,CAHD,Central - Commissioned Services,Permanent Residential,Beaufort House,4000.00, 07-Feb-2023
580,Revenue,CAHD,Central - Commissioned Services,Permanent Residential,Beaufort House,3392.00, 07-Feb-2023
581,Revenue,CAHD,Central - Commissioned Services,Permanent Residential,Beaufort House,6714.29, 07-Feb-2023
582,Revenue,CAHD,Central - Commissioned Services,Permanent Residential,Beaufort House,4240.00, 07-Feb-2023
583,Revenue,CAHD,Central - Commissioned Services,Permanent Residential,Beaufort House,3816.00, 07-Feb-2023
584,Revenue,CAHD,Central - Commissioned Services,Permanent Residential,Beaufort House,3816.00, 07-Feb-2023
585,Revenue,CAHD,Central - Commissioned Services,Permanent Residential,Beaufort House,4000.00, 07-Feb-2023
586,Revenue,CAHD,Central - Commissioned Services,Permanent Residential,Beaufort House,7714.29, 07-Feb-2023
587,Revenue,CAHD,Central - Commissioned Services,Fees & Charges Income - General,Beaufort House,-821.12, 07-Feb-2023
588,Revenue,CAHD,Central - Commissioned Services,Fees & Charges Income - General,Beaufort House,-731.44, 07-Feb-2023
589,Revenue,CAHD,Central - Commissioned Services,Fees & Charges Income - General,Beaufort House,-1448.48, 07-Feb-2023
590,Revenue,CAHD,Central - Commissioned Services,Fees & Charges Income - General,Beaufort House,-1540.88, 07-Feb-2023
591,Revenue,CAHD,Central - Commissioned Services,Fees & Charges Income - General,Beaufort House,-751.32, 07-Feb-2023
592,Revenue,CAHD,Central - Commissioned Services,Fees & Charges Income - General,Beaufort House,-1053.81, 07-Feb-2023
593,Revenue,CAHD,Central - Commissioned Services,Fees & Charges Income - General,Beaufort House,-627.80, 07-Feb-2023
594,Revenue,CAHD,Central - Commissioned Services,Fees & Charges Income - General,Beaufort House,-1125.36, 07-Feb-2023
595,Revenue,CAHD,Central - Commissioned Services,Fees & Charges Income - General,Beaufort House,-1210.76, 07-Feb-2023
596,Revenue,CAHD,North - Community based support,Permanent Residential,Beaufort House,4240.00, 07-Feb-2023
597,Revenue,CAHD,North - Community based support,Permanent Residential,Beaufort House,2986.32, 07-Feb-2023
598,Revenue,CAHD,North - Community based support,Permanent Residential,Beaufort House,4240.00, 07-Feb-2023
599,Revenue,CAHD,North - Community based support,Fees & Charges Income - General,Beaufort House,-1166.52, 07-Feb-2023
600,Revenue,CAHD,North - Community based support,Fees & Charges Income - General,Beaufort House,-627.80, 07-Feb-2023
601,Revenue,CAHD,North - Community based support,Fees & Charges Income - General,Beaufort House,-663.80, 07-Feb-2023
602,Revenue,CAHD,South Glos Users in South Glos Homes,Permanent Nursing,Beech House,836.76, 07-Feb-2023
603,Revenue,CAHD,South Glos Users in South Glos Homes,Permanent Nursing,Beech House,836.76, 07-Feb-2023
604,Revenue,CAHD,South Glos Users in South Glos Homes,Permanent Nursing,Beech House,836.76, 07-Feb-2023
605,Revenue,CAHD,South Glos Users in South Glos Homes,Permanent Nursing,Beech House,836.76, 07-Feb-2023
606,Revenue,CAHD,South Glos Users in South Glos Homes,Permanent Nursing,Beech House,836.76, 07-Feb-2023
607,Revenue,CAHD,South Glos Users in South Glos Homes,Permanent Nursing,Beech House,836.76, 07-Feb-2023
608,Revenue,CAHD,South Glos Users in South Glos Homes,Permanent Nursing,Beech House,836.76, 07-Feb-2023
609,Revenue,CAHD,South Glos Users in South Glos Homes,Permanent Nursing,Beech House,836.76, 07-Feb-2023
610,Revenue,CAHD,South Glos Users in South Glos Homes,Permanent Nursing,Beech House,836.76, 07-Feb-2023
611,Revenue,CAHD,South Glos Users in South Glos Homes,Permanent Nursing,Beech House,836.76, 07-Feb-2023
612,Revenue,CAHD,South Glos Users in South Glos Homes,Permanent Nursing,Beech House,836.76, 07-Feb-2023
613,Revenue,CAHD,South Glos Users in South Glos Homes,Permanent Nursing,Beech House,-2510.28, 07-Feb-2023
614,Revenue,CAHD,South Glos Users in South Glos Homes,Permanent Nursing,Beech House,836.76, 07-Feb-2023
615,Revenue,CAHD,South Glos Users in South Glos Homes,Permanent Nursing,Beech House,836.76, 07-Feb-2023
616,Revenue,CAHD,South Glos Users in South Glos Homes,Permanent Nursing,Beech House,836.76, 07-Feb-2023
617,Revenue,CAHD,South Glos Users in South Glos Homes,Permanent Nursing,Beech House,836.76, 07-Feb-2023
618,Revenue,CAHD,South Glos Users in South Glos Homes,Permanent Nursing,Beech House,89.65, 07-Feb-2023
619,Revenue,CAHD,South Glos Users in South Glos Homes,Permanent Nursing,Beech House,836.76, 07-Feb-2023
620,Revenue,CAHD,South Glos Users in South Glos Homes,Permanent Nursing,Beech House,836.76, 07-Feb-2023
621,Revenue,CAHD,South Glos Users in South Glos Homes,Permanent Nursing,Beech House,836.76, 07-Feb-2023
622,Revenue,CAHD,South Glos Users in South Glos Homes,Permanent Nursing,Beech House,836.76, 07-Feb-2023
623,Revenue,CAHD,South Glos Users in South Glos Homes,Permanent Nursing,Beech House,836.76, 07-Feb-2023
624,Revenue,CAHD,South Glos Users in South Glos Homes,Permanent Nursing,Beech House,836.76, 07-Feb-2023
625,Revenue,CAHD,South Glos Users in South Glos Homes,Permanent Nursing,Beech House,836.76, 07-Feb-2023
626,Revenue,CAHD,South Glos Users in South Glos Homes,Permanent Nursing,Beech House,4990.68, 07-Feb-2023
627,Revenue,CAHD,Central - Commissioned Services,Permanent Nursing,Beech House,836.76, 07-Feb-2023
628,Revenue,CAHD,South - Commissioned Services,Permanent Residential,Beech House,-6953.60, 07-Feb-2023
629,Revenue,CAHD,South - Commissioned Services,Fees & Charges Income - General,Beech House,1155.85, 07-Feb-2023
630,Revenue,CAHD,North - Community based support,Permanent Residential,Beech House,4727.88, 07-Feb-2023
631,Revenue,CAHD,North - Community based support,Permanent Residential,Beech House,508.80, 07-Feb-2023
632,Revenue,CAHD,North - Community based support,Permanent Residential,Beech House,4748.80, 07-Feb-2023
633,Revenue,CAHD,North - Community based support,Permanent Residential,Beech House,4772.80, 07-Feb-2023
634,Revenue,CAHD,North - Community based support,Permanent Residential,Beech House,4748.80, 07-Feb-2023
635,Revenue,CAHD,North - Community based support,Permanent Residential,Beech House,-6329.71, 07-Feb-2023
636,Revenue,CAHD,North - Community based support,Permanent Nursing,Beech House,4660.00, 07-Feb-2023
637,Revenue,CAHD,North - Community based support,Permanent Nursing,Beech House,4660.00, 07-Feb-2023
638,Revenue,CAHD,North - Community based support,Permanent Nursing,Beech House,836.76, 07-Feb-2023
639,Revenue,CAHD,North - Community based support,Permanent Nursing,Beech House,4760.00, 07-Feb-2023
640,Revenue,CAHD,North - Community based support,Permanent Nursing,Beech House,4641.16, 07-Feb-2023
641,Revenue,CAHD,North - Community based support,Permanent Nursing,Beech House,4671.56, 07-Feb-2023
642,Revenue,CAHD,North - Community based support,Permanent Nursing,Beech House,-1225.26, 07-Feb-2023
643,Revenue,CAHD,North - Community based support,Permanent Nursing,Beech House,4772.80, 07-Feb-2023
644,Revenue,CAHD,North - Community based support,Permanent Nursing,Beech House,5496.00, 07-Feb-2023
645,Revenue,CAHD,North - Community based support,Permanent Nursing,Beech House,4380.00, 07-Feb-2023
646,Revenue,CAHD,North - Community based support,Fees & Charges Income - General,Beech House,-627.80, 07-Feb-2023
647,Revenue,CAHD,North - Community based support,Fees & Charges Income - General,Beech House,-1904.60, 07-Feb-2023
648,Revenue,CAHD,North - Community based support,Fees & Charges Income - General,Beech House,-1649.80, 07-Feb-2023
649,Revenue,CAHD,North - Community based support,Fees & Charges Income - General,Beech House,67.12, 07-Feb-2023
650,Revenue,CAHD,North - Community based support,Fees & Charges Income - General,Beech House,-1822.16, 07-Feb-2023
651,Revenue,CAHD,North - Community based support,Fees & Charges Income - General,Beech House,-629.00, 07-Feb-2023
652,Revenue,CAHD,North - Community based support,Fees & Charges Income - General,Beech House,-1428.72, 07-Feb-2023
653,Revenue,CAHD,North - Community based support,Fees & Charges Income - General,Beech House,-1206.20, 07-Feb-2023
654,Revenue,CAHD,North - Community based support,Fees & Charges Income - General,Beech House,-840.16, 07-Feb-2023
655,Revenue,CAHD,North - Community based support,Fees & Charges Income - General,Beech House,6329.71, 07-Feb-2023
656,Revenue,CAHD,North - Community based support,Fees & Charges Income - General,Beech House,-2575.72, 07-Feb-2023
657,Revenue,CAHD,Social Lettings Agency,Rent,Individual,832.13, 01-Feb-2023
658,Revenue,CAHD,Social Lettings Agency,Fees & Charges Income - General,Individual,-104.02, 01-Feb-2023
659,Revenue,CAHD,South - S117,Permanent Residential,Bidna House,3774.24, 07-Feb-2023
660,Revenue,CAHD,CSC - Vinney Green Secure Unit,Educational Materials,BKSB Limited,1308.30, 09-Feb-2023
661,Revenue,CAHD,Placements OLA Special Schools and RB,Other L.A.s - General,Blaise High School,715.72, 24-Feb-2023
662,Revenue,CAHD,Statemented Support Payments to OLAs,Other L.A.s - General,Blaise High School,907.83, 24-Feb-2023
663,Revenue,CAHD,Placements OLA Special Schools and RB,Other L.A.s - General,Blaise High School,715.72, 24-Feb-2023
664,Revenue,CAHD,18-25 Year Olds,Other Small Contracts,Blakehill Healthcare Ltd,966.52, 07-Feb-2023
665,Revenue,CAHD,Central - Commissioned Services,Other Small Contracts,Blakehill Healthcare Ltd,423.68, 07-Feb-2023
666,Revenue,CAHD,Central - Commissioned Services,Other Small Contracts,Blakehill Healthcare Ltd,119.16, 07-Feb-2023
667,Revenue,CAHD,Central - Commissioned Services,Other Small Contracts,Blakehill Healthcare Ltd,1587.45, 07-Feb-2023
668,Revenue,CAHD,Central - Commissioned Services,Other Small Contracts,Blakehill Healthcare Ltd,4301.08, 07-Feb-2023
669,Revenue,CAHD,Central - Commissioned Services,Other Small Contracts,Blakehill Healthcare Ltd,6.62, 07-Feb-2023
670,Revenue,CAHD,Central - Commissioned Services,Other Small Contracts,Blakehill Healthcare Ltd,2045.58, 07-Feb-2023
671,Revenue,CAHD,Central - Commissioned Services,Other Small Contracts,Blakehill Healthcare Ltd,1158.50, 07-Feb-2023
672,Revenue,CAHD,Central - Commissioned Services,Other Small Contracts,Blakehill Healthcare Ltd,470.02, 07-Feb-2023
673,Revenue,CAHD,Central - Commissioned Services,Other Small Contracts,Blakehill Healthcare Ltd,410.44, 07-Feb-2023
674,Revenue,CAHD,Central - Commissioned Services,Other Small Contracts,Blakehill Healthcare Ltd,1714.58, 07-Feb-2023
675,Revenue,CAHD,Central - Commissioned Services,Other Small Contracts,Blakehill Healthcare Ltd,364.10, 07-Feb-2023
676,Revenue,CAHD,Central - Commissioned Services,Other Small Contracts,Blakehill Healthcare Ltd,364.10, 07-Feb-2023
677,Revenue,CAHD,Central - Commissioned Services,Other Small Contracts,Blakehill Healthcare Ltd,390.58, 07-Feb-2023
678,Revenue,CAHD,Central - Commissioned Services,Other Small Contracts,Blakehill Healthcare Ltd,635.52, 07-Feb-2023
679,Revenue,CAHD,Central - Commissioned Services,Other Small Contracts,Blakehill Healthcare Ltd,820.88, 07-Feb-2023
680,Revenue,CAHD,Central - Commissioned Services,Other Small Contracts,Blakehill Healthcare Ltd,1463.02, 07-Feb-2023
681,Revenue,CAHD,Central - Commissioned Services,Other Small Contracts,Blakehill Healthcare Ltd,370.72, 07-Feb-2023
682,Revenue,CAHD,South - Commissioned Services,Other Small Contracts,Blakehill Healthcare Ltd,662.00, 07-Feb-2023
683,Revenue,CAHD,South - Commissioned Services,Other Small Contracts,Blakehill Healthcare Ltd,370.72, 07-Feb-2023
684,Revenue,CAHD,South - Commissioned Services,Other Small Contracts,Blakehill Healthcare Ltd,1290.90, 07-Feb-2023
685,Revenue,CAHD,South - Commissioned Services,Other Small Contracts,Blakehill Healthcare Ltd,2840.74, 07-Feb-2023
686,Revenue,CAHD,South - Commissioned Services,Other Small Contracts,Blakehill Healthcare Ltd,1509.36, 07-Feb-2023
687,Revenue,CAHD,South - Commissioned Services,Other Small Contracts,Blakehill Healthcare Ltd,920.18, 07-Feb-2023
688,Revenue,CAHD,South - Commissioned Services,Other Small Contracts,Blakehill Healthcare Ltd,648.76, 07-Feb-2023
689,Revenue,CAHD,South - Commissioned Services,Mentoring,Blakehill Healthcare Ltd,158.88, 07-Feb-2023
690,Revenue,CAHD,North - Community based support,Other Small Contracts,Blakehill Healthcare Ltd,542.84, 07-Feb-2023
691,Revenue,CAHD,North - Community based support,Other Small Contracts,Blakehill Healthcare Ltd,3854.16, 07-Feb-2023
692,Revenue,CAHD,North - Community based support,Other Small Contracts,Blakehill Healthcare Ltd,648.76, 07-Feb-2023
693,Revenue,CAHD,North - Community based support,Other Small Contracts,Blakehill Healthcare Ltd,741.44, 07-Feb-2023
694,Revenue,CAHD,18-25 Year Olds,Other Small Contracts,Blakehill Healthcare Ltd,476.64, 07-Feb-2023
695,Revenue,CAHD,Central - Commissioned Services,Other Small Contracts,Blakehill Healthcare Ltd,205.22, 07-Feb-2023
696,Revenue,CAHD,Central - Commissioned Services,Other Small Contracts,Blakehill Healthcare Ltd,1955.50, 07-Feb-2023
697,Revenue,CAHD,Central - Commissioned Services,Other Small Contracts,Blakehill Healthcare Ltd,2119.56, 07-Feb-2023
698,Revenue,CAHD,Central - Commissioned Services,Other Small Contracts,Blakehill Healthcare Ltd,165.50, 07-Feb-2023
699,Revenue,CAHD,Central - Commissioned Services,Other Small Contracts,Blakehill Healthcare Ltd,1032.72, 07-Feb-2023
700,Revenue,CAHD,Central - Commissioned Services,Other Small Contracts,Blakehill Healthcare Ltd,542.84, 07-Feb-2023
701,Revenue,CAHD,Central - Commissioned Services,Other Small Contracts,Blakehill Healthcare Ltd,225.08, 07-Feb-2023
702,Revenue,CAHD,Central - Commissioned Services,Other Small Contracts,Blakehill Healthcare Ltd,218.46, 07-Feb-2023
703,Revenue,CAHD,Central - Commissioned Services,Other Small Contracts,Blakehill Healthcare Ltd,887.08, 07-Feb-2023
704,Revenue,CAHD,Central - Commissioned Services,Other Small Contracts,Blakehill Healthcare Ltd,178.74, 07-Feb-2023
705,Revenue,CAHD,Central - Commissioned Services,Other Small Contracts,Blakehill Healthcare Ltd,198.60, 07-Feb-2023
706,Revenue,CAHD,Central - Commissioned Services,Other Small Contracts,Blakehill Healthcare Ltd,185.36, 07-Feb-2023
707,Revenue,CAHD,Central - Commissioned Services,Other Small Contracts,Blakehill Healthcare Ltd,304.52, 07-Feb-2023
708,Revenue,CAHD,Central - Commissioned Services,Other Small Contracts,Blakehill Healthcare Ltd,410.44, 07-Feb-2023
709,Revenue,CAHD,Central - Commissioned Services,Other Small Contracts,Blakehill Healthcare Ltd,754.68, 07-Feb-2023
710,Revenue,CAHD,Central - Commissioned Services,Other Small Contracts,Blakehill Healthcare Ltd,185.36, 07-Feb-2023
711,Revenue,CAHD,South - Commissioned Services,Other Small Contracts,Blakehill Healthcare Ltd,331.00, 07-Feb-2023
712,Revenue,CAHD,South - Commissioned Services,Other Small Contracts,Blakehill Healthcare Ltd,185.36, 07-Feb-2023
713,Revenue,CAHD,South - Commissioned Services,Other Small Contracts,Blakehill Healthcare Ltd,648.76, 07-Feb-2023
714,Revenue,CAHD,South - Commissioned Services,Other Small Contracts,Blakehill Healthcare Ltd,1466.64, 07-Feb-2023
715,Revenue,CAHD,South - Commissioned Services,Other Small Contracts,Blakehill Healthcare Ltd,754.68, 07-Feb-2023
716,Revenue,CAHD,South - Commissioned Services,Other Small Contracts,Blakehill Healthcare Ltd,456.78, 07-Feb-2023
717,Revenue,CAHD,South - Commissioned Services,Other Small Contracts,Blakehill Healthcare Ltd,324.38, 07-Feb-2023
718,Revenue,CAHD,South - Commissioned Services,Mentoring,Blakehill Healthcare Ltd,158.88, 07-Feb-2023
719,Revenue,CAHD,North - Community based support,Other Small Contracts,Blakehill Healthcare Ltd,284.66, 07-Feb-2023
720,Revenue,CAHD,North - Community based support,Other Small Contracts,Blakehill Healthcare Ltd,1402.72, 07-Feb-2023
721,Revenue,CAHD,North - Community based support,Other Small Contracts,Blakehill Healthcare Ltd,317.76, 07-Feb-2023
722,Revenue,CAHD,North - Community based support,Other Small Contracts,Blakehill Healthcare Ltd,350.86, 07-Feb-2023
723,Revenue,CAHD,18-25 Year Olds,Other Small Contracts,Blakehill Healthcare Ltd,966.52, 22-Feb-2023
724,Revenue,CAHD,Central - Commissioned Services,Other Small Contracts,Blakehill Healthcare Ltd,423.68, 22-Feb-2023
725,Revenue,CAHD,Central - Commissioned Services,Other Small Contracts,Blakehill Healthcare Ltd,1094.65, 22-Feb-2023
726,Revenue,CAHD,Central - Commissioned Services,Other Small Contracts,Blakehill Healthcare Ltd,1277.50, 22-Feb-2023
727,Revenue,CAHD,Central - Commissioned Services,Other Small Contracts,Blakehill Healthcare Ltd,377.34, 22-Feb-2023
728,Revenue,CAHD,Central - Commissioned Services,Other Small Contracts,Blakehill Healthcare Ltd,2072.06, 22-Feb-2023
729,Revenue,CAHD,Central - Commissioned Services,Other Small Contracts,Blakehill Healthcare Ltd,1092.30, 22-Feb-2023
730,Revenue,CAHD,Central - Commissioned Services,Other Small Contracts,Blakehill Healthcare Ltd,456.78, 22-Feb-2023
731,Revenue,CAHD,Central - Commissioned Services,Other Small Contracts,Blakehill Healthcare Ltd,417.06, 22-Feb-2023
732,Revenue,CAHD,Central - Commissioned Services,Other Small Contracts,Blakehill Healthcare Ltd,1635.14, 22-Feb-2023
733,Revenue,CAHD,Central - Commissioned Services,Other Small Contracts,Blakehill Healthcare Ltd,377.34, 22-Feb-2023
734,Revenue,CAHD,Central - Commissioned Services,Other Small Contracts,Blakehill Healthcare Ltd,397.20, 22-Feb-2023
735,Revenue,CAHD,Central - Commissioned Services,Other Small Contracts,Blakehill Healthcare Ltd,377.34, 22-Feb-2023
736,Revenue,CAHD,Central - Commissioned Services,Other Small Contracts,Blakehill Healthcare Ltd,628.90, 22-Feb-2023
737,Revenue,CAHD,Central - Commissioned Services,Other Small Contracts,Blakehill Healthcare Ltd,834.12, 22-Feb-2023
738,Revenue,CAHD,Central - Commissioned Services,Other Small Contracts,Blakehill Healthcare Ltd,1456.40, 22-Feb-2023
739,Revenue,CAHD,Central - Commissioned Services,Other Small Contracts,Blakehill Healthcare Ltd,357.48, 22-Feb-2023
740,Revenue,CAHD,South - Commissioned Services,Other Small Contracts,Blakehill Healthcare Ltd,655.38, 22-Feb-2023
741,Revenue,CAHD,South - Commissioned Services,Other Small Contracts,Blakehill Healthcare Ltd,364.10, 22-Feb-2023
742,Revenue,CAHD,South - Commissioned Services,Other Small Contracts,Blakehill Healthcare Ltd,1297.52, 22-Feb-2023
743,Revenue,CAHD,South - Commissioned Services,Other Small Contracts,Blakehill Healthcare Ltd,2730.31, 22-Feb-2023
744,Revenue,CAHD,South - Commissioned Services,Other Small Contracts,Blakehill Healthcare Ltd,1482.88, 22-Feb-2023
745,Revenue,CAHD,South - Commissioned Services,Other Small Contracts,Blakehill Healthcare Ltd,953.28, 22-Feb-2023
746,Revenue,CAHD,South - Commissioned Services,Other Small Contracts,Blakehill Healthcare Ltd,615.66, 22-Feb-2023
747,Revenue,CAHD,South - Commissioned Services,Mentoring,Blakehill Healthcare Ltd,238.32, 22-Feb-2023
748,Revenue,CAHD,North - Community based support,Other Small Contracts,Blakehill Healthcare Ltd,562.70, 22-Feb-2023
749,Revenue,CAHD,North - Community based support,Other Small Contracts,Blakehill Healthcare Ltd,3668.26, 22-Feb-2023
750,Revenue,CAHD,North - Community based support,Other Small Contracts,Blakehill Healthcare Ltd,172.12, 22-Feb-2023
751,Revenue,CAHD,North - Community based support,Other Small Contracts,Blakehill Healthcare Ltd,741.44, 22-Feb-2023
752,Revenue,CAHD,South Glos Users in South Glos Homes,Permanent Nursing,Blossom Fields Nursing Home,836.76, 07-Feb-2023
753,Revenue,CAHD,South Glos Users in South Glos Homes,Permanent Nursing,Blossom Fields Nursing Home,836.76, 07-Feb-2023
754,Revenue,CAHD,South Glos Users in South Glos Homes,Permanent Nursing,Blossom Fields Nursing Home,-776.99, 07-Feb-2023
755,Revenue,CAHD,South Glos Users in South Glos Homes,Permanent Nursing,Blossom Fields Nursing Home,6036.63, 07-Feb-2023
756,Revenue,CAHD,South Glos Users in South Glos Homes,Permanent Nursing,Blossom Fields Nursing Home,836.76, 07-Feb-2023
757,Revenue,CAHD,South Glos Users in South Glos Homes,Permanent Nursing,Blossom Fields Nursing Home,836.76, 07-Feb-2023
758,Revenue,CAHD,South Glos Users in South Glos Homes,Permanent Nursing,Blossom Fields Nursing Home,836.76, 07-Feb-2023
759,Revenue,CAHD,South Glos Users in South Glos Homes,Permanent Nursing,Blossom Fields Nursing Home,836.76, 07-Feb-2023
760,Revenue,CAHD,South Glos Users in South Glos Homes,Permanent Nursing,Blossom Fields Nursing Home,836.76, 07-Feb-2023
761,Revenue,CAHD,South Glos Users in South Glos Homes,Permanent Nursing,Blossom Fields Nursing Home,836.76, 07-Feb-2023
762,Revenue,CAHD,South Glos Users in South Glos Homes,Permanent Nursing,Blossom Fields Nursing Home,836.76, 07-Feb-2023
763,Revenue,CAHD,South Glos Users in South Glos Homes,Permanent Nursing,Blossom Fields Nursing Home,836.76, 07-Feb-2023
764,Revenue,CAHD,South Glos Users in South Glos Homes,Permanent Nursing,Blossom Fields Nursing Home,836.76, 07-Feb-2023
765,Revenue,CAHD,South Glos Users in South Glos Homes,Permanent Nursing,Blossom Fields Nursing Home,836.76, 07-Feb-2023
766,Revenue,CAHD,South Glos Users in South Glos Homes,Permanent Nursing,Blossom Fields Nursing Home,836.76, 07-Feb-2023
767,Revenue,CAHD,South Glos Users in South Glos Homes,Permanent Nursing,Blossom Fields Nursing Home,836.76, 07-Feb-2023
768,Revenue,CAHD,South Glos Users in South Glos Homes,Permanent Nursing,Blossom Fields Nursing Home,836.76, 07-Feb-2023
769,Revenue,CAHD,South Glos Users in South Glos Homes,Permanent Nursing,Blossom Fields Nursing Home,836.76, 07-Feb-2023
770,Revenue,CAHD,South Glos Users in South Glos Homes,Permanent Nursing,Blossom Fields Nursing Home,-1016.07, 07-Feb-2023
771,Revenue,CAHD,South Glos Users in South Glos Homes,Permanent Nursing,Blossom Fields Nursing Home,836.76, 07-Feb-2023
772,Revenue,CAHD,South Glos Users in South Glos Homes,Permanent Nursing,Blossom Fields Nursing Home,836.76, 07-Feb-2023
773,Revenue,CAHD,South Glos Users in South Glos Homes,Permanent Nursing,Blossom Fields Nursing Home,836.76, 07-Feb-2023
774,Revenue,CAHD,South Glos Users in South Glos Homes,Permanent Nursing,Blossom Fields Nursing Home,836.76, 07-Feb-2023
775,Revenue,CAHD,South Glos Users in South Glos Homes,Permanent Nursing,Blossom Fields Nursing Home,836.76, 07-Feb-2023
776,Revenue,CAHD,South Glos Users in South Glos Homes,Permanent Nursing,Blossom Fields Nursing Home,836.76, 07-Feb-2023
777,Revenue,CAHD,South Glos Users in South Glos Homes,Permanent Nursing,Blossom Fields Nursing Home,836.76, 07-Feb-2023
778,Revenue,CAHD,South Glos Users in South Glos Homes,Permanent Nursing,Blossom Fields Nursing Home,2002.25, 07-Feb-2023
779,Revenue,CAHD,South Glos Users in South Glos Homes,Permanent Nursing,Blossom Fields Nursing Home,836.76, 07-Feb-2023
780,Revenue,CAHD,Central - Commissioned Services,Permanent Nursing,Blossom Fields Nursing Home,-4457.14, 07-Feb-2023
781,Revenue,CAHD,Central - Commissioned Services,Respite Planned - Nursing,Blossom Fields Nursing Home,322.40, 07-Feb-2023
782,Revenue,CAHD,Central - Commissioned Services,Fees & Charges Income - General,Blossom Fields Nursing Home,310.50, 07-Feb-2023
783,Revenue,CAHD,South - Commissioned Services,Permanent Nursing,Blossom Fields Nursing Home,5088.00, 07-Feb-2023
784,Revenue,CAHD,South - Commissioned Services,Permanent Nursing,Blossom Fields Nursing Home,4664.00, 07-Feb-2023
785,Revenue,CAHD,South - Commissioned Services,Permanent Nursing,Blossom Fields Nursing Home,4337.08, 07-Feb-2023
786,Revenue,CAHD,South - Commissioned Services,Fees & Charges Income - General,Blossom Fields Nursing Home,-1482.92, 07-Feb-2023
787,Revenue,CAHD,South - Commissioned Services,Fees & Charges Income - General,Blossom Fields Nursing Home,-997.40, 07-Feb-2023
788,Revenue,CAHD,South - Commissioned Services,Fees & Charges Income - General,Blossom Fields Nursing Home,-750.52, 07-Feb-2023
789,Revenue,CAHD,North - Community based support,Respite Care,Blossom Fields Nursing Home,0.00, 07-Feb-2023
790,Revenue,CAHD,North - Community based support,Permanent Nursing,Blossom Fields Nursing Home,22125.00, 07-Feb-2023
791,Revenue,CAHD,North - Community based support,Permanent Nursing,Blossom Fields Nursing Home,5204.88, 07-Feb-2023
792,Revenue,CAHD,North - Community based support,Permanent Nursing,Blossom Fields Nursing Home,6548.76, 07-Feb-2023
793,Revenue,CAHD,North - Community based support,Permanent Nursing,Blossom Fields Nursing Home,4664.00, 07-Feb-2023
794,Revenue,CAHD,North - Community based support,Permanent Nursing,Blossom Fields Nursing Home,4380.04, 07-Feb-2023
795,Revenue,CAHD,North - Community based support,Permanent Nursing,Blossom Fields Nursing Home,4379.92, 07-Feb-2023
796,Revenue,CAHD,North - Community based support,Permanent Nursing,Blossom Fields Nursing Home,4380.04, 07-Feb-2023
797,Revenue,CAHD,North - Community based support,Permanent Nursing,Blossom Fields Nursing Home,4800.00, 07-Feb-2023
798,Revenue,CAHD,North - Community based support,Respite Planned - Nursing,Blossom Fields Nursing Home,1450.81, 07-Feb-2023
799,Revenue,CAHD,North - Community based support,Fees & Charges Income - General,Blossom Fields Nursing Home,-2277.06, 07-Feb-2023
800,Revenue,CAHD,North - Community based support,Fees & Charges Income - General,Blossom Fields Nursing Home,-627.80, 07-Feb-2023
801,Revenue,CAHD,North - Community based support,Fees & Charges Income - General,Blossom Fields Nursing Home,-533.56, 07-Feb-2023
802,Revenue,CAHD,North - Community based support,Fees & Charges Income - General,Blossom Fields Nursing Home,-663.80, 07-Feb-2023
803,Revenue,CAHD,North - Community based support,Fees & Charges Income - General,Blossom Fields Nursing Home,-784.24, 07-Feb-2023
804,Revenue,CAHD,North - Community based support,Fees & Charges Income - General,Blossom Fields Nursing Home,-1742.72, 07-Feb-2023
805,Revenue,CAHD,South Glos Users in South Glos Homes,Permanent Nursing,Blossom Fields Nursing Home,836.76, 07-Feb-2023
806,Revenue,CAHD,South Glos Users in South Glos Homes,Permanent Nursing,Blossom Fields Nursing Home,836.76, 07-Feb-2023
807,Revenue,CAHD,South Glos Users in South Glos Homes,Permanent Nursing,Blossom Fields Nursing Home,836.76, 07-Feb-2023
808,Revenue,CAHD,South Glos Users in South Glos Homes,Permanent Nursing,Blossom Fields Nursing Home,836.76, 07-Feb-2023
809,Revenue,CAHD,South Glos Users in South Glos Homes,Permanent Nursing,Blossom Fields Nursing Home,836.76, 07-Feb-2023
810,Revenue,CAHD,South Glos Users in South Glos Homes,Permanent Nursing,Blossom Fields Nursing Home,836.76, 07-Feb-2023
811,Revenue,CAHD,South Glos Users in South Glos Homes,Permanent Nursing,Blossom Fields Nursing Home,836.76, 07-Feb-2023
812,Revenue,CAHD,South Glos Users in South Glos Homes,Permanent Nursing,Blossom Fields Nursing Home,836.76, 07-Feb-2023
813,Revenue,CAHD,South Glos Users in South Glos Homes,Permanent Nursing,Blossom Fields Nursing Home,836.76, 07-Feb-2023
814,Revenue,CAHD,South Glos Users in South Glos Homes,Permanent Nursing,Blossom Fields Nursing Home,836.76, 07-Feb-2023
815,Revenue,CAHD,South Glos Users in South Glos Homes,Permanent Nursing,Blossom Fields Nursing Home,836.76, 07-Feb-2023
816,Revenue,CAHD,South Glos Users in South Glos Homes,Permanent Nursing,Blossom Fields Nursing Home,836.76, 07-Feb-2023
817,Revenue,CAHD,South Glos Users in South Glos Homes,Permanent Nursing,Blossom Fields Nursing Home,836.76, 07-Feb-2023
818,Revenue,CAHD,South Glos Users in South Glos Homes,Permanent Nursing,Blossom Fields Nursing Home,836.76, 07-Feb-2023
819,Revenue,CAHD,South Glos Users in South Glos Homes,Permanent Nursing,Blossom Fields Nursing Home,836.76, 07-Feb-2023
820,Revenue,CAHD,South Glos Users in South Glos Homes,Permanent Nursing,Blossom Fields Nursing Home,836.76, 07-Feb-2023
821,Revenue,CAHD,South Glos Users in South Glos Homes,Permanent Nursing,Blossom Fields Nursing Home,836.76, 07-Feb-2023
822,Revenue,CAHD,South Glos Users in South Glos Homes,Permanent Nursing,Blossom Fields Nursing Home,836.76, 07-Feb-2023
823,Revenue,CAHD,South Glos Users in South Glos Homes,Permanent Nursing,Blossom Fields Nursing Home,836.76, 07-Feb-2023
824,Revenue,CAHD,South Glos Users in South Glos Homes,Permanent Nursing,Blossom Fields Nursing Home,836.76, 07-Feb-2023
825,Revenue,CAHD,South Glos Users in South Glos Homes,Permanent Nursing,Blossom Fields Nursing Home,-986.18, 07-Feb-2023
826,Revenue,CAHD,South Glos Users in South Glos Homes,Permanent Nursing,Blossom Fields Nursing Home,836.76, 07-Feb-2023
827,Revenue,CAHD,South Glos Users in South Glos Homes,Permanent Nursing,Blossom Fields Nursing Home,836.76, 07-Feb-2023
828,Revenue,CAHD,South Glos Users in South Glos Homes,Permanent Nursing,Blossom Fields Nursing Home,836.76, 07-Feb-2023
829,Revenue,CAHD,South Glos Users in South Glos Homes,Permanent Nursing,Blossom Fields Nursing Home,836.76, 07-Feb-2023
830,Revenue,CAHD,South Glos Users in South Glos Homes,Permanent Nursing,Blossom Fields Nursing Home,836.76, 07-Feb-2023
831,Revenue,CAHD,South Glos Users in South Glos Homes,Permanent Nursing,Blossom Fields Nursing Home,836.76, 07-Feb-2023
832,Revenue,CAHD,South Glos Users in South Glos Homes,Permanent Nursing,Blossom Fields Nursing Home,836.76, 07-Feb-2023
833,Revenue,CAHD,South Glos Users in South Glos Homes,Permanent Nursing,Blossom Fields Nursing Home,836.76, 07-Feb-2023
834,Revenue,CAHD,South Glos Users in South Glos Homes,Permanent Nursing,Blossom Fields Nursing Home,836.76, 07-Feb-2023
835,Revenue,CAHD,South Glos Users in South Glos Homes,Permanent Nursing,Blossom Fields Nursing Home,836.76, 07-Feb-2023
836,Revenue,CAHD,South Glos Users in South Glos Homes,Permanent Nursing,Blossom Fields Nursing Home,836.76, 07-Feb-2023
837,Revenue,CAHD,South Glos Users in South Glos Homes,Permanent Nursing,Blossom Fields Nursing Home,836.76, 07-Feb-2023
838,Revenue,CAHD,South Glos Users in South Glos Homes,Permanent Nursing,Blossom Fields Nursing Home,836.76, 07-Feb-2023
839,Revenue,CAHD,South Glos Users in South Glos Homes,Permanent Nursing,Blossom Fields Nursing Home,836.76, 07-Feb-2023
840,Revenue,CAHD,South Glos Users in South Glos Homes,Permanent Nursing,Blossom Fields Nursing Home,836.76, 07-Feb-2023
841,Revenue,CAHD,South Glos Users in South Glos Homes,Permanent Nursing,Blossom Fields Nursing Home,836.76, 07-Feb-2023
842,Revenue,CAHD,South Glos Users in South Glos Homes,Permanent Nursing,Blossom Fields Nursing Home,836.76, 07-Feb-2023
843,Revenue,CAHD,South Glos Users in South Glos Homes,Permanent Nursing,Blossom Fields Nursing Home,836.76, 07-Feb-2023
844,Revenue,CAHD,South Glos Users in South Glos Homes,Permanent Nursing,Blossom Fields Nursing Home,836.76, 07-Feb-2023
845,Revenue,CAHD,South Glos Users in South Glos Homes,Permanent Nursing,Blossom Fields Nursing Home,836.76, 07-Feb-2023
846,Revenue,CAHD,South Glos Users in South Glos Homes,Permanent Nursing,Blossom Fields Nursing Home,1016.07, 07-Feb-2023
847,Revenue,CAHD,South Glos Users in South Glos Homes,Permanent Nursing,Blossom Fields Nursing Home,836.76, 07-Feb-2023
848,Revenue,CAHD,South Glos Users in South Glos Homes,Permanent Nursing,Blossom Fields Nursing Home,836.76, 07-Feb-2023
849,Revenue,CAHD,South Glos Users in South Glos Homes,Permanent Nursing,Blossom Fields Nursing Home,836.76, 07-Feb-2023
850,Revenue,CAHD,South Glos Users in South Glos Homes,Permanent Nursing,Blossom Fields Nursing Home,836.76, 07-Feb-2023
851,Revenue,CAHD,South Glos Users in South Glos Homes,Permanent Nursing,Blossom Fields Nursing Home,836.76, 07-Feb-2023
852,Revenue,CAHD,South Glos Users in South Glos Homes,Permanent Nursing,Blossom Fields Nursing Home,836.76, 07-Feb-2023
853,Revenue,CAHD,Central - Commissioned Services,Permanent Residential,Blossom Fields Nursing Home,4028.00, 07-Feb-2023
854,Revenue,CAHD,Central - Commissioned Services,Permanent Residential,Blossom Fields Nursing Home,3816.00, 07-Feb-2023
855,Revenue,CAHD,Central - Commissioned Services,Permanent Residential,Blossom Fields Nursing Home,6242.86, 07-Feb-2023
856,Revenue,CAHD,Central - Commissioned Services,Permanent Nursing,Blossom Fields Nursing Home,5431.24, 07-Feb-2023
857,Revenue,CAHD,Central - Commissioned Services,Permanent Nursing,Blossom Fields Nursing Home,4380.04, 07-Feb-2023
858,Revenue,CAHD,Central - Commissioned Services,Permanent Nursing,Blossom Fields Nursing Home,4380.04, 07-Feb-2023
859,Revenue,CAHD,Central - Commissioned Services,Permanent Nursing,Blossom Fields Nursing Home,5078.20, 07-Feb-2023
860,Revenue,CAHD,Central - Commissioned Services,Permanent Nursing,Blossom Fields Nursing Home,-6019.95, 07-Feb-2023
861,Revenue,CAHD,Central - Commissioned Services,Permanent Nursing,Blossom Fields Nursing Home,4380.04, 07-Feb-2023
862,Revenue,CAHD,Central - Commissioned Services,Permanent Nursing,Blossom Fields Nursing Home,4600.00, 07-Feb-2023
863,Revenue,CAHD,Central - Commissioned Services,Permanent Nursing,Blossom Fields Nursing Home,4600.00, 07-Feb-2023
864,Revenue,CAHD,Central - Commissioned Services,Permanent Nursing,Blossom Fields Nursing Home,5421.92, 07-Feb-2023
865,Revenue,CAHD,Central - Commissioned Services,Permanent Nursing,Blossom Fields Nursing Home,4876.00, 07-Feb-2023
866,Revenue,CAHD,Central - Commissioned Services,Permanent Nursing,Blossom Fields Nursing Home,4600.00, 07-Feb-2023
867,Revenue,CAHD,Central - Commissioned Services,Respite Planned - Nursing,Blossom Fields Nursing Home,2300.00, 07-Feb-2023
868,Revenue,CAHD,Central - Commissioned Services,Fees & Charges Income - General,Blossom Fields Nursing Home,-978.56, 07-Feb-2023
869,Revenue,CAHD,Central - Commissioned Services,Fees & Charges Income - General,Blossom Fields Nursing Home,-627.80, 07-Feb-2023
870,Revenue,CAHD,Central - Commissioned Services,Fees & Charges Income - General,Blossom Fields Nursing Home,-1241.76, 07-Feb-2023
871,Revenue,CAHD,Central - Commissioned Services,Fees & Charges Income - General,Blossom Fields Nursing Home,-2103.80, 07-Feb-2023
872,Revenue,CAHD,Central - Commissioned Services,Fees & Charges Income - General,Blossom Fields Nursing Home,-486.88, 07-Feb-2023
873,Revenue,CAHD,Central - Commissioned Services,Fees & Charges Income - General,Blossom Fields Nursing Home,1552.68, 07-Feb-2023
874,Revenue,CAHD,Central - Commissioned Services,Fees & Charges Income - General,Blossom Fields Nursing Home,-1186.12, 07-Feb-2023
875,Revenue,CAHD,Central - Commissioned Services,Fees & Charges Income - General,Blossom Fields Nursing Home,-866.68, 07-Feb-2023
876,Revenue,CAHD,Central - Commissioned Services,Fees & Charges Income - General,Blossom Fields Nursing Home,-853.43, 07-Feb-2023
877,Revenue,CAHD,South - Commissioned Services,Permanent Nursing,Blossom Fields Nursing Home,4179.64, 07-Feb-2023
878,Revenue,CAHD,South - Commissioned Services,Permanent Nursing,Blossom Fields Nursing Home,4381.20, 07-Feb-2023
879,Revenue,CAHD,South - Commissioned Services,Permanent Nursing,Blossom Fields Nursing Home,9692.86, 07-Feb-2023
880,Revenue,CAHD,South - Commissioned Services,Permanent Nursing,Blossom Fields Nursing Home,4600.00, 07-Feb-2023
881,Revenue,CAHD,South - Commissioned Services,Permanent Nursing,Blossom Fields Nursing Home,5300.00, 07-Feb-2023
882,Revenue,CAHD,South - Commissioned Services,Permanent Nursing,Blossom Fields Nursing Home,3816.00, 07-Feb-2023
883,Revenue,CAHD,South - Commissioned Services,Fees & Charges Income - General,Blossom Fields Nursing Home,-1146.60, 07-Feb-2023
884,Revenue,CAHD,South - Commissioned Services,Fees & Charges Income - General,Blossom Fields Nursing Home,-928.60, 07-Feb-2023
885,Revenue,CAHD,South - Commissioned Services,Fees & Charges Income - General,Blossom Fields Nursing Home,-1322.86, 07-Feb-2023
886,Revenue,CAHD,South - Commissioned Services,Fees & Charges Income - General,Blossom Fields Nursing Home,-635.48, 07-Feb-2023
887,Revenue,CAHD,North - Community based support,Permanent Nursing,Blossom Fields Nursing Home,4381.20, 07-Feb-2023
888,Revenue,CAHD,North - Community based support,Fees & Charges Income - General,Blossom Fields Nursing Home,-627.80, 07-Feb-2023
889,Revenue,CAHD,North - S117,Permanent Residential,Blossom Fields Nursing Home,5205.04, 07-Feb-2023
890,Revenue,CAHD,Statemented Support Payments to OLAs,Other L.A.s - General,Blue Coat CE VA Primary School,1292.50, 24-Feb-2023
891,Revenue,CAHD,Central - Commissioned Services,Other Small Contracts,Bluebird Care (South Gloucestershire),132.09, 07-Feb-2023
892,Revenue,CAHD,Central - Commissioned Services,Other Small Contracts,Bluebird Care (South Gloucestershire),761.46, 07-Feb-2023
893,Revenue,CAHD,Central - Commissioned Services,Other Small Contracts,Bluebird Care (South Gloucestershire),139.86, 07-Feb-2023
894,Revenue,CAHD,Central - Commissioned Services,Other Small Contracts,Bluebird Care (South Gloucestershire),23.31, 07-Feb-2023
895,Revenue,CAHD,Central - Commissioned Services,Other Small Contracts,Bluebird Care (South Gloucestershire),1818.18, 07-Feb-2023
896,Revenue,CAHD,Central - Commissioned Services,Other Small Contracts,Bluebird Care (South Gloucestershire),147.63, 07-Feb-2023
897,Revenue,CAHD,Central - Commissioned Services,Other Small Contracts,Bluebird Care (South Gloucestershire),279.72, 07-Feb-2023
898,Revenue,CAHD,Central - Commissioned Services,Other Small Contracts,Bluebird Care (South Gloucestershire),31.08, 07-Feb-2023
899,Revenue,CAHD,Central - Commissioned Services,Other Small Contracts,Bluebird Care (South Gloucestershire),225.33, 07-Feb-2023
900,Revenue,CAHD,Central - Commissioned Services,Other Small Contracts,Bluebird Care (South Gloucestershire),675.99, 07-Feb-2023
901,Revenue,CAHD,Central - Commissioned Services,Other Small Contracts,Bluebird Care (South Gloucestershire),163.17, 07-Feb-2023
902,Revenue,CAHD,Central - Commissioned Services,Other Small Contracts,Bluebird Care (South Gloucestershire),124.32, 07-Feb-2023
903,Revenue,CAHD,Central - Commissioned Services,Other Small Contracts,Bluebird Care (South Gloucestershire),955.71, 07-Feb-2023
904,Revenue,CAHD,Central - Commissioned Services,Other Small Contracts,Bluebird Care (South Gloucestershire),31.08, 07-Feb-2023
905,Revenue,CAHD,Central - Commissioned Services,Other Small Contracts,Bluebird Care (South Gloucestershire),46.62, 07-Feb-2023
906,Revenue,CAHD,Central - Commissioned Services,Other Small Contracts,Bluebird Care (South Gloucestershire),202.02, 07-Feb-2023
907,Revenue,CAHD,Central - Commissioned Services,Other Small Contracts,Bluebird Care (South Gloucestershire),1399.44, 07-Feb-2023
908,Revenue,CAHD,Central - Commissioned Services,Other Small Contracts,Bluebird Care (South Gloucestershire),108.78, 07-Feb-2023
909,Revenue,CAHD,Central - Commissioned Services,Other Small Contracts,Bluebird Care (South Gloucestershire),349.65, 07-Feb-2023
910,Revenue,CAHD,Central - Commissioned Services,Other Small Contracts,Bluebird Care (South Gloucestershire),466.20, 07-Feb-2023
911,Revenue,CAHD,Central - Commissioned Services,Other Small Contracts,Bluebird Care (South Gloucestershire),186.48, 07-Feb-2023
912,Revenue,CAHD,Central - Commissioned Services,Other Small Contracts,Bluebird Care (South Gloucestershire),629.37, 07-Feb-2023
913,Revenue,CAHD,Central - Commissioned Services,Other Small Contracts,Bluebird Care (South Gloucestershire),124.32, 07-Feb-2023
914,Revenue,CAHD,Central - Commissioned Services,Other Small Contracts,Bluebird Care (South Gloucestershire),663.41, 07-Feb-2023
915,Revenue,CAHD,Central - Commissioned Services,Other Small Contracts,Bluebird Care (South Gloucestershire),85.47, 07-Feb-2023
916,Revenue,CAHD,Central - Commissioned Services,Other Small Contracts,Bluebird Care (South Gloucestershire),101.01, 07-Feb-2023
917,Revenue,CAHD,Central - Commissioned Services,Other Small Contracts,Bluebird Care (South Gloucestershire),528.36, 07-Feb-2023
918,Revenue,CAHD,Central - Commissioned Services,Other Small Contracts,Bluebird Care (South Gloucestershire),93.24, 07-Feb-2023
919,Revenue,CAHD,South - Commissioned Services,Other Small Contracts,Bluebird Care (South Gloucestershire),481.74, 07-Feb-2023
920,Revenue,CAHD,South - Commissioned Services,Other Small Contracts,Bluebird Care (South Gloucestershire),132.09, 07-Feb-2023
921,Revenue,CAHD,South - Commissioned Services,Other Small Contracts,Bluebird Care (South Gloucestershire),411.81, 07-Feb-2023
922,Revenue,CAHD,South - Commissioned Services,Other Small Contracts,Bluebird Care (South Gloucestershire),217.56, 07-Feb-2023
923,Revenue,CAHD,South - Commissioned Services,Other Small Contracts,Bluebird Care (South Gloucestershire),334.11, 07-Feb-2023
924,Revenue,CAHD,South - Commissioned Services,Other Small Contracts,Bluebird Care (South Gloucestershire),248.64, 07-Feb-2023
925,Revenue,CAHD,South - Commissioned Services,Other Small Contracts,Bluebird Care (South Gloucestershire),1399.44, 07-Feb-2023
926,Revenue,CAHD,South - Commissioned Services,Other Small Contracts,Bluebird Care (South Gloucestershire),62.16, 07-Feb-2023
927,Revenue,CAHD,South - Commissioned Services,Other Small Contracts,Bluebird Care (South Gloucestershire),93.24, 07-Feb-2023
928,Revenue,CAHD,South - Commissioned Services,Other Small Contracts,Bluebird Care (South Gloucestershire),101.01, 07-Feb-2023
929,Revenue,CAHD,South - Commissioned Services,Other Small Contracts,Bluebird Care (South Gloucestershire),62.16, 07-Feb-2023
930,Revenue,CAHD,South - Commissioned Services,Other Small Contracts,Bluebird Care (South Gloucestershire),357.42, 07-Feb-2023
931,Revenue,CAHD,North - Community based support,Other Small Contracts,Bluebird Care (South Gloucestershire),341.88, 07-Feb-2023
932,Revenue,CAHD,North - Community based support,Other Small Contracts,Bluebird Care (South Gloucestershire),202.02, 07-Feb-2023
933,Revenue,CAHD,North - Community based support,Other Small Contracts,Bluebird Care (South Gloucestershire),46.62, 07-Feb-2023
934,Revenue,CAHD,North - Community based support,Other Small Contracts,Bluebird Care (South Gloucestershire),69.93, 07-Feb-2023
935,Revenue,CAHD,North - Community based support,Other Small Contracts,Bluebird Care (South Gloucestershire),1631.49, 07-Feb-2023
936,Revenue,CAHD,North - Community based support,Other Small Contracts,Bluebird Care (South Gloucestershire),124.32, 07-Feb-2023
937,Revenue,CAHD,North - Community based support,Other Small Contracts,Bluebird Care (South Gloucestershire),310.80, 07-Feb-2023
938,Revenue,CAHD,North - Community based support,Other Small Contracts,Bluebird Care (South Gloucestershire),62.16, 07-Feb-2023
939,Revenue,CAHD,North - Community based support,Other Small Contracts,Bluebird Care (South Gloucestershire),139.86, 07-Feb-2023
940,Revenue,CAHD,North - Community based support,Other Small Contracts,Bluebird Care (South Gloucestershire),1750.84, 07-Feb-2023
941,Revenue,CAHD,Central - Commissioned Services,Other Small Contracts,Bluebird Care (South Gloucestershire),147.63, 07-Feb-2023
942,Revenue,CAHD,Central - Commissioned Services,Other Small Contracts,Bluebird Care (South Gloucestershire),116.55, 07-Feb-2023
943,Revenue,CAHD,Central - Commissioned Services,Other Small Contracts,Bluebird Care (South Gloucestershire),761.46, 07-Feb-2023
944,Revenue,CAHD,Central - Commissioned Services,Other Small Contracts,Bluebird Care (South Gloucestershire),132.09, 07-Feb-2023
945,Revenue,CAHD,Central - Commissioned Services,Other Small Contracts,Bluebird Care (South Gloucestershire),23.31, 07-Feb-2023
946,Revenue,CAHD,Central - Commissioned Services,Other Small Contracts,Bluebird Care (South Gloucestershire),1818.18, 07-Feb-2023
947,Revenue,CAHD,Central - Commissioned Services,Other Small Contracts,Bluebird Care (South Gloucestershire),155.40, 07-Feb-2023
948,Revenue,CAHD,Central - Commissioned Services,Other Small Contracts,Bluebird Care (South Gloucestershire),279.72, 07-Feb-2023
949,Revenue,CAHD,Central - Commissioned Services,Other Small Contracts,Bluebird Care (South Gloucestershire),31.08, 07-Feb-2023
950,Revenue,CAHD,Central - Commissioned Services,Other Small Contracts,Bluebird Care (South Gloucestershire),217.56, 07-Feb-2023
951,Revenue,CAHD,Central - Commissioned Services,Other Small Contracts,Bluebird Care (South Gloucestershire),660.45, 07-Feb-2023
952,Revenue,CAHD,Central - Commissioned Services,Other Small Contracts,Bluebird Care (South Gloucestershire),163.17, 07-Feb-2023
953,Revenue,CAHD,Central - Commissioned Services,Other Small Contracts,Bluebird Care (South Gloucestershire),124.32, 07-Feb-2023
954,Revenue,CAHD,Central - Commissioned Services,Other Small Contracts,Bluebird Care (South Gloucestershire),932.40, 07-Feb-2023
955,Revenue,CAHD,Central - Commissioned Services,Other Small Contracts,Bluebird Care (South Gloucestershire),31.08, 07-Feb-2023
956,Revenue,CAHD,Central - Commissioned Services,Other Small Contracts,Bluebird Care (South Gloucestershire),38.85, 07-Feb-2023
957,Revenue,CAHD,Central - Commissioned Services,Other Small Contracts,Bluebird Care (South Gloucestershire),186.48, 07-Feb-2023
958,Revenue,CAHD,Central - Commissioned Services,Other Small Contracts,Bluebird Care (South Gloucestershire),1399.44, 07-Feb-2023
959,Revenue,CAHD,Central - Commissioned Services,Other Small Contracts,Bluebird Care (South Gloucestershire),147.63, 07-Feb-2023
960,Revenue,CAHD,Central - Commissioned Services,Other Small Contracts,Bluebird Care (South Gloucestershire),318.57, 07-Feb-2023
961,Revenue,CAHD,Central - Commissioned Services,Other Small Contracts,Bluebird Care (South Gloucestershire),427.35, 07-Feb-2023
962,Revenue,CAHD,Central - Commissioned Services,Other Small Contracts,Bluebird Care (South Gloucestershire),186.48, 07-Feb-2023
963,Revenue,CAHD,Central - Commissioned Services,Other Small Contracts,Bluebird Care (South Gloucestershire),629.37, 07-Feb-2023
964,Revenue,CAHD,Central - Commissioned Services,Other Small Contracts,Bluebird Care (South Gloucestershire),124.32, 07-Feb-2023
965,Revenue,CAHD,Central - Commissioned Services,Other Small Contracts,Bluebird Care (South Gloucestershire),624.56, 07-Feb-2023
966,Revenue,CAHD,Central - Commissioned Services,Other Small Contracts,Bluebird Care (South Gloucestershire),93.24, 07-Feb-2023
967,Revenue,CAHD,Central - Commissioned Services,Other Small Contracts,Bluebird Care (South Gloucestershire),194.25, 07-Feb-2023
968,Revenue,CAHD,Central - Commissioned Services,Other Small Contracts,Bluebird Care (South Gloucestershire),520.59, 07-Feb-2023
969,Revenue,CAHD,Central - Commissioned Services,Other Small Contracts,Bluebird Care (South Gloucestershire),357.42, 07-Feb-2023
970,Revenue,CAHD,South - Commissioned Services,Other Small Contracts,Bluebird Care (South Gloucestershire),497.28, 07-Feb-2023
971,Revenue,CAHD,South - Commissioned Services,Other Small Contracts,Bluebird Care (South Gloucestershire),155.40, 07-Feb-2023
972,Revenue,CAHD,South - Commissioned Services,Other Small Contracts,Bluebird Care (South Gloucestershire),404.04, 07-Feb-2023
973,Revenue,CAHD,South - Commissioned Services,Other Small Contracts,Bluebird Care (South Gloucestershire),279.72, 07-Feb-2023
974,Revenue,CAHD,South - Commissioned Services,Other Small Contracts,Bluebird Care (South Gloucestershire),372.96, 07-Feb-2023
975,Revenue,CAHD,South - Commissioned Services,Other Small Contracts,Bluebird Care (South Gloucestershire),271.95, 07-Feb-2023
976,Revenue,CAHD,South - Commissioned Services,Other Small Contracts,Bluebird Care (South Gloucestershire),1399.44, 07-Feb-2023
977,Revenue,CAHD,South - Commissioned Services,Other Small Contracts,Bluebird Care (South Gloucestershire),62.16, 07-Feb-2023
978,Revenue,CAHD,South - Commissioned Services,Other Small Contracts,Bluebird Care (South Gloucestershire),93.24, 07-Feb-2023
979,Revenue,CAHD,South - Commissioned Services,Other Small Contracts,Bluebird Care (South Gloucestershire),124.32, 07-Feb-2023
980,Revenue,CAHD,South - Commissioned Services,Other Small Contracts,Bluebird Care (South Gloucestershire),132.09, 07-Feb-2023
981,Revenue,CAHD,South - Commissioned Services,Other Small Contracts,Bluebird Care (South Gloucestershire),62.16, 07-Feb-2023
982,Revenue,CAHD,South - Commissioned Services,Other Small Contracts,Bluebird Care (South Gloucestershire),372.96, 07-Feb-2023
983,Revenue,CAHD,North - Community based support,Other Small Contracts,Bluebird Care (South Gloucestershire),334.11, 07-Feb-2023
984,Revenue,CAHD,North - Community based support,Other Small Contracts,Bluebird Care (South Gloucestershire),155.40, 07-Feb-2023
985,Revenue,CAHD,North - Community based support,Other Small Contracts,Bluebird Care (South Gloucestershire),62.16, 07-Feb-2023
986,Revenue,CAHD,North - Community based support,Other Small Contracts,Bluebird Care (South Gloucestershire),62.16, 07-Feb-2023
987,Revenue,CAHD,North - Community based support,Other Small Contracts,Bluebird Care (South Gloucestershire),1639.26, 07-Feb-2023
988,Revenue,CAHD,North - Community based support,Other Small Contracts,Bluebird Care (South Gloucestershire),116.55, 07-Feb-2023
989,Revenue,CAHD,North - Community based support,Other Small Contracts,Bluebird Care (South Gloucestershire),318.57, 07-Feb-2023
990,Revenue,CAHD,North - Community based support,Other Small Contracts,Bluebird Care (South Gloucestershire),62.16, 07-Feb-2023
991,Revenue,CAHD,North - Community based support,Other Small Contracts,Bluebird Care (South Gloucestershire),116.55, 07-Feb-2023
992,Revenue,CAHD,North - Community based support,Other Small Contracts,Bluebird Care (South Gloucestershire),1750.84, 07-Feb-2023
993,Revenue,CAHD,Central - Commissioned Services,Other Small Contracts,Bluebird Care (South Gloucestershire),163.17, 22-Feb-2023
994,Revenue,CAHD,Central - Commissioned Services,Other Small Contracts,Bluebird Care (South Gloucestershire),116.55, 22-Feb-2023
995,Revenue,CAHD,Central - Commissioned Services,Other Small Contracts,Bluebird Care (South Gloucestershire),714.84, 22-Feb-2023
996,Revenue,CAHD,Central - Commissioned Services,Other Small Contracts,Bluebird Care (South Gloucestershire),124.32, 22-Feb-2023
997,Revenue,CAHD,Central - Commissioned Services,Other Small Contracts,Bluebird Care (South Gloucestershire),23.31, 22-Feb-2023
998,Revenue,CAHD,Central - Commissioned Services,Other Small Contracts,Bluebird Care (South Gloucestershire),1833.72, 22-Feb-2023
999,Revenue,CAHD,Central - Commissioned Services,Other Small Contracts,Bluebird Care (South Gloucestershire),147.63, 22-Feb-2023
1000,Revenue,CAHD,Central - Commissioned Services,Other Small Contracts,Bluebird Care (South Gloucestershire),279.72, 22-Feb-2023
1001,Revenue,CAHD,Central - Commissioned Services,Other Small Contracts,Bluebird Care (South Gloucestershire),31.08, 22-Feb-2023
1002,Revenue,CAHD,Central - Commissioned Services,Other Small Contracts,Bluebird Care (South Gloucestershire),217.56, 22-Feb-2023
1003,Revenue,CAHD,Central - Commissioned Services,Other Small Contracts,Bluebird Care (South Gloucestershire),660.45, 22-Feb-2023
1004,Revenue,CAHD,Central - Commissioned Services,Other Small Contracts,Bluebird Care (South Gloucestershire),139.86, 22-Feb-2023
1005,Revenue,CAHD,Central - Commissioned Services,Other Small Contracts,Bluebird Care (South Gloucestershire),124.32, 22-Feb-2023
1006,Revenue,CAHD,Central - Commissioned Services,Other Small Contracts,Bluebird Care (South Gloucestershire),971.25, 22-Feb-2023
1007,Revenue,CAHD,Central - Commissioned Services,Other Small Contracts,Bluebird Care (South Gloucestershire),31.08, 22-Feb-2023
1008,Revenue,CAHD,Central - Commissioned Services,Other Small Contracts,Bluebird Care (South Gloucestershire),46.62, 22-Feb-2023
1009,Revenue,CAHD,Central - Commissioned Services,Other Small Contracts,Bluebird Care (South Gloucestershire),194.25, 22-Feb-2023
1010,Revenue,CAHD,Central - Commissioned Services,Other Small Contracts,Bluebird Care (South Gloucestershire),1399.44, 22-Feb-2023
1011,Revenue,CAHD,Central - Commissioned Services,Other Small Contracts,Bluebird Care (South Gloucestershire),124.32, 22-Feb-2023
1012,Revenue,CAHD,Central - Commissioned Services,Other Small Contracts,Bluebird Care (South Gloucestershire),334.11, 22-Feb-2023
1013,Revenue,CAHD,Central - Commissioned Services,Other Small Contracts,Bluebird Care (South Gloucestershire),450.66, 22-Feb-2023
1014,Revenue,CAHD,Central - Commissioned Services,Other Small Contracts,Bluebird Care (South Gloucestershire),178.71, 22-Feb-2023
1015,Revenue,CAHD,Central - Commissioned Services,Other Small Contracts,Bluebird Care (South Gloucestershire),637.14, 22-Feb-2023
1016,Revenue,CAHD,Central - Commissioned Services,Other Small Contracts,Bluebird Care (South Gloucestershire),124.32, 22-Feb-2023
1017,Revenue,CAHD,Central - Commissioned Services,Other Small Contracts,Bluebird Care (South Gloucestershire),624.56, 22-Feb-2023
1018,Revenue,CAHD,Central - Commissioned Services,Other Small Contracts,Bluebird Care (South Gloucestershire),101.01, 22-Feb-2023
1019,Revenue,CAHD,Central - Commissioned Services,Other Small Contracts,Bluebird Care (South Gloucestershire),116.55, 22-Feb-2023
1020,Revenue,CAHD,Central - Commissioned Services,Other Small Contracts,Bluebird Care (South Gloucestershire),528.36, 22-Feb-2023
1021,Revenue,CAHD,Central - Commissioned Services,Other Small Contracts,Bluebird Care (South Gloucestershire),365.19, 22-Feb-2023
1022,Revenue,CAHD,South - Commissioned Services,Other Small Contracts,Bluebird Care (South Gloucestershire),411.81, 22-Feb-2023
1023,Revenue,CAHD,South - Commissioned Services,Other Small Contracts,Bluebird Care (South Gloucestershire),116.55, 22-Feb-2023
1024,Revenue,CAHD,South - Commissioned Services,Other Small Contracts,Bluebird Care (South Gloucestershire),404.04, 22-Feb-2023
1025,Revenue,CAHD,South - Commissioned Services,Other Small Contracts,Bluebird Care (South Gloucestershire),209.79, 22-Feb-2023
1026,Revenue,CAHD,South - Commissioned Services,Other Small Contracts,Bluebird Care (South Gloucestershire),326.34, 22-Feb-2023
1027,Revenue,CAHD,South - Commissioned Services,Other Small Contracts,Bluebird Care (South Gloucestershire),240.87, 22-Feb-2023
1028,Revenue,CAHD,South - Commissioned Services,Other Small Contracts,Bluebird Care (South Gloucestershire),1399.44, 22-Feb-2023
1029,Revenue,CAHD,South - Commissioned Services,Other Small Contracts,Bluebird Care (South Gloucestershire),62.16, 22-Feb-2023
1030,Revenue,CAHD,South - Commissioned Services,Other Small Contracts,Bluebird Care (South Gloucestershire),85.47, 22-Feb-2023
1031,Revenue,CAHD,South - Commissioned Services,Other Small Contracts,Bluebird Care (South Gloucestershire),101.01, 22-Feb-2023
1032,Revenue,CAHD,South - Commissioned Services,Other Small Contracts,Bluebird Care (South Gloucestershire),217.56, 22-Feb-2023
1033,Revenue,CAHD,South - Commissioned Services,Other Small Contracts,Bluebird Care (South Gloucestershire),62.16, 22-Feb-2023
1034,Revenue,CAHD,South - Commissioned Services,Other Small Contracts,Bluebird Care (South Gloucestershire),349.65, 22-Feb-2023
1035,Revenue,CAHD,North - Community based support,Other Small Contracts,Bluebird Care (South Gloucestershire),341.88, 22-Feb-2023
1036,Revenue,CAHD,North - Community based support,Other Small Contracts,Bluebird Care (South Gloucestershire),147.63, 22-Feb-2023
1037,Revenue,CAHD,North - Community based support,Other Small Contracts,Bluebird Care (South Gloucestershire),62.16, 22-Feb-2023
1038,Revenue,CAHD,North - Community based support,Other Small Contracts,Bluebird Care (South Gloucestershire),1615.95, 22-Feb-2023
1039,Revenue,CAHD,North - Community based support,Other Small Contracts,Bluebird Care (South Gloucestershire),139.86, 22-Feb-2023
1040,Revenue,CAHD,North - Community based support,Other Small Contracts,Bluebird Care (South Gloucestershire),326.34, 22-Feb-2023
1041,Revenue,CAHD,North - Community based support,Other Small Contracts,Bluebird Care (South Gloucestershire),69.93, 22-Feb-2023
1042,Revenue,CAHD,North - Community based support,Other Small Contracts,Bluebird Care (South Gloucestershire),132.09, 22-Feb-2023
1043,Revenue,CAHD,North - Community based support,Other Small Contracts,Bluebird Care (South Gloucestershire),1500.72, 22-Feb-2023
1044,Revenue,CAHD,Central - Commissioned Services,Other Small Contracts,Bluebird Care (South Gloucestershire),155.40, 22-Feb-2023
1045,Revenue,CAHD,Central - Commissioned Services,Other Small Contracts,Bluebird Care (South Gloucestershire),108.78, 22-Feb-2023
1046,Revenue,CAHD,Central - Commissioned Services,Other Small Contracts,Bluebird Care (South Gloucestershire),753.69, 22-Feb-2023
1047,Revenue,CAHD,Central - Commissioned Services,Other Small Contracts,Bluebird Care (South Gloucestershire),147.63, 22-Feb-2023
1048,Revenue,CAHD,Central - Commissioned Services,Other Small Contracts,Bluebird Care (South Gloucestershire),23.31, 22-Feb-2023
1049,Revenue,CAHD,Central - Commissioned Services,Other Small Contracts,Bluebird Care (South Gloucestershire),1825.95, 22-Feb-2023
1050,Revenue,CAHD,Central - Commissioned Services,Other Small Contracts,Bluebird Care (South Gloucestershire),155.40, 22-Feb-2023
1051,Revenue,CAHD,Central - Commissioned Services,Other Small Contracts,Bluebird Care (South Gloucestershire),279.72, 22-Feb-2023
1052,Revenue,CAHD,Central - Commissioned Services,Other Small Contracts,Bluebird Care (South Gloucestershire),23.31, 22-Feb-2023
1053,Revenue,CAHD,Central - Commissioned Services,Other Small Contracts,Bluebird Care (South Gloucestershire),194.25, 22-Feb-2023
1054,Revenue,CAHD,Central - Commissioned Services,Other Small Contracts,Bluebird Care (South Gloucestershire),644.91, 22-Feb-2023
1055,Revenue,CAHD,Central - Commissioned Services,Other Small Contracts,Bluebird Care (South Gloucestershire),163.17, 22-Feb-2023
1056,Revenue,CAHD,Central - Commissioned Services,Other Small Contracts,Bluebird Care (South Gloucestershire),124.32, 22-Feb-2023
1057,Revenue,CAHD,Central - Commissioned Services,Other Small Contracts,Bluebird Care (South Gloucestershire),955.71, 22-Feb-2023
1058,Revenue,CAHD,Central - Commissioned Services,Other Small Contracts,Bluebird Care (South Gloucestershire),46.62, 22-Feb-2023
1059,Revenue,CAHD,Central - Commissioned Services,Other Small Contracts,Bluebird Care (South Gloucestershire),38.85, 22-Feb-2023
1060,Revenue,CAHD,Central - Commissioned Services,Other Small Contracts,Bluebird Care (South Gloucestershire),170.94, 22-Feb-2023
1061,Revenue,CAHD,Central - Commissioned Services,Other Small Contracts,Bluebird Care (South Gloucestershire),1399.44, 22-Feb-2023
1062,Revenue,CAHD,Central - Commissioned Services,Other Small Contracts,Bluebird Care (South Gloucestershire),132.09, 22-Feb-2023
1063,Revenue,CAHD,Central - Commissioned Services,Other Small Contracts,Bluebird Care (South Gloucestershire),349.65, 22-Feb-2023
1064,Revenue,CAHD,Central - Commissioned Services,Other Small Contracts,Bluebird Care (South Gloucestershire),411.81, 22-Feb-2023
1065,Revenue,CAHD,Central - Commissioned Services,Other Small Contracts,Bluebird Care (South Gloucestershire),178.71, 22-Feb-2023
1066,Revenue,CAHD,Central - Commissioned Services,Other Small Contracts,Bluebird Care (South Gloucestershire),613.83, 22-Feb-2023
1067,Revenue,CAHD,Central - Commissioned Services,Other Small Contracts,Bluebird Care (South Gloucestershire),124.32, 22-Feb-2023
1068,Revenue,CAHD,Central - Commissioned Services,Other Small Contracts,Bluebird Care (South Gloucestershire),647.87, 22-Feb-2023
1069,Revenue,CAHD,Central - Commissioned Services,Other Small Contracts,Bluebird Care (South Gloucestershire),93.24, 22-Feb-2023
1070,Revenue,CAHD,Central - Commissioned Services,Other Small Contracts,Bluebird Care (South Gloucestershire),108.78, 22-Feb-2023
1071,Revenue,CAHD,Central - Commissioned Services,Other Small Contracts,Bluebird Care (South Gloucestershire),512.82, 22-Feb-2023
1072,Revenue,CAHD,Central - Commissioned Services,Other Small Contracts,Bluebird Care (South Gloucestershire),326.34, 22-Feb-2023
1073,Revenue,CAHD,South - Commissioned Services,Other Small Contracts,Bluebird Care (South Gloucestershire),473.97, 22-Feb-2023
1074,Revenue,CAHD,South - Commissioned Services,Other Small Contracts,Bluebird Care (South Gloucestershire),155.40, 22-Feb-2023
1075,Revenue,CAHD,South - Commissioned Services,Other Small Contracts,Bluebird Care (South Gloucestershire),435.12, 22-Feb-2023
1076,Revenue,CAHD,South - Commissioned Services,Other Small Contracts,Bluebird Care (South Gloucestershire),225.33, 22-Feb-2023
1077,Revenue,CAHD,South - Commissioned Services,Other Small Contracts,Bluebird Care (South Gloucestershire),357.42, 22-Feb-2023
1078,Revenue,CAHD,South - Commissioned Services,Other Small Contracts,Bluebird Care (South Gloucestershire),264.18, 22-Feb-2023
1079,Revenue,CAHD,South - Commissioned Services,Other Small Contracts,Bluebird Care (South Gloucestershire),1399.44, 22-Feb-2023
1080,Revenue,CAHD,South - Commissioned Services,Other Small Contracts,Bluebird Care (South Gloucestershire),62.16, 22-Feb-2023
1081,Revenue,CAHD,South - Commissioned Services,Other Small Contracts,Bluebird Care (South Gloucestershire),93.24, 22-Feb-2023
1082,Revenue,CAHD,South - Commissioned Services,Other Small Contracts,Bluebird Care (South Gloucestershire),116.55, 22-Feb-2023
1083,Revenue,CAHD,South - Commissioned Services,Other Small Contracts,Bluebird Care (South Gloucestershire),163.17, 22-Feb-2023
1084,Revenue,CAHD,South - Commissioned Services,Other Small Contracts,Bluebird Care (South Gloucestershire),46.62, 22-Feb-2023
1085,Revenue,CAHD,South - Commissioned Services,Other Small Contracts,Bluebird Care (South Gloucestershire),372.96, 22-Feb-2023
1086,Revenue,CAHD,North - Community based support,Other Small Contracts,Bluebird Care (South Gloucestershire),341.88, 22-Feb-2023
1087,Revenue,CAHD,North - Community based support,Other Small Contracts,Bluebird Care (South Gloucestershire),202.02, 22-Feb-2023
1088,Revenue,CAHD,North - Community based support,Other Small Contracts,Bluebird Care (South Gloucestershire),54.39, 22-Feb-2023
1089,Revenue,CAHD,North - Community based support,Other Small Contracts,Bluebird Care (South Gloucestershire),1678.11, 22-Feb-2023
1090,Revenue,CAHD,North - Community based support,Other Small Contracts,Bluebird Care (South Gloucestershire),124.32, 22-Feb-2023
1091,Revenue,CAHD,North - Community based support,Other Small Contracts,Bluebird Care (South Gloucestershire),326.34, 22-Feb-2023
1092,Revenue,CAHD,North - Community based support,Other Small Contracts,Bluebird Care (South Gloucestershire),62.16, 22-Feb-2023
1093,Revenue,CAHD,North - Community based support,Other Small Contracts,Bluebird Care (South Gloucestershire),132.09, 22-Feb-2023
1094,Revenue,CAHD,North - Community based support,Other Small Contracts,Bluebird Care (South Gloucestershire),1750.84, 22-Feb-2023
1095,Revenue,CAHD,Central - Commissioned Services,Other Small Contracts,Bluebird Care (South Gloucestershire),147.63, 07-Feb-2023
1096,Revenue,CAHD,Central - Commissioned Services,Other Small Contracts,Bluebird Care (South Gloucestershire),108.78, 07-Feb-2023
1097,Revenue,CAHD,Central - Commissioned Services,Other Small Contracts,Bluebird Care (South Gloucestershire),730.38, 07-Feb-2023
1098,Revenue,CAHD,Central - Commissioned Services,Other Small Contracts,Bluebird Care (South Gloucestershire),139.86, 07-Feb-2023
1099,Revenue,CAHD,Central - Commissioned Services,Other Small Contracts,Bluebird Care (South Gloucestershire),31.08, 07-Feb-2023
1100,Revenue,CAHD,Central - Commissioned Services,Other Small Contracts,Bluebird Care (South Gloucestershire),1864.80, 07-Feb-2023
1101,Revenue,CAHD,Central - Commissioned Services,Other Small Contracts,Bluebird Care (South Gloucestershire),155.40, 07-Feb-2023
1102,Revenue,CAHD,Central - Commissioned Services,Other Small Contracts,Bluebird Care (South Gloucestershire),217.56, 07-Feb-2023
1103,Revenue,CAHD,Central - Commissioned Services,Other Small Contracts,Bluebird Care (South Gloucestershire),163.17, 07-Feb-2023
1104,Revenue,CAHD,Central - Commissioned Services,Other Small Contracts,Bluebird Care (South Gloucestershire),124.32, 07-Feb-2023
1105,Revenue,CAHD,Central - Commissioned Services,Other Small Contracts,Bluebird Care (South Gloucestershire),955.71, 07-Feb-2023
1106,Revenue,CAHD,Central - Commissioned Services,Other Small Contracts,Bluebird Care (South Gloucestershire),46.62, 07-Feb-2023
1107,Revenue,CAHD,Central - Commissioned Services,Other Small Contracts,Bluebird Care (South Gloucestershire),505.05, 07-Feb-2023
1108,Revenue,CAHD,Central - Commissioned Services,Other Small Contracts,Bluebird Care (South Gloucestershire),46.62, 07-Feb-2023
1109,Revenue,CAHD,Central - Commissioned Services,Other Small Contracts,Bluebird Care (South Gloucestershire),202.02, 07-Feb-2023
1110,Revenue,CAHD,Central - Commissioned Services,Other Small Contracts,Bluebird Care (South Gloucestershire),1399.44, 07-Feb-2023
1111,Revenue,CAHD,Central - Commissioned Services,Other Small Contracts,Bluebird Care (South Gloucestershire),124.32, 07-Feb-2023
1112,Revenue,CAHD,Central - Commissioned Services,Other Small Contracts,Bluebird Care (South Gloucestershire),442.89, 07-Feb-2023
1113,Revenue,CAHD,Central - Commissioned Services,Other Small Contracts,Bluebird Care (South Gloucestershire),629.37, 07-Feb-2023
1114,Revenue,CAHD,Central - Commissioned Services,Other Small Contracts,Bluebird Care (South Gloucestershire),616.79, 07-Feb-2023
1115,Revenue,CAHD,Central - Commissioned Services,Other Small Contracts,Bluebird Care (South Gloucestershire),54.39, 07-Feb-2023
1116,Revenue,CAHD,Central - Commissioned Services,Other Small Contracts,Bluebird Care (South Gloucestershire),404.04, 07-Feb-2023
1117,Revenue,CAHD,Central - Commissioned Services,Other Small Contracts,Bluebird Care (South Gloucestershire),357.42, 07-Feb-2023
1118,Revenue,CAHD,South - Commissioned Services,Other Small Contracts,Bluebird Care (South Gloucestershire),481.74, 07-Feb-2023
1119,Revenue,CAHD,South - Commissioned Services,Other Small Contracts,Bluebird Care (South Gloucestershire),310.80, 07-Feb-2023
1120,Revenue,CAHD,South - Commissioned Services,Other Small Contracts,Bluebird Care (South Gloucestershire),512.82, 07-Feb-2023
1121,Revenue,CAHD,South - Commissioned Services,Other Small Contracts,Bluebird Care (South Gloucestershire),248.64, 07-Feb-2023
1122,Revenue,CAHD,South - Commissioned Services,Other Small Contracts,Bluebird Care (South Gloucestershire),256.41, 07-Feb-2023
1123,Revenue,CAHD,South - Commissioned Services,Other Small Contracts,Bluebird Care (South Gloucestershire),1399.44, 07-Feb-2023
1124,Revenue,CAHD,South - Commissioned Services,Other Small Contracts,Bluebird Care (South Gloucestershire),62.16, 07-Feb-2023
1125,Revenue,CAHD,South - Commissioned Services,Other Small Contracts,Bluebird Care (South Gloucestershire),124.32, 07-Feb-2023
1126,Revenue,CAHD,South - Commissioned Services,Other Small Contracts,Bluebird Care (South Gloucestershire),62.16, 07-Feb-2023
1127,Revenue,CAHD,South - Commissioned Services,Other Small Contracts,Bluebird Care (South Gloucestershire),380.73, 07-Feb-2023
1128,Revenue,CAHD,North - Community based support,Other Small Contracts,Bluebird Care (South Gloucestershire),341.88, 07-Feb-2023
1129,Revenue,CAHD,North - Community based support,Other Small Contracts,Bluebird Care (South Gloucestershire),209.79, 07-Feb-2023
1130,Revenue,CAHD,North - Community based support,Other Small Contracts,Bluebird Care (South Gloucestershire),163.17, 07-Feb-2023
1131,Revenue,CAHD,North - Community based support,Other Small Contracts,Bluebird Care (South Gloucestershire),1662.57, 07-Feb-2023
1132,Revenue,CAHD,North - Community based support,Other Small Contracts,Bluebird Care (South Gloucestershire),46.62, 07-Feb-2023
1133,Revenue,CAHD,North - Community based support,Other Small Contracts,Bluebird Care (South Gloucestershire),139.86, 07-Feb-2023
1134,Revenue,CAHD,North - Community based support,Other Small Contracts,Bluebird Care (South Gloucestershire),31.08, 07-Feb-2023
1135,Revenue,CAHD,North - Community based support,Other Small Contracts,Bluebird Care (South Gloucestershire),341.88, 07-Feb-2023
1136,Revenue,CAHD,North - Community based support,Other Small Contracts,Bluebird Care (South Gloucestershire),1750.84, 07-Feb-2023
1137,Revenue,CAHD,North - Community based support,Other Small Contracts,Bluebird Care (South Gloucestershire),924.63, 07-Feb-2023
1138,Revenue,CAHD,North - Community based support,Other Small Contracts,Bluebird Care (South Gloucestershire),77.70, 07-Feb-2023
1139,Revenue,CAHD,Central - Commissioned Services,Other Small Contracts,Bluebird Care (South Gloucestershire),147.63, 14-Feb-2023
1140,Revenue,CAHD,Central - Commissioned Services,Other Small Contracts,Bluebird Care (South Gloucestershire),101.01, 14-Feb-2023
1141,Revenue,CAHD,Central - Commissioned Services,Other Small Contracts,Bluebird Care (South Gloucestershire),761.46, 14-Feb-2023
1142,Revenue,CAHD,Central - Commissioned Services,Other Small Contracts,Bluebird Care (South Gloucestershire),139.86, 14-Feb-2023
1143,Revenue,CAHD,Central - Commissioned Services,Other Small Contracts,Bluebird Care (South Gloucestershire),31.08, 14-Feb-2023
1144,Revenue,CAHD,Central - Commissioned Services,Other Small Contracts,Bluebird Care (South Gloucestershire),1794.87, 14-Feb-2023
1145,Revenue,CAHD,Central - Commissioned Services,Other Small Contracts,Bluebird Care (South Gloucestershire),147.63, 14-Feb-2023
1146,Revenue,CAHD,Central - Commissioned Services,Other Small Contracts,Bluebird Care (South Gloucestershire),209.79, 14-Feb-2023
1147,Revenue,CAHD,Central - Commissioned Services,Other Small Contracts,Bluebird Care (South Gloucestershire),163.17, 14-Feb-2023
1148,Revenue,CAHD,Central - Commissioned Services,Other Small Contracts,Bluebird Care (South Gloucestershire),124.32, 14-Feb-2023
1149,Revenue,CAHD,Central - Commissioned Services,Other Small Contracts,Bluebird Care (South Gloucestershire),955.71, 14-Feb-2023
1150,Revenue,CAHD,Central - Commissioned Services,Other Small Contracts,Bluebird Care (South Gloucestershire),46.62, 14-Feb-2023
1151,Revenue,CAHD,Central - Commissioned Services,Other Small Contracts,Bluebird Care (South Gloucestershire),559.44, 14-Feb-2023
1152,Revenue,CAHD,Central - Commissioned Services,Other Small Contracts,Bluebird Care (South Gloucestershire),38.85, 14-Feb-2023
1153,Revenue,CAHD,Central - Commissioned Services,Other Small Contracts,Bluebird Care (South Gloucestershire),202.02, 14-Feb-2023
1154,Revenue,CAHD,Central - Commissioned Services,Other Small Contracts,Bluebird Care (South Gloucestershire),1399.44, 14-Feb-2023
1155,Revenue,CAHD,Central - Commissioned Services,Other Small Contracts,Bluebird Care (South Gloucestershire),139.86, 14-Feb-2023
1156,Revenue,CAHD,Central - Commissioned Services,Other Small Contracts,Bluebird Care (South Gloucestershire),365.19, 14-Feb-2023
1157,Revenue,CAHD,Central - Commissioned Services,Other Small Contracts,Bluebird Care (South Gloucestershire),660.45, 14-Feb-2023
1158,Revenue,CAHD,Central - Commissioned Services,Other Small Contracts,Bluebird Care (South Gloucestershire),655.64, 14-Feb-2023
1159,Revenue,CAHD,Central - Commissioned Services,Other Small Contracts,Bluebird Care (South Gloucestershire),101.01, 14-Feb-2023
1160,Revenue,CAHD,Central - Commissioned Services,Other Small Contracts,Bluebird Care (South Gloucestershire),396.27, 14-Feb-2023
1161,Revenue,CAHD,Central - Commissioned Services,Other Small Contracts,Bluebird Care (South Gloucestershire),372.96, 14-Feb-2023
1162,Revenue,CAHD,South - Commissioned Services,Other Small Contracts,Bluebird Care (South Gloucestershire),458.43, 14-Feb-2023
1163,Revenue,CAHD,South - Commissioned Services,Other Small Contracts,Bluebird Care (South Gloucestershire),279.72, 14-Feb-2023
1164,Revenue,CAHD,South - Commissioned Services,Other Small Contracts,Bluebird Care (South Gloucestershire),512.82, 14-Feb-2023
1165,Revenue,CAHD,South - Commissioned Services,Other Small Contracts,Bluebird Care (South Gloucestershire),279.72, 14-Feb-2023
1166,Revenue,CAHD,South - Commissioned Services,Other Small Contracts,Bluebird Care (South Gloucestershire),264.18, 14-Feb-2023
1167,Revenue,CAHD,South - Commissioned Services,Other Small Contracts,Bluebird Care (South Gloucestershire),1399.44, 14-Feb-2023
1168,Revenue,CAHD,South - Commissioned Services,Other Small Contracts,Bluebird Care (South Gloucestershire),62.16, 14-Feb-2023
1169,Revenue,CAHD,South - Commissioned Services,Other Small Contracts,Bluebird Care (South Gloucestershire),124.32, 14-Feb-2023
1170,Revenue,CAHD,South - Commissioned Services,Other Small Contracts,Bluebird Care (South Gloucestershire),54.39, 14-Feb-2023
1171,Revenue,CAHD,South - Commissioned Services,Other Small Contracts,Bluebird Care (South Gloucestershire),380.73, 14-Feb-2023
1172,Revenue,CAHD,North - Community based support,Other Small Contracts,Bluebird Care (South Gloucestershire),341.88, 14-Feb-2023
1173,Revenue,CAHD,North - Community based support,Other Small Contracts,Bluebird Care (South Gloucestershire),155.40, 14-Feb-2023
1174,Revenue,CAHD,North - Community based support,Other Small Contracts,Bluebird Care (South Gloucestershire),163.17, 14-Feb-2023
1175,Revenue,CAHD,North - Community based support,Other Small Contracts,Bluebird Care (South Gloucestershire),1631.49, 14-Feb-2023
1176,Revenue,CAHD,North - Community based support,Other Small Contracts,Bluebird Care (South Gloucestershire),38.85, 14-Feb-2023
1177,Revenue,CAHD,North - Community based support,Other Small Contracts,Bluebird Care (South Gloucestershire),132.09, 14-Feb-2023
1178,Revenue,CAHD,North - Community based support,Other Small Contracts,Bluebird Care (South Gloucestershire),155.40, 14-Feb-2023
1179,Revenue,CAHD,North - Community based support,Other Small Contracts,Bluebird Care (South Gloucestershire),326.34, 14-Feb-2023
1180,Revenue,CAHD,North - Community based support,Other Small Contracts,Bluebird Care (South Gloucestershire),1750.84, 14-Feb-2023
1181,Revenue,CAHD,North - Community based support,Other Small Contracts,Bluebird Care (South Gloucestershire),909.09, 14-Feb-2023
1182,Revenue,CAHD,North - Community based support,Other Small Contracts,Bluebird Care (South Gloucestershire),85.47, 14-Feb-2023
1183,Revenue,CAHD,Central - Commissioned Services,Other Small Contracts,Bluebird Care (South Gloucestershire),139.86, 22-Feb-2023
1184,Revenue,CAHD,Central - Commissioned Services,Other Small Contracts,Bluebird Care (South Gloucestershire),116.55, 22-Feb-2023
1185,Revenue,CAHD,Central - Commissioned Services,Other Small Contracts,Bluebird Care (South Gloucestershire),769.23, 22-Feb-2023
1186,Revenue,CAHD,Central - Commissioned Services,Other Small Contracts,Bluebird Care (South Gloucestershire),139.86, 22-Feb-2023
1187,Revenue,CAHD,Central - Commissioned Services,Other Small Contracts,Bluebird Care (South Gloucestershire),23.31, 22-Feb-2023
1188,Revenue,CAHD,Central - Commissioned Services,Other Small Contracts,Bluebird Care (South Gloucestershire),1864.80, 22-Feb-2023
1189,Revenue,CAHD,Central - Commissioned Services,Other Small Contracts,Bluebird Care (South Gloucestershire),155.40, 22-Feb-2023
1190,Revenue,CAHD,Central - Commissioned Services,Other Small Contracts,Bluebird Care (South Gloucestershire),256.41, 22-Feb-2023
1191,Revenue,CAHD,Central - Commissioned Services,Other Small Contracts,Bluebird Care (South Gloucestershire),163.17, 22-Feb-2023
1192,Revenue,CAHD,Central - Commissioned Services,Other Small Contracts,Bluebird Care (South Gloucestershire),116.55, 22-Feb-2023
1193,Revenue,CAHD,Central - Commissioned Services,Other Small Contracts,Bluebird Care (South Gloucestershire),940.17, 22-Feb-2023
1194,Revenue,CAHD,Central - Commissioned Services,Other Small Contracts,Bluebird Care (South Gloucestershire),31.08, 22-Feb-2023
1195,Revenue,CAHD,Central - Commissioned Services,Other Small Contracts,Bluebird Care (South Gloucestershire),559.44, 22-Feb-2023
1196,Revenue,CAHD,Central - Commissioned Services,Other Small Contracts,Bluebird Care (South Gloucestershire),46.62, 22-Feb-2023
1197,Revenue,CAHD,Central - Commissioned Services,Other Small Contracts,Bluebird Care (South Gloucestershire),202.02, 22-Feb-2023
1198,Revenue,CAHD,Central - Commissioned Services,Other Small Contracts,Bluebird Care (South Gloucestershire),1399.44, 22-Feb-2023
1199,Revenue,CAHD,Central - Commissioned Services,Other Small Contracts,Bluebird Care (South Gloucestershire),132.09, 22-Feb-2023
1200,Revenue,CAHD,Central - Commissioned Services,Other Small Contracts,Bluebird Care (South Gloucestershire),427.35, 22-Feb-2023
1201,Revenue,CAHD,Central - Commissioned Services,Other Small Contracts,Bluebird Care (South Gloucestershire),644.91, 22-Feb-2023
1202,Revenue,CAHD,Central - Commissioned Services,Other Small Contracts,Bluebird Care (South Gloucestershire),616.79, 22-Feb-2023
1203,Revenue,CAHD,Central - Commissioned Services,Other Small Contracts,Bluebird Care (South Gloucestershire),77.70, 22-Feb-2023
1204,Revenue,CAHD,Central - Commissioned Services,Other Small Contracts,Bluebird Care (South Gloucestershire),380.73, 22-Feb-2023
1205,Revenue,CAHD,Central - Commissioned Services,Other Small Contracts,Bluebird Care (South Gloucestershire),341.88, 22-Feb-2023
1206,Revenue,CAHD,South - Commissioned Services,Other Small Contracts,Bluebird Care (South Gloucestershire),481.74, 22-Feb-2023
1207,Revenue,CAHD,South - Commissioned Services,Other Small Contracts,Bluebird Care (South Gloucestershire),303.03, 22-Feb-2023
1208,Revenue,CAHD,South - Commissioned Services,Other Small Contracts,Bluebird Care (South Gloucestershire),520.59, 22-Feb-2023
1209,Revenue,CAHD,South - Commissioned Services,Other Small Contracts,Bluebird Care (South Gloucestershire),279.72, 22-Feb-2023
1210,Revenue,CAHD,South - Commissioned Services,Other Small Contracts,Bluebird Care (South Gloucestershire),264.18, 22-Feb-2023
1211,Revenue,CAHD,South - Commissioned Services,Other Small Contracts,Bluebird Care (South Gloucestershire),1399.44, 22-Feb-2023
1212,Revenue,CAHD,South - Commissioned Services,Other Small Contracts,Bluebird Care (South Gloucestershire),62.16, 22-Feb-2023
1213,Revenue,CAHD,South - Commissioned Services,Other Small Contracts,Bluebird Care (South Gloucestershire),108.78, 22-Feb-2023
1214,Revenue,CAHD,South - Commissioned Services,Other Small Contracts,Bluebird Care (South Gloucestershire),46.62, 22-Feb-2023
1215,Revenue,CAHD,South - Commissioned Services,Other Small Contracts,Bluebird Care (South Gloucestershire),380.73, 22-Feb-2023
1216,Revenue,CAHD,North - Community based support,Other Small Contracts,Bluebird Care (South Gloucestershire),341.88, 22-Feb-2023
1217,Revenue,CAHD,North - Community based support,Other Small Contracts,Bluebird Care (South Gloucestershire),194.25, 22-Feb-2023
1218,Revenue,CAHD,North - Community based support,Other Small Contracts,Bluebird Care (South Gloucestershire),155.40, 22-Feb-2023
1219,Revenue,CAHD,North - Community based support,Other Small Contracts,Bluebird Care (South Gloucestershire),1662.57, 22-Feb-2023
1220,Revenue,CAHD,North - Community based support,Other Small Contracts,Bluebird Care (South Gloucestershire),38.85, 22-Feb-2023
1221,Revenue,CAHD,North - Community based support,Other Small Contracts,Bluebird Care (South Gloucestershire),139.86, 22-Feb-2023
1222,Revenue,CAHD,North - Community based support,Other Small Contracts,Bluebird Care (South Gloucestershire),341.88, 22-Feb-2023
1223,Revenue,CAHD,North - Community based support,Other Small Contracts,Bluebird Care (South Gloucestershire),1750.84, 22-Feb-2023
1224,Revenue,CAHD,North - Community based support,Other Small Contracts,Bluebird Care (South Gloucestershire),940.17, 22-Feb-2023
1225,Revenue,CAHD,North - Community based support,Other Small Contracts,Bluebird Care (South Gloucestershire),93.24, 22-Feb-2023
1226,Revenue,CAHD,North - Community based support,Other Small Contracts,Bluebird Care (South Gloucestershire),12373.65, 22-Feb-2023
1227,Revenue,CAHD,Drugs Alcohol and Sexual Health,Other Small Contracts,Boots UK Ltd,975.00, 22-Feb-2023
1228,Revenue,CAHD,North - Community based support,Permanent Residential,Bradbury House,6768.60, 07-Feb-2023
1229,Revenue,CAHD,S28A cases,Fees & Charges Income - General,Bradbury House,-438.80, 07-Feb-2023
1230,Revenue,CAHD,Central - Commissioned Services,Permanent Residential,Bradbury House,11342.80, 07-Feb-2023
1231,Revenue,CAHD,North - S117,Permanent Residential,Bradbury House,14640.32, 07-Feb-2023
1232,Revenue,CAHD,Drugs Alcohol and Sexual Health,Other Small Contracts,Bradley Stoke Surgery,2334.50, 14-Feb-2023
1233,Revenue,CAHD,Drugs Alcohol and Sexual Health,Other Small Contracts,Bradley Stoke Surgery,1909.88, 17-Feb-2023
1234,Revenue,CAHD,Drugs Alcohol and Sexual Health,Other Small Contracts,Bradley Stoke Surgery,1116.50, 14-Feb-2023
1235,Revenue,CAHD,CSC - Residential Placements,Permanent Residential,Branas ISAF Ltd,48714.29, 22-Feb-2023
1236,Revenue,CAHD,CSC - North LAC Placements,Client Transport,Individual,93.10, 10-Feb-2023
1237,Revenue,CAHD,CSC - Age Related Allowances,Respite Care,Individual,354.01, 10-Feb-2023
1238,Revenue,CAHD,CSC - Professional Fees Foster Carers,Respite Care,Individual,340.01, 10-Feb-2023
1239,Revenue,CAHD,Social Lettings Agency,Rent,Individual,822.73, 24-Feb-2023
1240,Revenue,CAHD,Social Lettings Agency,Fees & Charges Income - General,Individual,-102.80, 24-Feb-2023
1241,Revenue,CAHD,Social Lettings Agency,Rent,Individual,947.40, 08-Feb-2023
1242,Revenue,CAHD,Social Lettings Agency,Fees & Charges Income - General,Individual,-75.80, 08-Feb-2023
1243,Revenue,CAHD,Placements OLA Special Schools and RB,Other L.A.s - General,Briarwood School,2506.20, 24-Feb-2023
1244,Revenue,CAHD,Placements OLA Special Schools and RB,Other L.A.s - General,Briarwood School,1789.68, 24-Feb-2023
1245,Revenue,CAHD,Placements OLA Special Schools and RB,Other L.A.s - General,Briarwood School,715.72, 24-Feb-2023
1246,Revenue,CAHD,North - Community based support,Permanent Residential,Bridge House Care Home,3286.00, 07-Feb-2023
1247,Revenue,CAHD,North - Community based support,Permanent Residential,Bridge House Care Home,3440.00, 07-Feb-2023
1248,Revenue,CAHD,North - Community based support,Permanent Residential,Bridge House Care Home,3088.32, 07-Feb-2023
1249,Revenue,CAHD,North - Community based support,Permanent Nursing,Bridge House Care Home,3360.00, 07-Feb-2023
1250,Revenue,CAHD,North - Community based support,Fees & Charges Income - General,Bridge House Care Home,-627.80, 07-Feb-2023
1251,Revenue,CAHD,North - Community based support,Fees & Charges Income - General,Bridge House Care Home,-650.88, 07-Feb-2023
1252,Revenue,CAHD,North - Community based support,Fees & Charges Income - General,Bridge House Care Home,-651.64, 07-Feb-2023
1253,Revenue,CAHD,North - Community based support,Fees & Charges Income - General,Bridge House Care Home,-1679.52, 07-Feb-2023
1254,Revenue,CAHD,North - Community based support,Day Care / Social Activities,Bridge House Care Home,720.00, 07-Feb-2023
1255,Revenue,CAHD,North - Community based support,Permanent Residential,Bridgwater Court Care Home,10773.64, 07-Feb-2023
1256,Revenue,CAHD,SRRP,Rent,Brighter Places,1328.76, 14-Feb-2023
1257,Revenue,CAHD,Statemented Support Payments to OLAs,Other L.A.s - General,Bristol Cathedral Choir School,942.58, 24-Feb-2023
1258,Revenue,CAHD,Statemented Support Payments to OLAs,Other L.A.s - General,Bristol Cathedral Choir School,880.08, 24-Feb-2023
1259,Revenue,CAHD,Statemented Support Payments to OLAs,Other L.A.s - General,Bristol Cathedral Choir School,978.57, 24-Feb-2023
1260,Revenue,CAHD,CSC - Section 17 - ART,Interpreting & Translation,Bristol City Council,1566.30, 13-Feb-2023
1261,Revenue,CAHD,CSC - YOT Pooled Budget,Other Supplies & Services,Bristol City Council,9648.00, 09-Feb-2023
1262,Revenue,CAHD,Sensory Support Services,Other L.A.s - General,Bristol City Council,166916.00, 24-Feb-2023
1263,Revenue,CAHD,Sensory Support Services,Other L.A.s - General,Bristol City Council,133533.00, 24-Feb-2023
1264,Revenue,CAHD,CSC - Section 17 - ART,Interpreting & Translation,Bristol City Council,1382.99, 27-Feb-2023
1265,Revenue,CAHD,Special Recoupment Income,Contribns & Reimbs - Other LAs,Bristol City Council,1125.00, 27-Feb-2023
1266,Revenue,CAHD,Special Recoupment Income,Contribns & Reimbs - Other LAs,Bristol City Council,833.33, 27-Feb-2023
1267,Revenue,CAHD,Special Recoupment Income,Contribns & Reimbs - Other LAs,Bristol City Council,833.37, 27-Feb-2023
1268,Revenue,CAHD,Statemented Support Payments to OLAs,Other L.A.s - General,Bristol City Council Schools General,897.42, 24-Feb-2023
1269,Revenue,CAHD,Post 16 High Needs Placements,Other Private Contractors,Bristol Plastering Academy Ltd,4230.00, 28-Feb-2023
1270,Revenue,CAHD,Other Alternative Provision Services,Other Private Contractors,Bristol Tuition Limited,540.00, 02-Feb-2023
1271,Revenue,CAHD,Other Alternative Provision Services,Other Private Contractors,Bristol Tuition Limited,450.00, 02-Feb-2023
1272,Revenue,CAHD,Other Alternative Provision Services,Other Private Contractors,Bristol Tuition Limited,600.00, 02-Feb-2023
1273,Revenue,CAHD,Other Alternative Provision Services,Other Private Contractors,Bristol Tuition Limited,630.00, 02-Feb-2023
1274,Revenue,CAHD,Other Alternative Provision Services,Other Private Contractors,Bristol Tuition Limited,720.00, 02-Feb-2023
1275,Revenue,CAHD,Other Alternative Provision Services,Other Private Contractors,Bristol Tuition Limited,600.00, 13-Feb-2023
1276,Revenue,CAHD,Statemented Support Payments to OLAs,Other L.A.s - General,Broadlands Academy,835.17, 24-Feb-2023
1277,Revenue,CAHD,North - Community based support,Permanent Residential,Brockhills Farm,3200.00, 07-Feb-2023
1278,Revenue,CAHD,North - Community based support,Fees & Charges Income - General,Brockhills Farm,-658.96, 07-Feb-2023
1279,Revenue,CAHD,Supporting People Programme,Grants to Voluntary Bodies,Bromford  :  Merlin Housing Society,2824.17, 01-Feb-2023
1280,Revenue,CAHD,Supporting People Programme,Grants to Voluntary Bodies,Bromford  :  Merlin Housing Society,23628.83, 01-Feb-2023
1281,Revenue,CAHD,Supporting People Programme,Grants to Voluntary Bodies,Bromford  :  Merlin Housing Society,1146.92, 01-Feb-2023
1282,Revenue,CAHD,Pathway 1 - Re-Ablement Home Care,Other Small Contracts,Brunelcare,93787.50, 28-Feb-2023
1283,Revenue,CAHD,Central - Commissioned Services,Other Small Contracts,Brunelcare,272.25, 14-Feb-2023
1284,Revenue,CAHD,South - Commissioned Services,Other Small Contracts,Brunelcare,90.75, 14-Feb-2023
1285,Revenue,CAHD,South - Commissioned Services,Other Small Contracts,Brunelcare,393.25, 14-Feb-2023
1286,Revenue,CAHD,South - Commissioned Services,Other Small Contracts,Brunelcare,266.20, 14-Feb-2023
1287,Revenue,CAHD,Central - Commissioned Services,Other Small Contracts,Brunelcare,393.25, 07-Feb-2023
1288,Revenue,CAHD,South - Commissioned Services,Other Small Contracts,Brunelcare,756.25, 07-Feb-2023
1289,Revenue,CAHD,South - Commissioned Services,Other Small Contracts,Brunelcare,157.30, 07-Feb-2023
1290,Revenue,CAHD,South - Commissioned Services,Other Small Contracts,Brunelcare,556.60, 07-Feb-2023
1291,Revenue,CAHD,South - Commissioned Services,Other Small Contracts,Brunelcare,550.55, 07-Feb-2023
1292,Revenue,CAHD,South - Commissioned Services,Other Small Contracts,Brunelcare,1542.75, 07-Feb-2023
1293,Revenue,CAHD,South - Commissioned Services,Other Small Contracts,Brunelcare,828.85, 07-Feb-2023
1294,Revenue,CAHD,South - Commissioned Services,Other Small Contracts,Brunelcare,520.30, 07-Feb-2023
1295,Revenue,CAHD,South - Commissioned Services,Other Small Contracts,Brunelcare,3327.50, 07-Feb-2023
1296,Revenue,CAHD,South - Commissioned Services,Other Small Contracts,Brunelcare,641.30, 07-Feb-2023
1297,Revenue,CAHD,South - Commissioned Services,Other Small Contracts,Brunelcare,1796.85, 07-Feb-2023
1298,Revenue,CAHD,South - Commissioned Services,Other Small Contracts,Brunelcare,399.30, 07-Feb-2023
1299,Revenue,CAHD,South - Commissioned Services,Other Small Contracts,Brunelcare,290.40, 07-Feb-2023
1300,Revenue,CAHD,South - Commissioned Services,Other Small Contracts,Brunelcare,508.20, 07-Feb-2023
1301,Revenue,CAHD,South - Commissioned Services,Other Small Contracts,Brunelcare,986.15, 07-Feb-2023
1302,Revenue,CAHD,South - Commissioned Services,Other Small Contracts,Brunelcare,363.00, 07-Feb-2023
1303,Revenue,CAHD,South - Commissioned Services,Other Small Contracts,Brunelcare,3333.55, 07-Feb-2023
1304,Revenue,CAHD,South - Commissioned Services,Other Small Contracts,Brunelcare,2147.75, 07-Feb-2023
1305,Revenue,CAHD,South - Commissioned Services,Other Small Contracts,Brunelcare,96.80, 07-Feb-2023
1306,Revenue,CAHD,South - Commissioned Services,Other Small Contracts,Brunelcare,786.50, 07-Feb-2023
1307,Revenue,CAHD,South - Commissioned Services,Other Small Contracts,Brunelcare,925.65, 07-Feb-2023
1308,Revenue,CAHD,South - Commissioned Services,Other Small Contracts,Brunelcare,895.40, 07-Feb-2023
1309,Revenue,CAHD,South - Commissioned Services,Other Small Contracts,Brunelcare,211.40, 07-Feb-2023
1310,Revenue,CAHD,South - Commissioned Services,Other Small Contracts,Brunelcare,260.15, 07-Feb-2023
1311,Revenue,CAHD,South - Commissioned Services,Other Small Contracts,Brunelcare,1476.20, 07-Feb-2023
1312,Revenue,CAHD,South - Commissioned Services,Other Small Contracts,Brunelcare,181.50, 07-Feb-2023
1313,Revenue,CAHD,South - Commissioned Services,Other Small Contracts,Brunelcare,399.30, 07-Feb-2023
1314,Revenue,CAHD,South - Commissioned Services,Other Small Contracts,Brunelcare,1712.15, 07-Feb-2023
1315,Revenue,CAHD,South - Commissioned Services,Other Small Contracts,Brunelcare,465.85, 07-Feb-2023
1316,Revenue,CAHD,South - Commissioned Services,Other Small Contracts,Brunelcare,695.75, 07-Feb-2023
1317,Revenue,CAHD,South - Commissioned Services,Other Small Contracts,Brunelcare,544.50, 07-Feb-2023
1318,Revenue,CAHD,South - Commissioned Services,Other Small Contracts,Brunelcare,151.25, 07-Feb-2023
1319,Revenue,CAHD,South - Commissioned Services,Other Small Contracts,Brunelcare,254.10, 07-Feb-2023
1320,Revenue,CAHD,South - Commissioned Services,Other Small Contracts,Brunelcare,580.80, 07-Feb-2023
1321,Revenue,CAHD,South - Commissioned Services,Other Small Contracts,Brunelcare,248.05, 07-Feb-2023
1322,Revenue,CAHD,South - Commissioned Services,Other Small Contracts,Brunelcare,520.30, 07-Feb-2023
1323,Revenue,CAHD,South - Commissioned Services,Other Small Contracts,Brunelcare,677.60, 07-Feb-2023
1324,Revenue,CAHD,South - Commissioned Services,Other Small Contracts,Brunelcare,393.25, 07-Feb-2023
1325,Revenue,CAHD,South - Commissioned Services,Other Small Contracts,Brunelcare,193.60, 07-Feb-2023
1326,Revenue,CAHD,South - Commissioned Services,Other Small Contracts,Brunelcare,1076.90, 07-Feb-2023
1327,Revenue,CAHD,South - Commissioned Services,Other Small Contracts,Brunelcare,647.35, 07-Feb-2023
1328,Revenue,CAHD,South - Commissioned Services,Other Small Contracts,Brunelcare,369.05, 07-Feb-2023
1329,Revenue,CAHD,South - Commissioned Services,Other Small Contracts,Brunelcare,1101.10, 07-Feb-2023
1330,Revenue,CAHD,South - Commissioned Services,Other Small Contracts,Brunelcare,701.80, 07-Feb-2023
1331,Revenue,CAHD,South - Commissioned Services,Other Small Contracts,Brunelcare,883.30, 07-Feb-2023
1332,Revenue,CAHD,South - Commissioned Services,Other Small Contracts,Brunelcare,883.30, 07-Feb-2023
1333,Revenue,CAHD,South - Commissioned Services,Other Small Contracts,Brunelcare,931.70, 07-Feb-2023
1334,Revenue,CAHD,South - Commissioned Services,Other Small Contracts,Brunelcare,133.10, 07-Feb-2023
1335,Revenue,CAHD,South - Commissioned Services,Other Small Contracts,Brunelcare,1524.60, 07-Feb-2023
1336,Revenue,CAHD,South - Commissioned Services,Other Small Contracts,Brunelcare,1252.35, 07-Feb-2023
1337,Revenue,CAHD,South - Commissioned Services,Other Small Contracts,Brunelcare,665.50, 07-Feb-2023
1338,Revenue,CAHD,South - Commissioned Services,Other Small Contracts,Brunelcare,284.35, 07-Feb-2023
1339,Revenue,CAHD,South - Commissioned Services,Other Small Contracts,Brunelcare,272.25, 07-Feb-2023
1340,Revenue,CAHD,South - Commissioned Services,Other Small Contracts,Brunelcare,145.20, 07-Feb-2023
1341,Revenue,CAHD,South - Commissioned Services,Mentoring,Brunelcare,229.90, 07-Feb-2023
1342,Revenue,CAHD,South - Commissioned Services,Mentoring,Brunelcare,48.40, 07-Feb-2023
1343,Revenue,CAHD,South - Commissioned Services,Mentoring,Brunelcare,290.40, 07-Feb-2023
1344,Revenue,CAHD,South - Commissioned Services,Mentoring,Brunelcare,193.60, 07-Feb-2023
1345,Revenue,CAHD,South - Commissioned Services,Mentoring,Brunelcare,199.65, 07-Feb-2023
1346,Revenue,CAHD,South - Commissioned Services,Mentoring,Brunelcare,205.70, 07-Feb-2023
1347,Revenue,CAHD,North - Community based support,Other Small Contracts,Brunelcare,1669.80, 07-Feb-2023
1348,Revenue,CAHD,Central - Commissioned Services,Other Small Contracts,Brunelcare,96.80, 22-Feb-2023
1349,Revenue,CAHD,South - Commissioned Services,Other Small Contracts,Brunelcare,175.45, 22-Feb-2023
1350,Revenue,CAHD,South - Commissioned Services,Other Small Contracts,Brunelcare,60.50, 22-Feb-2023
1351,Revenue,CAHD,South - Commissioned Services,Other Small Contracts,Brunelcare,169.40, 22-Feb-2023
1352,Revenue,CAHD,South - Commissioned Services,Other Small Contracts,Brunelcare,169.40, 22-Feb-2023
1353,Revenue,CAHD,South - Commissioned Services,Other Small Contracts,Brunelcare,387.20, 22-Feb-2023
1354,Revenue,CAHD,South - Commissioned Services,Other Small Contracts,Brunelcare,217.80, 22-Feb-2023
1355,Revenue,CAHD,South - Commissioned Services,Other Small Contracts,Brunelcare,133.10, 22-Feb-2023
1356,Revenue,CAHD,South - Commissioned Services,Other Small Contracts,Brunelcare,840.95, 22-Feb-2023
1357,Revenue,CAHD,South - Commissioned Services,Other Small Contracts,Brunelcare,175.45, 22-Feb-2023
1358,Revenue,CAHD,South - Commissioned Services,Other Small Contracts,Brunelcare,453.75, 22-Feb-2023
1359,Revenue,CAHD,South - Commissioned Services,Other Small Contracts,Brunelcare,84.70, 22-Feb-2023
1360,Revenue,CAHD,South - Commissioned Services,Other Small Contracts,Brunelcare,60.50, 22-Feb-2023
1361,Revenue,CAHD,South - Commissioned Services,Other Small Contracts,Brunelcare,127.05, 22-Feb-2023
1362,Revenue,CAHD,South - Commissioned Services,Other Small Contracts,Brunelcare,254.10, 22-Feb-2023
1363,Revenue,CAHD,South - Commissioned Services,Other Small Contracts,Brunelcare,90.75, 22-Feb-2023
1364,Revenue,CAHD,South - Commissioned Services,Other Small Contracts,Brunelcare,974.05, 22-Feb-2023
1365,Revenue,CAHD,South - Commissioned Services,Other Small Contracts,Brunelcare,556.60, 22-Feb-2023
1366,Revenue,CAHD,South - Commissioned Services,Other Small Contracts,Brunelcare,30.25, 22-Feb-2023
1367,Revenue,CAHD,South - Commissioned Services,Other Small Contracts,Brunelcare,193.60, 22-Feb-2023
1368,Revenue,CAHD,South - Commissioned Services,Other Small Contracts,Brunelcare,229.90, 22-Feb-2023
1369,Revenue,CAHD,South - Commissioned Services,Other Small Contracts,Brunelcare,242.00, 22-Feb-2023
1370,Revenue,CAHD,South - Commissioned Services,Other Small Contracts,Brunelcare,64.06, 22-Feb-2023
1371,Revenue,CAHD,South - Commissioned Services,Other Small Contracts,Brunelcare,48.40, 22-Feb-2023
1372,Revenue,CAHD,South - Commissioned Services,Other Small Contracts,Brunelcare,375.10, 22-Feb-2023
1373,Revenue,CAHD,South - Commissioned Services,Other Small Contracts,Brunelcare,48.40, 22-Feb-2023
1374,Revenue,CAHD,South - Commissioned Services,Other Small Contracts,Brunelcare,96.80, 22-Feb-2023
1375,Revenue,CAHD,South - Commissioned Services,Other Small Contracts,Brunelcare,423.50, 22-Feb-2023
1376,Revenue,CAHD,South - Commissioned Services,Other Small Contracts,Brunelcare,127.05, 22-Feb-2023
1377,Revenue,CAHD,South - Commissioned Services,Other Small Contracts,Brunelcare,169.40, 22-Feb-2023
1378,Revenue,CAHD,South - Commissioned Services,Other Small Contracts,Brunelcare,145.20, 22-Feb-2023
1379,Revenue,CAHD,South - Commissioned Services,Other Small Contracts,Brunelcare,36.30, 22-Feb-2023
1380,Revenue,CAHD,South - Commissioned Services,Other Small Contracts,Brunelcare,60.50, 22-Feb-2023
1381,Revenue,CAHD,South - Commissioned Services,Other Small Contracts,Brunelcare,163.35, 22-Feb-2023
1382,Revenue,CAHD,South - Commissioned Services,Other Small Contracts,Brunelcare,72.60, 22-Feb-2023
1383,Revenue,CAHD,South - Commissioned Services,Other Small Contracts,Brunelcare,121.00, 22-Feb-2023
1384,Revenue,CAHD,South - Commissioned Services,Other Small Contracts,Brunelcare,169.40, 22-Feb-2023
1385,Revenue,CAHD,South - Commissioned Services,Other Small Contracts,Brunelcare,121.00, 22-Feb-2023
1386,Revenue,CAHD,South - Commissioned Services,Other Small Contracts,Brunelcare,42.35, 22-Feb-2023
1387,Revenue,CAHD,South - Commissioned Services,Other Small Contracts,Brunelcare,302.50, 22-Feb-2023
1388,Revenue,CAHD,South - Commissioned Services,Other Small Contracts,Brunelcare,108.90, 22-Feb-2023
1389,Revenue,CAHD,South - Commissioned Services,Other Small Contracts,Brunelcare,102.85, 22-Feb-2023
1390,Revenue,CAHD,South - Commissioned Services,Other Small Contracts,Brunelcare,278.30, 22-Feb-2023
1391,Revenue,CAHD,South - Commissioned Services,Other Small Contracts,Brunelcare,217.80, 22-Feb-2023
1392,Revenue,CAHD,South - Commissioned Services,Other Small Contracts,Brunelcare,254.10, 22-Feb-2023
1393,Revenue,CAHD,South - Commissioned Services,Other Small Contracts,Brunelcare,205.70, 22-Feb-2023
1394,Revenue,CAHD,South - Commissioned Services,Other Small Contracts,Brunelcare,272.25, 22-Feb-2023
1395,Revenue,CAHD,South - Commissioned Services,Other Small Contracts,Brunelcare,387.20, 22-Feb-2023
1396,Revenue,CAHD,South - Commissioned Services,Other Small Contracts,Brunelcare,338.80, 22-Feb-2023
1397,Revenue,CAHD,South - Commissioned Services,Other Small Contracts,Brunelcare,169.40, 22-Feb-2023
1398,Revenue,CAHD,South - Commissioned Services,Other Small Contracts,Brunelcare,108.90, 22-Feb-2023
1399,Revenue,CAHD,South - Commissioned Services,Other Small Contracts,Brunelcare,169.40, 22-Feb-2023
1400,Revenue,CAHD,South - Commissioned Services,Other Small Contracts,Brunelcare,48.40, 22-Feb-2023
1401,Revenue,CAHD,South - Commissioned Services,Mentoring,Brunelcare,48.40, 22-Feb-2023
1402,Revenue,CAHD,South - Commissioned Services,Mentoring,Brunelcare,78.65, 22-Feb-2023
1403,Revenue,CAHD,South - Commissioned Services,Mentoring,Brunelcare,42.35, 22-Feb-2023
1404,Revenue,CAHD,South - Commissioned Services,Mentoring,Brunelcare,48.40, 22-Feb-2023
1405,Revenue,CAHD,South - Commissioned Services,Mentoring,Brunelcare,72.60, 22-Feb-2023
1406,Revenue,CAHD,North - Community based support,Other Small Contracts,Brunelcare,417.45, 22-Feb-2023
1407,Revenue,CAHD,CSC - Residential Placements,Permanent Residential,Bryn Melyn Care LTD,25720.00, 22-Feb-2023
1408,Revenue,CAHD,Post 16 High Needs Placements,Other Private Contractors,Burley Inclusive Ltd,2348.55, 21-Feb-2023
1409,Revenue,CAHD,EARLY YEARS DISABILITY  ACCES FUND,Preventative Assistance,Busy Bees Barrs Court formerly Just Learning Ltd,800.00, 23-Feb-2023
1410,Revenue,CAHD,Social Lettings Agency,Rent,Individual,947.40, 13-Feb-2023
1411,Revenue,CAHD,Social Lettings Agency,Fees & Charges Income - General,Individual,-94.74, 13-Feb-2023
1412,Revenue,CAHD,High Risk Group Funding,Other Public Bodies,Cabot Learning Federation,4000.00, 28-Feb-2023
1413,Revenue,CAHD,Statemented Support Academies,Other Public Bodies,Cabot Learning Federation,4221.00, 21-Feb-2023
1414,Revenue,CAHD,Statemented Support Academies,Other Public Bodies,Cabot Learning Federation,4935.00, 21-Feb-2023
1415,Revenue,CAHD,Statemented Support Academies,Other Public Bodies,Cabot Learning Federation,5283.24, 21-Feb-2023
1416,Revenue,CAHD,Statemented Support Academies,Other Public Bodies,Cabot Learning Federation,896.50, 21-Feb-2023
1417,Revenue,CAHD,Statemented Support Academies,Other Public Bodies,Cabot Learning Federation,896.50, 21-Feb-2023
1418,Revenue,CAHD,Statemented Support Academies,Other Public Bodies,Cabot Learning Federation,1012.67, 21-Feb-2023
1419,Revenue,CAHD,Statemented Support Academies,Other Public Bodies,Cabot Learning Federation,3199.98, 21-Feb-2023
1420,Revenue,CAHD,Statemented Support Academies,Other Public Bodies,Cabot Learning Federation,13362.36, 21-Feb-2023
1421,Revenue,CAHD,Statemented Support Academies,Other Public Bodies,Cabot Learning Federation,5379.00, 21-Feb-2023
1422,Revenue,CAHD,Statemented Support Academies,Other Public Bodies,Cabot Learning Federation,891.66, 21-Feb-2023
1423,Revenue,CAHD,Statemented Support Academies,Other Public Bodies,Cabot Learning Federation,896.50, 21-Feb-2023
1424,Revenue,CAHD,Statemented Support Academies,Other Public Bodies,Cabot Learning Federation,13682.52, 21-Feb-2023
1425,Revenue,CAHD,Statemented Support Academies,Other Public Bodies,Cabot Learning Federation,8550.00, 21-Feb-2023
1426,Revenue,CAHD,Statemented Support Academies,Other Public Bodies,Cabot Learning Federation,692.77, 27-Feb-2023
1427,Revenue,CAHD,Statemented Support Academies,Other Public Bodies,Cabot Learning Federation,2079.06, 14-Feb-2023
1428,Revenue,CAHD,Statemented Support Academies,Other Public Bodies,Cabot Learning Federation,1713.77, 27-Feb-2023
1429,Revenue,CAHD,Statemented Support Academies,Other Public Bodies,Cabot Learning Federation,746.26, 27-Feb-2023
1430,Revenue,CAHD,Statemented Support Academies,Other Public Bodies,Cabot Learning Federation,746.26, 14-Feb-2023
1431,Revenue,CAHD,Statemented Support Academies,Other Public Bodies,Cabot Learning Federation,3166.87, 14-Feb-2023
1432,Revenue,CAHD,Statemented Support Academies,Other Public Bodies,Cabot Learning Federation,633.37, 27-Feb-2023
1433,Revenue,CAHD,Statemented Support Academies,Other Public Bodies,Cabot Learning Federation,740.00, 21-Feb-2023
1434,Revenue,CAHD,Statemented Support Academies,Other Public Bodies,Cabot Learning Federation,740.00, 21-Feb-2023
1435,Revenue,CAHD,Statemented Support Academies,Other Public Bodies,Cabot Learning Federation,740.00, 21-Feb-2023
1436,Revenue,CAHD,Statemented Support Academies,Other Public Bodies,Cabot Learning Federation,740.00, 21-Feb-2023
1437,Revenue,CAHD,Statemented Support Academies,Other Public Bodies,Cabot Learning Federation,740.00, 21-Feb-2023
1438,Revenue,CAHD,Statemented Support Academies,Other Public Bodies,Cabot Learning Federation,740.00, 21-Feb-2023
1439,Revenue,CAHD,Statemented Support Academies,Other Public Bodies,Cabot Learning Federation,891.66, 21-Feb-2023
1440,Revenue,CAHD,Statemented Support Academies,Other Public Bodies,Cabot Learning Federation,896.50, 21-Feb-2023
1441,Revenue,CAHD,Statemented Support Academies,Other Public Bodies,Cabot Learning Federation,740.00, 21-Feb-2023
1442,Revenue,CAHD,Statemented Support Academies,Other Public Bodies,Cabot Learning Federation,740.00, 21-Feb-2023
1443,Revenue,CAHD,Academy Resource Base Funding,Other Public Bodies,Cabot Learning Federation,1769.83, 27-Feb-2023
1444,Revenue,CAHD,Statemented Support Academies,Other Public Bodies,Cabot Learning Federation,826.78, 14-Feb-2023
1445,Revenue,CAHD,Statemented Support Academies,Other Public Bodies,Cabot Learning Federation,522.20, 14-Feb-2023
1446,Revenue,CAHD,Academy Resource Base Funding,Other Public Bodies,Cabot Learning Federation,1071.44, 27-Feb-2023
1447,Revenue,CAHD,Academy Resource Base Funding,Other Public Bodies,Cabot Learning Federation,857.20, 27-Feb-2023
1448,Revenue,CAHD,Academy Resource Base Funding,Other Public Bodies,Cabot Learning Federation,857.20, 27-Feb-2023
1449,Revenue,CAHD,Academy Resource Base Funding,Other Public Bodies,Cabot Learning Federation,857.20, 27-Feb-2023
1450,Revenue,CAHD,Academy Resource Base Funding,Other Public Bodies,Cabot Learning Federation,857.20, 27-Feb-2023
1451,Revenue,CAHD,Academy Resource Base Funding,Other Public Bodies,Cabot Learning Federation,1071.44, 27-Feb-2023
1452,Revenue,CAHD,Academy Resource Base Funding,Other Public Bodies,Cabot Learning Federation,1071.44, 27-Feb-2023
1453,Revenue,CAHD,Academy Resource Base Funding,Other Public Bodies,Cabot Learning Federation,857.20, 27-Feb-2023
1454,Revenue,CAHD,Academy Resource Base Funding,Other Public Bodies,Cabot Learning Federation,857.20, 27-Feb-2023
1455,Revenue,CAHD,Academy Resource Base Funding,Other Public Bodies,Cabot Learning Federation,1071.44, 27-Feb-2023
1456,Revenue,CAHD,Academy Resource Base Funding,Other Public Bodies,Cabot Learning Federation,857.20, 27-Feb-2023
1457,Revenue,CAHD,Academy Resource Base Funding,Other Public Bodies,Cabot Learning Federation,857.20, 27-Feb-2023
1458,Revenue,CAHD,Academy Resource Base Funding,Other Public Bodies,Cabot Learning Federation,1071.44, 27-Feb-2023
1459,Revenue,CAHD,Academy Resource Base Funding,Other Public Bodies,Cabot Learning Federation,857.20, 27-Feb-2023
1460,Revenue,CAHD,Academy Resource Base Funding,Other Public Bodies,Cabot Learning Federation,1071.44, 27-Feb-2023
1461,Revenue,CAHD,Academy Resource Base Funding,Other Public Bodies,Cabot Learning Federation,857.20, 27-Feb-2023
1462,Revenue,CAHD,Academy Resource Base Funding,Other Public Bodies,Cabot Learning Federation,2250.22, 27-Feb-2023
1463,Revenue,CAHD,Academy Resource Base Funding,Other Public Bodies,Cabot Learning Federation,857.20, 27-Feb-2023
1464,Revenue,CAHD,Academy Resource Base Funding,Other Public Bodies,Cabot Learning Federation,857.20, 27-Feb-2023
1465,Revenue,CAHD,Statemented Support Academies,Other Public Bodies,Cabot Learning Federation,4913.77, 27-Feb-2023
1466,Revenue,CAHD,Statemented Support Academies,Other Public Bodies,Cabot Learning Federation,572.19, 14-Feb-2023
1467,Revenue,CAHD,Statemented Support Academies,Other Public Bodies,Cabot Learning Federation,836.46, 14-Feb-2023
1468,Revenue,CAHD,Academy Resource Base Funding,Other Public Bodies,Cabot Learning Federation,9438.99, 27-Feb-2023
1469,Revenue,CAHD,Statemented Support Academies,Other Public Bodies,Cabot Learning Federation,746.26, 27-Feb-2023
1470,Revenue,CAHD,Statemented Support Academies,Other Public Bodies,Cabot Learning Federation,3008.67, 14-Feb-2023
1471,Revenue,CAHD,Statemented Support Academies,Other Public Bodies,Cabot Learning Federation,601.73, 27-Feb-2023
1472,Revenue,CAHD,Statemented Support Academies,Other Public Bodies,Cabot Learning Federation,2350.31, 14-Feb-2023
1473,Revenue,CAHD,Statemented Support Academies,Other Public Bodies,Cabot Learning Federation,3251.75, 14-Feb-2023
1474,Revenue,CAHD,Statemented Support Academies,Other Public Bodies,Cabot Learning Federation,650.35, 27-Feb-2023
1475,Revenue,CAHD,Statemented Support Academies,Other Public Bodies,Cabot Learning Federation,1341.38, 14-Feb-2023
1476,Revenue,CAHD,Statemented Support Payments to OLAs,Other L.A.s - General,Cabot Learning Federation,561.13, 24-Feb-2023
1477,Revenue,CAHD,Statemented Support Payments to OLAs,Other L.A.s - General,Cabot Learning Federation,1944.17, 24-Feb-2023
1478,Revenue,CAHD,Statemented Support Academies,Other Public Bodies,Cabot Learning Federation,896.50, 21-Feb-2023
1479,Revenue,CAHD,Statemented Support Academies,Other Public Bodies,Cabot Learning Federation,740.00, 21-Feb-2023
1480,Revenue,CAHD,Statemented Support Academies,Other Public Bodies,Cabot Learning Federation,896.50, 21-Feb-2023
1481,Revenue,CAHD,Statemented Support Academies,Other Public Bodies,Cabot Learning Federation,4440.00, 21-Feb-2023
1482,Revenue,CAHD,Statemented Support Academies,Other Public Bodies,Cabot Learning Federation,6636.06, 14-Feb-2023
1483,Revenue,CAHD,Statemented Support Academies,Other Public Bodies,Cabot Learning Federation,2376.28, 14-Feb-2023
1484,Revenue,CAHD,Statemented Support Academies,Other Public Bodies,Cabot Learning Federation,1509.82, 14-Feb-2023
1485,Revenue,CAHD,Statemented Support Academies,Other Public Bodies,Cabot Learning Federation,3048.20, 14-Feb-2023
1486,Revenue,CAHD,Statemented Support Academies,Other Public Bodies,Cabot Learning Federation,609.64, 27-Feb-2023
1487,Revenue,CAHD,Statemented Support Academies,Other Public Bodies,Cabot Learning Federation,1648.77, 14-Feb-2023
1488,Revenue,CAHD,Statemented Support Academies,Other Public Bodies,Cabot Learning Federation,1109.90, 14-Feb-2023
1489,Revenue,CAHD,Statemented Support Academies,Other Public Bodies,Cabot Learning Federation,740.00, 21-Feb-2023
1490,Revenue,CAHD,Statemented Support Academies,Other Public Bodies,Cabot Learning Federation,896.50, 21-Feb-2023
1491,Revenue,CAHD,Statemented Support Academies,Other Public Bodies,Cabot Learning Federation,740.00, 21-Feb-2023
1492,Revenue,CAHD,Statemented Support Academies,Other Public Bodies,Cabot Learning Federation,896.50, 21-Feb-2023
1493,Revenue,CAHD,Statemented Support Academies,Other Public Bodies,Cabot Learning Federation,740.00, 21-Feb-2023
1494,Revenue,CAHD,Statemented Support Academies,Other Public Bodies,Cabot Learning Federation,740.00, 21-Feb-2023
1495,Revenue,CAHD,Statemented Support Academies,Other Public Bodies,Cabot Learning Federation,846.03, 14-Feb-2023
1496,Revenue,CAHD,Statemented Support Academies,Other Public Bodies,Cabot Learning Federation,1563.06, 14-Feb-2023
1497,Revenue,CAHD,Statemented Support Academies,Other Public Bodies,Cabot Learning Federation,1109.90, 14-Feb-2023
1498,Revenue,CAHD,Statemented Support Academies,Other Public Bodies,Cabot Learning Federation,5736.71, 27-Feb-2023
1499,Revenue,CAHD,Statemented Support Academies,Other Public Bodies,Cabot Learning Federation,927.41, 14-Feb-2023
1500,Revenue,CAHD,Statemented Support Academies,Other Public Bodies,Cabot Learning Federation,2869.42, 14-Feb-2023
1501,Revenue,CAHD,Statemented Support Academies,Other Public Bodies,Cabot Learning Federation,573.88, 27-Feb-2023
1502,Revenue,CAHD,Statemented Support Academies,Other Public Bodies,Cabot Learning Federation,1119.38, 14-Feb-2023
1503,Revenue,CAHD,Statemented Support Academies,Other Public Bodies,Cabot Learning Federation,4417.62, 14-Feb-2023
1504,Revenue,CAHD,Statemented Support Academies,Other Public Bodies,Cabot Learning Federation,883.52, 27-Feb-2023
1505,Revenue,CAHD,Statemented Support Academies,Other Public Bodies,Cabot Learning Federation,3166.87, 14-Feb-2023
1506,Revenue,CAHD,Statemented Support Academies,Other Public Bodies,Cabot Learning Federation,633.37, 27-Feb-2023
1507,Revenue,CAHD,Statemented Support Academies,Other Public Bodies,Cabot Learning Federation,934.77, 14-Feb-2023
1508,Revenue,CAHD,Statemented Support Academies,Other Public Bodies,Cabot Learning Federation,3972.38, 14-Feb-2023
1509,Revenue,CAHD,Statemented Support Academies,Other Public Bodies,Cabot Learning Federation,794.48, 27-Feb-2023
1510,Revenue,CAHD,Statemented Support Academies,Other Public Bodies,Cabot Learning Federation,957.63, 14-Feb-2023
1511,Revenue,CAHD,Statemented Support Academies,Other Public Bodies,Cabot Learning Federation,1865.64, 14-Feb-2023
1512,Revenue,CAHD,Statemented Support Academies,Other Public Bodies,Cabot Learning Federation,1539.12, 14-Feb-2023
1513,Revenue,CAHD,Statemented Support Academies,Other Public Bodies,Cabot Learning Federation,1484.30, 14-Feb-2023
1514,Revenue,CAHD,Statemented Support Payments to OLAs,Other L.A.s - General,Cabot Learning Federation,1062.33, 24-Feb-2023
1515,Revenue,CAHD,Statemented Support Payments to OLAs,Other L.A.s - General,Cabot Learning Federation,740.00, 24-Feb-2023
1516,Revenue,CAHD,High needs Medical Funding Services,Other Public Bodies,Cabot Learning Federation,12941.50, 23-Feb-2023
1517,Revenue,CAHD,Statemented Support Payments to OLAs,Other L.A.s - General,Cabot Learning Federation,809.75, 24-Feb-2023
1518,Revenue,CAHD,Statemented Support Payments to OLAs,Other L.A.s - General,Cabot Learning Federation,5985.00, 24-Feb-2023
1519,Revenue,CAHD,Statemented Support Payments to OLAs,Other L.A.s - General,Cabot Learning Federation,740.00, 24-Feb-2023
1520,Revenue,CAHD,Statemented Support Academies,Other Public Bodies,Cabot Learning Federation,740.00, 21-Feb-2023
1521,Revenue,CAHD,Statemented Support Academies,Other Public Bodies,Cabot Learning Federation,740.00, 21-Feb-2023
1522,Revenue,CAHD,Statemented Support Academies,Other Public Bodies,Cabot Learning Federation,740.00, 21-Feb-2023
1523,Revenue,CAHD,Statemented Support Academies,Other Public Bodies,Cabot Learning Federation,2331.44, 14-Feb-2023
1524,Revenue,CAHD,Statemented Support Academies,Other Public Bodies,Cabot Learning Federation,795.78, 14-Feb-2023
1525,Revenue,CAHD,Statemented Support Academies,Other Public Bodies,Cabot Learning Federation,737.15, 14-Feb-2023
1526,Revenue,CAHD,Statemented Support Academies,Other Public Bodies,Cabot Learning Federation,536.56, 14-Feb-2023
1527,Revenue,CAHD,Statemented Support Payments to OLAs,Other L.A.s - General,Cabot Learning Federation,665.33, 24-Feb-2023
1528,Revenue,CAHD,Cardio Vascular Disease - Risks,Other Small Contracts,Cadbury Heath Healthcare,4163.00, 17-Feb-2023
1529,Revenue,CAHD,Drugs Alcohol and Sexual Health,Other Small Contracts,Cadbury Heath Ltd,525.00, 06-Feb-2023
1530,Revenue,CAHD,Central - Commissioned Services,Permanent Nursing,Caernarvon House,4163.24, 07-Feb-2023
1531,Revenue,CAHD,Central - Commissioned Services,Fees & Charges Income - General,Caernarvon House,0.00, 07-Feb-2023
1532,Revenue,CAHD,South - Commissioned Services,Permanent Nursing,Caernarvon House,5000.00, 07-Feb-2023
1533,Revenue,CAHD,South - Commissioned Services,Permanent Nursing,Caernarvon House,5114.28, 07-Feb-2023
1534,Revenue,CAHD,South - Commissioned Services,Permanent Nursing,Caernarvon House,5516.00, 07-Feb-2023
1535,Revenue,CAHD,South - Commissioned Services,Permanent Nursing,Caernarvon House,3079.88, 07-Feb-2023
1536,Revenue,CAHD,South - Commissioned Services,Fees & Charges Income - General,Caernarvon House,-1267.84, 07-Feb-2023
1537,Revenue,CAHD,South - Commissioned Services,Fees & Charges Income - General,Caernarvon House,-603.48, 07-Feb-2023
1538,Revenue,CAHD,South - Commissioned Services,Fees & Charges Income - General,Caernarvon House,-773.60, 07-Feb-2023
1539,Revenue,CAHD,North - Community based support,Permanent Nursing,Caernarvon House,5516.00, 07-Feb-2023
1540,Revenue,CAHD,North - Community based support,Permanent Nursing,Caernarvon House,4901.16, 07-Feb-2023
1541,Revenue,CAHD,North - Community based support,Permanent Nursing,Caernarvon House,3474.32, 07-Feb-2023
1542,Revenue,CAHD,North - Community based support,Fees & Charges Income - General,Caernarvon House,-2330.52, 07-Feb-2023
1543,Revenue,CAHD,North - Community based support,Fees & Charges Income - General,Caernarvon House,-627.80, 07-Feb-2023
1544,Revenue,CAHD,North - Community based support,Fees & Charges Income - General,Caernarvon House,-1036.92, 07-Feb-2023
1545,Revenue,CAHD,South - S117,Permanent Nursing,Caernarvon House,5114.28, 07-Feb-2023
1546,Revenue,CAHD,Central - Commissioned Services,Respite Planned - Residential,Campania Care Home,3800.00, 07-Feb-2023
1547,Revenue,CAHD,MH Purchasing - Younger,Permanent Residential,Canonbury Residential Home,3400.00, 07-Feb-2023
1548,Revenue,CAHD,CSC - Residential Placements,Permanent Residential,Carbrey Group Ltd,48464.29, 22-Feb-2023
1549,Revenue,CAHD,Central - Commissioned Services,Other Small Contracts,Care 1st Homecare,3267.96, 07-Feb-2023
1550,Revenue,CAHD,South - Commissioned Services,Other Small Contracts,Care 1st Homecare,359.70, 07-Feb-2023
1551,Revenue,CAHD,South - Commissioned Services,Other Small Contracts,Care 1st Homecare,1013.70, 07-Feb-2023
1552,Revenue,CAHD,South - Commissioned Services,Other Small Contracts,Care 1st Homecare,773.90, 07-Feb-2023
1553,Revenue,CAHD,South - Commissioned Services,Other Small Contracts,Care 1st Homecare,223.45, 07-Feb-2023
1554,Revenue,CAHD,South - Commissioned Services,Other Small Contracts,Care 1st Homecare,686.70, 07-Feb-2023
1555,Revenue,CAHD,North - Community based support,Other Small Contracts,Care 1st Homecare,1526.00, 07-Feb-2023
1556,Revenue,CAHD,North - Community based support,Other Small Contracts,Care 1st Homecare,1570.24, 07-Feb-2023
1557,Revenue,CAHD,North - Community based support,Other Small Contracts,Care 1st Homecare,3084.40, 07-Feb-2023
1558,Revenue,CAHD,Central - Commissioned Services,Respite Planned - Residential,Care Futures,1264.02, 10-Feb-2023
1559,Revenue,CAHD,Central - Commissioned Services,Other Small Contracts,Care Horizons,768.96, 07-Feb-2023
1560,Revenue,CAHD,Central - Commissioned Services,Other Small Contracts,Care Horizons,293.70, 07-Feb-2023
1561,Revenue,CAHD,Central - Commissioned Services,Other Small Contracts,Care Horizons,6980.70, 07-Feb-2023
1562,Revenue,CAHD,Central - Commissioned Services,Other Small Contracts,Care Horizons,341.76, 07-Feb-2023
1563,Revenue,CAHD,Central - Commissioned Services,Other Small Contracts,Care Horizons,170.88, 07-Feb-2023
1564,Revenue,CAHD,Central - Commissioned Services,Other Small Contracts,Care Horizons,341.76, 07-Feb-2023
1565,Revenue,CAHD,Central - Commissioned Services,Other Small Contracts,Care Horizons,170.88, 07-Feb-2023
1566,Revenue,CAHD,Central - Commissioned Services,Mentoring,Care Horizons,256.32, 07-Feb-2023
1567,Revenue,CAHD,South - Commissioned Services,Other Small Contracts,Care Horizons,811.68, 07-Feb-2023
1568,Revenue,CAHD,South - Commissioned Services,Other Small Contracts,Care Horizons,213.60, 07-Feb-2023
1569,Revenue,CAHD,South - Commissioned Services,Mentoring,Care Horizons,341.76, 07-Feb-2023
1570,Revenue,CAHD,North - Community based support,Other Small Contracts,Care Horizons,512.64, 07-Feb-2023
1571,Revenue,CAHD,North - Community based support,Other Small Contracts,Care Horizons,3439.46, 07-Feb-2023
1572,Revenue,CAHD,North - Community based support,Other Small Contracts,Care Horizons,427.20, 07-Feb-2023
1573,Revenue,CAHD,North - Community based support,Other Small Contracts,Care Horizons,640.80, 07-Feb-2023
1574,Revenue,CAHD,North - Community based support,Other Small Contracts,Care Horizons,5980.06, 07-Feb-2023
1575,Revenue,CAHD,North - Community based support,Other Small Contracts,Care Horizons,256.32, 07-Feb-2023
1576,Revenue,CAHD,North - S117,Other Small Contracts,Care Horizons,0.00, 07-Feb-2023
1577,Revenue,CAHD,Younger MH non-res purchasing,Other Small Contracts,Care Horizons,218.94, 07-Feb-2023
1578,Revenue,CAHD,Younger MH non-res purchasing,Other Small Contracts,Care Horizons,256.32, 07-Feb-2023
1579,Revenue,CAHD,North - Community based support,Other Small Contracts,Care Horizons Limited,599.76, 13-Feb-2023
1580,Revenue,CAHD,North - Community based support,Other Small Contracts,Care Horizons Limited,534.24, 16-Feb-2023
1581,Revenue,CAHD,North - Community based support,Other Small Contracts,Care Horizons Limited,2029.20, 15-Feb-2023
1582,Revenue,CAHD,North - Community based support,Supported Living,Care Horizons Limited,10455.41, 14-Feb-2023
1583,Revenue,CAHD,North - Community based support,Other Small Contracts,Care Horizons Limited,2644.56, 20-Feb-2023
1584,Revenue,CAHD,Alexandra Way,Licences,Care Quality Commission,7912.00, 14-Feb-2023
1585,Revenue,CAHD,South - Commissioned Services,Other Small Contracts,Care Unite Ltd t/a Home Instead Senior Care,819.72, 14-Feb-2023
1586,Revenue,CAHD,South - Commissioned Services,Other Small Contracts,Care Unite Ltd t/a Home Instead Senior Care,667.92, 14-Feb-2023
1587,Revenue,CAHD,South - Commissioned Services,Other Small Contracts,Carepride Ltd,176.22, 07-Feb-2023
1588,Revenue,CAHD,South - Commissioned Services,Other Small Contracts,Carepride Ltd,74.76, 07-Feb-2023
1589,Revenue,CAHD,South - Commissioned Services,Other Small Contracts,Carepride Ltd,170.88, 07-Feb-2023
1590,Revenue,CAHD,South - Commissioned Services,Other Small Contracts,Carepride Ltd,26.70, 07-Feb-2023
1591,Revenue,CAHD,South - Commissioned Services,Other Small Contracts,Carepride Ltd,117.48, 07-Feb-2023
1592,Revenue,CAHD,South - Commissioned Services,Other Small Contracts,Carepride Ltd,331.08, 07-Feb-2023
1593,Revenue,CAHD,South - Commissioned Services,Other Small Contracts,Carepride Ltd,37.38, 07-Feb-2023
1594,Revenue,CAHD,South - Commissioned Services,Other Small Contracts,Carepride Ltd,555.36, 07-Feb-2023
1595,Revenue,CAHD,South - Commissioned Services,Other Small Contracts,Carepride Ltd,170.88, 07-Feb-2023
1596,Revenue,CAHD,South - Commissioned Services,Other Small Contracts,Carepride Ltd,85.44, 07-Feb-2023
1597,Revenue,CAHD,South - Commissioned Services,Other Small Contracts,Carepride Ltd,90.78, 07-Feb-2023
1598,Revenue,CAHD,South - Commissioned Services,Other Small Contracts,Carepride Ltd,165.54, 07-Feb-2023
1599,Revenue,CAHD,South - Commissioned Services,Other Small Contracts,Carepride Ltd,133.50, 07-Feb-2023
1600,Revenue,CAHD,South - Commissioned Services,Other Small Contracts,Carepride Ltd,10.68, 07-Feb-2023
1601,Revenue,CAHD,South - Commissioned Services,Other Small Contracts,Carepride Ltd,69.42, 07-Feb-2023
1602,Revenue,CAHD,South - Commissioned Services,Other Small Contracts,Carepride Ltd,69.42, 07-Feb-2023
1603,Revenue,CAHD,South - Commissioned Services,Other Small Contracts,Carepride Ltd,37.38, 07-Feb-2023
1604,Revenue,CAHD,North - Community based support,Other Small Contracts,Carepride Ltd,101.46, 07-Feb-2023
1605,Revenue,CAHD,South - Commissioned Services,Other Small Contracts,Carepride Ltd,838.38, 14-Feb-2023
1606,Revenue,CAHD,South - Commissioned Services,Other Small Contracts,Carepride Ltd,283.02, 14-Feb-2023
1607,Revenue,CAHD,South - Commissioned Services,Other Small Contracts,Carepride Ltd,336.42, 14-Feb-2023
1608,Revenue,CAHD,South - Commissioned Services,Other Small Contracts,Carepride Ltd,165.54, 14-Feb-2023
1609,Revenue,CAHD,South - Commissioned Services,Other Small Contracts,Carepride Ltd,576.72, 14-Feb-2023
1610,Revenue,CAHD,South - Commissioned Services,Other Small Contracts,Carepride Ltd,145.96, 14-Feb-2023
1611,Revenue,CAHD,South - Commissioned Services,Other Small Contracts,Carepride Ltd,496.62, 14-Feb-2023
1612,Revenue,CAHD,South - Commissioned Services,Other Small Contracts,Carepride Ltd,384.48, 14-Feb-2023
1613,Revenue,CAHD,South - Commissioned Services,Other Small Contracts,Carepride Ltd,315.06, 14-Feb-2023
1614,Revenue,CAHD,South - Commissioned Services,Other Small Contracts,Carepride Ltd,720.90, 14-Feb-2023
1615,Revenue,CAHD,South - Commissioned Services,Other Small Contracts,Carepride Ltd,384.48, 14-Feb-2023
1616,Revenue,CAHD,South - Commissioned Services,Other Small Contracts,Carepride Ltd,528.66, 14-Feb-2023
1617,Revenue,CAHD,South - Commissioned Services,Other Small Contracts,Carepride Ltd,181.56, 14-Feb-2023
1618,Revenue,CAHD,South - Commissioned Services,Other Small Contracts,Carepride Ltd,261.66, 14-Feb-2023
1619,Revenue,CAHD,South - Commissioned Services,Other Small Contracts,Carepride Ltd,277.68, 14-Feb-2023
1620,Revenue,CAHD,South - Commissioned Services,Other Small Contracts,Carepride Ltd,523.32, 14-Feb-2023
1621,Revenue,CAHD,North - Community based support,Other Small Contracts,Carepride Ltd,293.70, 14-Feb-2023
1622,Revenue,CAHD,CSC - Care Leavers Independent Living,Adults - Family Support,Caring for Communities and People,3957.71, 13-Feb-2023
1623,Revenue,CAHD,Supporting People Programme,Grants to Voluntary Bodies,Caring for Communities and People,12501.83, 03-Feb-2023
1624,Revenue,CAHD,Statemented Support Academies,Other Public Bodies,Castle School Education Trust,740.00, 21-Feb-2023
1625,Revenue,CAHD,Statemented Support Academies,Other Public Bodies,Castle School Education Trust,740.00, 21-Feb-2023
1626,Revenue,CAHD,Statemented Support Academies,Other Public Bodies,Castle School Education Trust,740.00, 21-Feb-2023
1627,Revenue,CAHD,Statemented Support Academies,Other Public Bodies,Castle School Education Trust,740.00, 21-Feb-2023
1628,Revenue,CAHD,Statemented Support Academies,Other Public Bodies,Castle School Education Trust,740.00, 21-Feb-2023
1629,Revenue,CAHD,Statemented Support Academies,Other Public Bodies,Castle School Education Trust,740.00, 21-Feb-2023
1630,Revenue,CAHD,Statemented Support Academies,Other Public Bodies,Castle School Education Trust,740.00, 21-Feb-2023
1631,Revenue,CAHD,Statemented Support Academies,Other Public Bodies,Castle School Education Trust,896.50, 21-Feb-2023
1632,Revenue,CAHD,Statemented Support Academies,Other Public Bodies,Castle School Education Trust,740.00, 21-Feb-2023
1633,Revenue,CAHD,Statemented Support Academies,Other Public Bodies,Castle School Education Trust,1616.59, 14-Feb-2023
1634,Revenue,CAHD,Statemented Support Academies,Other Public Bodies,Castle School Education Trust,1754.84, 14-Feb-2023
1635,Revenue,CAHD,Statemented Support Academies,Other Public Bodies,Castle School Education Trust,4583.97, 27-Feb-2023
1636,Revenue,CAHD,Statemented Support Academies,Other Public Bodies,Castle School Education Trust,703.94, 14-Feb-2023
1637,Revenue,CAHD,Statemented Support Academies,Other Public Bodies,Castle School Education Trust,1758.41, 14-Feb-2023
1638,Revenue,CAHD,Statemented Support Academies,Other Public Bodies,Castle School Education Trust,1381.55, 27-Feb-2023
1639,Revenue,CAHD,Statemented Support Academies,Other Public Bodies,Castle School Education Trust,3749.93, 27-Feb-2023
1640,Revenue,CAHD,Statemented Support Academies,Other Public Bodies,Castle School Education Trust,668.67, 27-Feb-2023
1641,Revenue,CAHD,Statemented Support Academies,Other Public Bodies,Castle School Education Trust,1648.77, 14-Feb-2023
1642,Revenue,CAHD,Statemented Support Academies,Other Public Bodies,Castle School Education Trust,1598.95, 14-Feb-2023
1643,Revenue,CAHD,Statemented Support Academies,Other Public Bodies,Castle School Education Trust,4913.77, 27-Feb-2023
1644,Revenue,CAHD,Statemented Support Academies,Other Public Bodies,Castle School Education Trust,3166.87, 14-Feb-2023
1645,Revenue,CAHD,Statemented Support Academies,Other Public Bodies,Castle School Education Trust,633.37, 27-Feb-2023
1646,Revenue,CAHD,Statemented Support Academies,Other Public Bodies,Castle School Education Trust,2211.54, 14-Feb-2023
1647,Revenue,CAHD,Statemented Support Academies,Other Public Bodies,Castle School Education Trust,4913.77, 27-Feb-2023
1648,Revenue,CAHD,Statemented Support Academies,Other Public Bodies,Castle School Education Trust,1322.25, 14-Feb-2023
1649,Revenue,CAHD,Statemented Support Academies,Other Public Bodies,Castle School Education Trust,1338.55, 14-Feb-2023
1650,Revenue,CAHD,Statemented Support Academies,Other Public Bodies,Castle School Education Trust,3308.01, 14-Feb-2023
1651,Revenue,CAHD,Statemented Support Academies,Other Public Bodies,Castle School Education Trust,661.60, 27-Feb-2023
1652,Revenue,CAHD,Statemented Support Academies,Other Public Bodies,Castle School Education Trust,4055.31, 14-Feb-2023
1653,Revenue,CAHD,Statemented Support Academies,Other Public Bodies,Castle School Education Trust,811.06, 27-Feb-2023
1654,Revenue,CAHD,Statemented Support Academies,Other Public Bodies,Castle School Education Trust,2786.64, 14-Feb-2023
1655,Revenue,CAHD,Statemented Support Academies,Other Public Bodies,Castle School Education Trust,557.33, 27-Feb-2023
1656,Revenue,CAHD,Statemented Support Academies,Other Public Bodies,Castle School Education Trust,1758.41, 14-Feb-2023
1657,Revenue,CAHD,Statemented Support Academies,Other Public Bodies,Castle School Education Trust,6381.46, 27-Feb-2023
1658,Revenue,CAHD,Statemented Support Academies,Other Public Bodies,Castle School Education Trust,686.50, 14-Feb-2023
1659,Revenue,CAHD,Statemented Support Academies,Other Public Bodies,Castle School Education Trust,2579.33, 14-Feb-2023
1660,Revenue,CAHD,Statemented Support Academies,Other Public Bodies,Castle School Education Trust,515.87, 27-Feb-2023
1661,Revenue,CAHD,High Risk Group Funding,Other Public Bodies,Castle School Education Trust,4000.00, 17-Feb-2023
1662,Revenue,CAHD,Statemented Support Academies,Other Public Bodies,Castle School Education Trust,3288.45, 14-Feb-2023
1663,Revenue,CAHD,Statemented Support Academies,Other Public Bodies,Castle School Education Trust,657.69, 27-Feb-2023
1664,Revenue,CAHD,Statemented Support Academies,Other Public Bodies,Castle School Education Trust,3363.23, 14-Feb-2023
1665,Revenue,CAHD,Statemented Support Academies,Other Public Bodies,Castle School Education Trust,672.65, 27-Feb-2023
1666,Revenue,CAHD,Statemented Support Academies,Other Public Bodies,Castle School Education Trust,4678.59, 14-Feb-2023
1667,Revenue,CAHD,Statemented Support Academies,Other Public Bodies,Castle School Education Trust,935.72, 27-Feb-2023
1668,Revenue,CAHD,Statemented Support Academies,Other Public Bodies,Castle School Education Trust,740.00, 21-Feb-2023
1669,Revenue,CAHD,Statemented Support Academies,Other Public Bodies,Castle School Education Trust,1012.67, 21-Feb-2023
1670,Revenue,CAHD,Statemented Support Academies,Other Public Bodies,Castle School Education Trust,740.00, 21-Feb-2023
1671,Revenue,CAHD,Statemented Support Academies,Other Public Bodies,Castle School Education Trust,896.50, 21-Feb-2023
1672,Revenue,CAHD,Statemented Support Academies,Other Public Bodies,Castle School Education Trust,1266.75, 14-Feb-2023
1673,Revenue,CAHD,Statemented Support Academies,Other Public Bodies,Castle School Education Trust,633.37, 27-Feb-2023
1674,Revenue,CAHD,Academy Resource Base Funding,Other Public Bodies,Castle School Education Trust,1534.24, 27-Feb-2023
1675,Revenue,CAHD,Statemented Support Academies,Other Public Bodies,Castle School Education Trust,2167.14, 14-Feb-2023
1676,Revenue,CAHD,Academy Resource Base Funding,Other Public Bodies,Castle School Education Trust,1071.44, 27-Feb-2023
1677,Revenue,CAHD,Academy Resource Base Funding,Other Public Bodies,Castle School Education Trust,857.20, 27-Feb-2023
1678,Revenue,CAHD,Academy Resource Base Funding,Other Public Bodies,Castle School Education Trust,1071.44, 27-Feb-2023
1679,Revenue,CAHD,Academy Resource Base Funding,Other Public Bodies,Castle School Education Trust,1071.44, 27-Feb-2023
1680,Revenue,CAHD,Academy Resource Base Funding,Other Public Bodies,Castle School Education Trust,1071.44, 27-Feb-2023
1681,Revenue,CAHD,Academy Resource Base Funding,Other Public Bodies,Castle School Education Trust,857.20, 27-Feb-2023
1682,Revenue,CAHD,Academy Resource Base Funding,Other Public Bodies,Castle School Education Trust,1071.44, 27-Feb-2023
1683,Revenue,CAHD,Academy Resource Base Funding,Other Public Bodies,Castle School Education Trust,1071.44, 27-Feb-2023
1684,Revenue,CAHD,Academy Resource Base Funding,Other Public Bodies,Castle School Education Trust,1071.44, 27-Feb-2023
1685,Revenue,CAHD,Academy Resource Base Funding,Other Public Bodies,Castle School Education Trust,857.20, 27-Feb-2023
1686,Revenue,CAHD,Academy Resource Base Funding,Other Public Bodies,Castle School Education Trust,1071.44, 27-Feb-2023
1687,Revenue,CAHD,Academy Resource Base Funding,Other Public Bodies,Castle School Education Trust,1071.44, 27-Feb-2023
1688,Revenue,CAHD,Academy Resource Base Funding,Other Public Bodies,Castle School Education Trust,1071.44, 27-Feb-2023
1689,Revenue,CAHD,Academy Resource Base Funding,Other Public Bodies,Castle School Education Trust,857.20, 27-Feb-2023
1690,Revenue,CAHD,Academy Resource Base Funding,Other Public Bodies,Castle School Education Trust,1071.44, 27-Feb-2023
1691,Revenue,CAHD,Academy Resource Base Funding,Other Public Bodies,Castle School Education Trust,1071.44, 27-Feb-2023
1692,Revenue,CAHD,Academy Resource Base Funding,Other Public Bodies,Castle School Education Trust,1071.44, 27-Feb-2023
1693,Revenue,CAHD,Statemented Support Academies,Other Public Bodies,Castle School Education Trust,758.47, 14-Feb-2023
1694,Revenue,CAHD,Statemented Support Academies,Other Public Bodies,Castle School Education Trust,3558.15, 14-Feb-2023
1695,Revenue,CAHD,Statemented Support Academies,Other Public Bodies,Castle School Education Trust,711.63, 27-Feb-2023
1696,Revenue,CAHD,Academy Resource Base Funding,Other Public Bodies,Castle School Education Trust,11456.63, 27-Feb-2023
1697,Revenue,CAHD,Statemented Support Academies,Other Public Bodies,Castle School Education Trust,1993.03, 14-Feb-2023
1698,Revenue,CAHD,Statemented Support Academies,Other Public Bodies,Castle School Education Trust,1119.38, 14-Feb-2023
1699,Revenue,CAHD,Statemented Support Academies,Other Public Bodies,Castle School Education Trust,3363.25, 14-Feb-2023
1700,Revenue,CAHD,Statemented Support Academies,Other Public Bodies,Castle School Education Trust,672.65, 27-Feb-2023
1701,Revenue,CAHD,Statemented Support Academies,Other Public Bodies,Castle School Education Trust,1411.38, 14-Feb-2023
1702,Revenue,CAHD,Statemented Support Academies,Other Public Bodies,Castle School Education Trust,896.50, 21-Feb-2023
1703,Revenue,CAHD,Statemented Support Academies,Other Public Bodies,Castle School Education Trust,1012.67, 21-Feb-2023
1704,Revenue,CAHD,Statemented Support Academies,Other Public Bodies,Castle School Education Trust,740.00, 21-Feb-2023
1705,Revenue,CAHD,Statemented Support Academies,Other Public Bodies,Castle School Education Trust,1595.46, 14-Feb-2023
1706,Revenue,CAHD,Statemented Support Academies,Other Public Bodies,Castle School Education Trust,736.38, 14-Feb-2023
1707,Revenue,CAHD,Statemented Support Academies,Other Public Bodies,Castle School Education Trust,746.26, 14-Feb-2023
1708,Revenue,CAHD,Statemented Support Academies,Other Public Bodies,Castle School Education Trust,1301.35, 14-Feb-2023
1709,Revenue,CAHD,Statemented Support Academies,Other Public Bodies,Castle School Education Trust,4913.77, 27-Feb-2023
1710,Revenue,CAHD,Statemented Support Academies,Other Public Bodies,Castle School Education Trust,710.41, 14-Feb-2023
1711,Revenue,CAHD,Statemented Support Academies,Other Public Bodies,Castle School Education Trust,745.40, 14-Feb-2023
1712,Revenue,CAHD,Statemented Support Academies,Other Public Bodies,Castle School Education Trust,1244.00, 14-Feb-2023
1713,Revenue,CAHD,Statemented Support Academies,Other Public Bodies,Castle School Education Trust,1012.67, 21-Feb-2023
1714,Revenue,CAHD,Statemented Support Academies,Other Public Bodies,Castle School Education Trust,529.07, 14-Feb-2023
1715,Revenue,CAHD,Statemented Support Academies,Other Public Bodies,Castle School Education Trust,2004.28, 14-Feb-2023
1716,Revenue,CAHD,Statemented Support Academies,Other Public Bodies,Castle School Education Trust,1865.64, 14-Feb-2023
1717,Revenue,CAHD,Statemented Support Academies,Other Public Bodies,Castle School Educational Academy Trust,1012.67, 21-Feb-2023
1718,Revenue,CAHD,Statemented Support Academies,Other Public Bodies,Castle School Educational Academy Trust,896.50, 21-Feb-2023
1719,Revenue,CAHD,Statemented Support Academies,Other Public Bodies,Castle School Educational Academy Trust,740.00, 21-Feb-2023
1720,Revenue,CAHD,Statemented Support Academies,Other Public Bodies,Castle School Educational Academy Trust,740.00, 21-Feb-2023
1721,Revenue,CAHD,Statemented Support Academies,Other Public Bodies,Castle School Educational Academy Trust,740.00, 21-Feb-2023
1722,Revenue,CAHD,Statemented Support Academies,Other Public Bodies,Castle School Educational Academy Trust,1330.83, 21-Feb-2023
1723,Revenue,CAHD,Statemented Support Academies,Other Public Bodies,Castle School Educational Academy Trust,896.50, 21-Feb-2023
1724,Revenue,CAHD,Statemented Support Academies,Other Public Bodies,Castle School Educational Academy Trust,3024.95, 14-Feb-2023
1725,Revenue,CAHD,Statemented Support Academies,Other Public Bodies,Castle School Educational Academy Trust,604.99, 27-Feb-2023
1726,Revenue,CAHD,Statemented Support Academies,Other Public Bodies,Castle School Educational Academy Trust,1741.93, 14-Feb-2023
1727,Revenue,CAHD,Statemented Support Academies,Other Public Bodies,Castle School Educational Academy Trust,4841.53, 14-Feb-2023
1728,Revenue,CAHD,Statemented Support Academies,Other Public Bodies,Castle School Educational Academy Trust,968.31, 27-Feb-2023
1729,Revenue,CAHD,Statemented Support Academies,Other Public Bodies,Castle School Educational Academy Trust,674.49, 14-Feb-2023
1730,Revenue,CAHD,Statemented Support Academies,Other Public Bodies,Castle School Educational Academy Trust,1447.05, 14-Feb-2023
